﻿Body,Body name,Date,Transaction number,Invoice Number,Amount,Supplier Name,Supplier ID,VAT Registration Number,Expense Area,Expense Type,Expense Code,BVACOP,ProClass,ProClass Description,Extended Description,Profit Centre
http://statistics.data.gov.uk/id/statistical-geography/E08000009,Trafford,24/02/2021,5100402547,1800352627,885.92,Engie FM Ltd,4537,GB578153121,AM:Sale Waterside,SUPP & SERV COVID 19,220495,,131300,CLEANING: Services,Additonal Hrgiene - March 2021,621049
http://statistics.data.gov.uk/id/statistical-geography/E08000010,Trafford,17/02/2021,5100398778,1800351657,22.5,Engie FM Ltd,4537,GB578153121,AM:Sale Waterside,PREMSES EXP COVID 19,201050,,131300,CLEANING: Services,Management Fee,621049
http://statistics.data.gov.uk/id/statistical-geography/E08000011,Trafford,17/02/2021,5100398778,1800351657,180,Engie FM Ltd,4537,GB578153121,AM:Sale Waterside,PREMSES EXP COVID 19,201050,,131300,CLEANING: Services,Pedal Bins For Sale Waterside,621049
http://statistics.data.gov.uk/id/statistical-geography/E08000012,Trafford,03/02/2021,5100401151,1800352626,"3,424.32",Engie FM Ltd,4537,GB578153121,AM:Sale Waterside,SUPP & SERV COVID 19,220495,,131300,CLEANING: Services,Additonal Cleaning - March 2021,621049
http://statistics.data.gov.uk/id/statistical-geography/E08000013,Trafford,15/02/2021,5100401797,21100404,"3,519.00",Facultatieve Technologies Ltd,4536,GB169285327,PP:ALTRINCHAM CREMAT,EQUIPMENT - REPAIRS,220050,,121100,CEMETERY : Equipment,Emissions Testing,540020
http://statistics.data.gov.uk/id/statistical-geography/E08000014,Trafford,17/02/2021,5100402013,90815689,425,Amey LG Limited,4521,GB813047950,CreativeSupp Respite,EXTERNAL DAY-TO-DAY,200100,,181900,ENVIRONMENT : Testing & Insp,Shawe View Fire Risk Assessment Nov2020,251216
http://statistics.data.gov.uk/id/statistical-geography/E08000015,Trafford,17/02/2021,5100402013,90815689,80.75,Amey LG Limited,4521,GB813047950,CreativeSupp Respite,EXTERNAL DAY-TO-DAY,200100,,181900,ENVIRONMENT : Testing & Insp,Amey 19% Fee,251216
http://statistics.data.gov.uk/id/statistical-geography/E08000016,Trafford,17/02/2021,5100402315,90818500,"28,366.13",Amey LG Limited,4521,GB813047950,Capital Schemes,EXT PROJECT MAN,400220,,191700,FM : Property Management,Capital Project Schemes,990000
http://statistics.data.gov.uk/id/statistical-geography/E08000017,Trafford,17/02/2021,5100402316,90818502,"14,305.94",Amey LG Limited,4521,GB813047950,Capital Schemes,EXT PROJECT MAN,400220,,191700,FM : Property Management,Capital Programme 2020/21,990000
http://statistics.data.gov.uk/id/statistical-geography/E08000018,Trafford,17/02/2021,5100402317,90818497,"7,114.91",Amey LG Limited,4521,GB813047950,Capital Schemes,EXT PROJECT MAN,400220,,201700,FINANCIAL SERVICES : Grants,Capital Project Fees,990000
http://statistics.data.gov.uk/id/statistical-geography/E08000019,Trafford,15/02/2021,5100401929,90815641,187.43,Amey LG Limited,4521,GB813047950,PP:ALTRINCHAM CREMAT,EXTERNAL DAY-TO-DAY,200100,,181900,ENVIRONMENT : Testing & Insp,Altrincham Crematorium,540020
http://statistics.data.gov.uk/id/statistical-geography/E08000020,Trafford,15/02/2021,5100401930,90815674,138.04,Amey LG Limited,4521,GB813047950,PP:ALTRINCHAM CREMAT,EXTERNAL DAY-TO-DAY,200100,,181900,ENVIRONMENT : Testing & Insp,Altrincham Crematorium,540020
http://statistics.data.gov.uk/id/statistical-geography/E08000021,Trafford,15/02/2021,5100401931,90815685,168.98,Amey LG Limited,4521,GB813047950,PP:ALTRINCHAM CREMAT,EXTERNAL DAY-TO-DAY,200100,,181900,ENVIRONMENT : Testing & Insp,Altrincham Crematorium,540020
http://statistics.data.gov.uk/id/statistical-geography/E08000022,Trafford,15/02/2021,5100401932,90815691,119,Amey LG Limited,4521,GB813047950,PP:ALTRINCHAM CREMAT,EXTERNAL DAY-TO-DAY,200100,,181900,ENVIRONMENT : Testing & Insp,Altrincham Crematorium,540020
http://statistics.data.gov.uk/id/statistical-geography/E08000023,Trafford,15/02/2021,5100401947,90815700,199.34,Amey LG Limited,4521,GB813047950,PP:ALTRINCHAM CREMAT,EXTERNAL DAY-TO-DAY,200100,,181900,ENVIRONMENT : Testing & Insp,Altrincham Crematorium,540020
http://statistics.data.gov.uk/id/statistical-geography/E08000024,Trafford,15/02/2021,5100402022,90815653,128.72,Amey LG Limited,4521,GB813047950,LP:TRAF. WATER SC -,EXTERNAL DAY-TO-DAY,200100,,391311,Open Spaces : Maintenance,Invoice 90815019,552020
http://statistics.data.gov.uk/id/statistical-geography/E08000025,Trafford,15/02/2021,5100402023,90815676,103.53,Amey LG Limited,4521,GB813047950,LP:TRAF. WATER SC -,EXTERNAL DAY-TO-DAY,200100,,391311,Open Spaces : Maintenance,Invoice 90815019,552020
http://statistics.data.gov.uk/id/statistical-geography/E08000026,Trafford,15/02/2021,5100402024,90815684,291.97,Amey LG Limited,4521,GB813047950,LP:TRAF. WATER SC -,EXTERNAL DAY-TO-DAY,200100,,391311,Open Spaces : Maintenance,Invoice 90815019,552020
http://statistics.data.gov.uk/id/statistical-geography/E08000027,Trafford,15/02/2021,5100402025,90815690,997.95,Amey LG Limited,4521,GB813047950,LP:TRAF. WATER SC -,EXTERNAL DAY-TO-DAY,200100,,391311,Open Spaces : Maintenance,Invoice 90815019,552020
http://statistics.data.gov.uk/id/statistical-geography/E08000028,Trafford,15/02/2021,5100402026,90815654,113.29,Amey LG Limited,4521,GB813047950,LP:TRAF. WATER SC -,EXTERNAL DAY-TO-DAY,200100,,391311,Open Spaces : Maintenance,Invoice 90815019,552020
http://statistics.data.gov.uk/id/statistical-geography/E08000029,Trafford,03/02/2021,5100399366,90811251,260.31,Amey LG Limited,4521,GB813047950,CreativeSupp Respite,EXTERNAL DAY-TO-DAY,200100,,391311,Open Spaces : Maintenance,Work at Shawe Road April 2020-March 2021,251216
http://statistics.data.gov.uk/id/statistical-geography/E08000030,Trafford,03/02/2021,5100399367,90811279,123.78,Amey LG Limited,4521,GB813047950,CreativeSupp Respite,EXTERNAL DAY-TO-DAY,200100,,391311,Open Spaces : Maintenance,Work at Shawe Road April 2020-March 2021,251216
http://statistics.data.gov.uk/id/statistical-geography/E08000031,Trafford,03/02/2021,5100399367,90811279,-0.02,Amey LG Limited,4521,GB813047950,CreativeSupp Respite,EXTERNAL DAY-TO-DAY,200100,,391311,Open Spaces : Maintenance,Work at Shawe Road April 2020-March 2021,251216
http://statistics.data.gov.uk/id/statistical-geography/E08000032,Trafford,03/02/2021,5100399368,90811285,98.84,Amey LG Limited,4521,GB813047950,CreativeSupp Respite,EXTERNAL DAY-TO-DAY,200100,,391311,Open Spaces : Maintenance,Work at Shawe Road April 2020-March 2021,251216
http://statistics.data.gov.uk/id/statistical-geography/E08000033,Trafford,03/02/2021,5100399368,90811285,-4,Amey LG Limited,4521,GB813047950,CreativeSupp Respite,EXTERNAL DAY-TO-DAY,200100,,391311,Open Spaces : Maintenance,Work at Shawe Road April 2020-March 2021,251216
http://statistics.data.gov.uk/id/statistical-geography/E08000034,Trafford,03/02/2021,5100399369,90812002,2.38,Amey LG Limited,4521,GB813047950,CreativeSupp Respite,EXTERNAL DAY-TO-DAY,200100,,391311,Open Spaces : Maintenance,Work at Shawe Road April 2020-March 2021,251216
http://statistics.data.gov.uk/id/statistical-geography/E08000035,Trafford,03/02/2021,5100399370,90811234,749.7,Amey LG Limited,4521,GB813047950,CORPORATE EVENTS,RECHARGEABLE WORK AD,330400,,191700,FM : Property Management,Fix broken leaded window TTH,710125
http://statistics.data.gov.uk/id/statistical-geography/E08000036,Trafford,03/02/2021,5100400852,90814982,"1,000.00",Amey LG Limited,4521,GB813047950,Capital Schemes,EXT ENG HIGHWAY,400205,,151110,CONSULTANCY : Gen Construction,Stage 2,990000
http://statistics.data.gov.uk/id/statistical-geography/E08000037,Trafford,03/02/2021,5100400922,90815146,"6,400.18",Amey LG Limited,4521,GB813047950,OTP: Recycling Inits,EMPLOYEE APPORTIONME,194000,,182013,Waste Mgt : Waste Collection,Recycling Officers,233004
http://statistics.data.gov.uk/id/statistical-geography/E08000038,Trafford,03/02/2021,5100401272,90815019,850,Amey LG Limited,4521,GB813047950,LP:TRAF. WATER SC -,EXTERNAL DAY-TO-DAY,200100,,391311,Open Spaces : Maintenance,Invoice 90815019,552020
http://statistics.data.gov.uk/id/statistical-geography/E08000039,Trafford,03/02/2021,5100401385,90815621,"18,943.34",Amey LG Limited,4521,GB813047950,OTP: COVID-19,SUPP & SERV COVID 19,220495,,191700,FM : Property Management,COVID Additional 2020,233007
http://statistics.data.gov.uk/id/statistical-geography/E08000040,Trafford,03/02/2021,5100401386,90815624,"17,579.28",Amey LG Limited,4521,GB813047950,OTP: COVID-19,SUPP & SERV COVID 19,220495,,191700,FM : Property Management,COVID Additional 2020,233007
http://statistics.data.gov.uk/id/statistical-geography/E08000041,Trafford,03/02/2021,5100401387,90815620,"15,666.37",Amey LG Limited,4521,GB813047950,OTP: COVID-19,SUPP & SERV COVID 19,220495,,191700,FM : Property Management,COVID Additional 2020,233007
http://statistics.data.gov.uk/id/statistical-geography/E08000042,Trafford,03/02/2021,5100401388,90815862,"242,517.99",Amey LG Limited,4521,GB813047950,Capital Schemes,EXT PROJECT MAN,400220,,191700,FM : Property Management,Capital Programme 2020/21,990000
http://statistics.data.gov.uk/id/statistical-geography/E08000043,Trafford,03/02/2021,5100401394,90815512,"3,201.50",Amey LG Limited,4521,GB813047950,Capital Schemes,EXT PROJECT MAN,400220,,231800,HWY : Services,Redacted,990000
http://statistics.data.gov.uk/id/statistical-geography/E08000044,Trafford,03/02/2021,5100401396,90815516,"2,389.38",Amey LG Limited,4521,GB813047950,Capital Schemes,EXT ENG HIGHWAY,400205,,191700,FM : Property Management,Wharfside Way Public Engagement,990000
http://statistics.data.gov.uk/id/statistical-geography/E08000045,Trafford,03/02/2021,5100401398,90815517,"3,474.62",Amey LG Limited,4521,GB813047950,Capital Schemes,TRIAL HOLES,400015,,231800,HWY : Services,CE No5 Bellmouth Redesign & RDA,990000
http://statistics.data.gov.uk/id/statistical-geography/E08000046,Trafford,03/02/2021,5100401399,90815498,"9,623.65",Amey LG Limited,4521,GB813047950,Capital Schemes,EXT PROJECT MAN,400220,,201700,FINANCIAL SERVICES : Grants,Capital Project Fees,990000
http://statistics.data.gov.uk/id/statistical-geography/E08000047,Trafford,03/02/2021,5100401401,90815501,"1,400.70",Amey LG Limited,4521,GB813047950,Capital Schemes,EXT PROJECT MAN,400220,,191700,FM : Property Management,Capital Project Schemes,990000
http://statistics.data.gov.uk/id/statistical-geography/E08000048,Trafford,03/02/2021,5100401403,90815504,"65,306.33",Amey LG Limited,4521,GB813047950,Capital Schemes,EXT PROJECT MAN,400220,,191700,FM : Property Management,Capital Programme 2020/21,990000
http://statistics.data.gov.uk/id/statistical-geography/E08000049,Trafford,03/02/2021,5100401404,90815505,202.24,Amey LG Limited,4521,GB813047950,Capital Schemes,EXT ENG HIGHWAY,400205,,151110,CONSULTANCY : Gen Construction,Stage 2,990000
http://statistics.data.gov.uk/id/statistical-geography/E08000050,Trafford,03/02/2021,5100401405,90815507,"2,729.21",Amey LG Limited,4521,GB813047950,Capital Schemes,EXT ENG HIGHWAY,400205,,231800,HWY : Services,Tranche 1,990000
http://statistics.data.gov.uk/id/statistical-geography/E08000051,Trafford,03/02/2021,5100401406,90815511,"17,506.63",Amey LG Limited,4521,GB813047950,Capital Schemes,EXT ENG HIGHWAY,400205,,231800,HWY : Services,Tranche 2,990000
http://statistics.data.gov.uk/id/statistical-geography/E08000052,Trafford,03/02/2021,5100401407,90815746,"9,915.41",Amey LG Limited,4521,GB813047950,Capital Schemes,EXT PROJECT MAN,400220,,191700,FM : Property Management,Capital Programme 2020/21,990000
http://statistics.data.gov.uk/id/statistical-geography/E08000053,Trafford,03/02/2021,5100401408,90815744,278.36,Amey LG Limited,4521,GB813047950,Capital Schemes,EXT PROJECT MAN,400220,,201700,FINANCIAL SERVICES : Grants,Capital Project Fees,990000
http://statistics.data.gov.uk/id/statistical-geography/E08000054,Trafford,03/02/2021,5100401409,90815745,"18,975.91",Amey LG Limited,4521,GB813047950,Capital Schemes,EXT PROJECT MAN,400220,,191700,FM : Property Management,Capital Project Schemes,990000
http://statistics.data.gov.uk/id/statistical-geography/E08000055,Trafford,03/02/2021,5100401484,90774436,"6,556.52",Amey LG Limited,4521,GB813047950,AM:Trafford Town Hal,EXTERNAL DAY-TO-DAY,200100,,191700,FM : Property Management,Roof Repairs,621017
http://statistics.data.gov.uk/id/statistical-geography/E08000056,Trafford,03/02/2021,5100401485,90815456,180,Amey LG Limited,4521,GB813047950,Sanyu Daycare,EXT GR MAINT CONT WK,200405,,151300,CONSULTANCY : Environmental,Grounds Maintenance Dec 20 - Feb 21,130570
http://statistics.data.gov.uk/id/statistical-geography/E08000057,Trafford,03/02/2021,5100401486,90815461,"3,199.04",Amey LG Limited,4521,GB813047950,AM:Trafford Town Hal,SECURITY MEASURES,201015,,191700,FM : Property Management,Security Guards 9th Nov - 8th Jan,621017
http://statistics.data.gov.uk/id/statistical-geography/E08000058,Trafford,03/02/2021,5100401488,90815452,120,Amey LG Limited,4521,GB813047950,LP:MOSS VIEW ROAD,REPAIRS TO FIXTURES,201010,,391311,Open Spaces : Maintenance,Standpipes,550954
http://statistics.data.gov.uk/id/statistical-geography/E08000059,Trafford,03/02/2021,5100401489,90815462,"2,085.90",Amey LG Limited,4521,GB813047950,AM:Trafford Town Hal,SECURITY MEASURES,201015,,191700,FM : Property Management,Security Guards 11th Jan - 19th Feb,621017
http://statistics.data.gov.uk/id/statistical-geography/E08000060,Trafford,03/02/2021,5100401492,90815705,"2,486.11",Amey LG Limited,4521,GB813047950,OTP: Recycling Inits,OTHER MISC EXPENSES,220850,,182013,Waste Mgt : Waste Collection,Recycling Bins to Flats,233004
http://statistics.data.gov.uk/id/statistical-geography/E08000061,Trafford,03/02/2021,5100401493,90815500,909,Amey LG Limited,4521,GB813047950,PUBLIC HEALTH,PROFESSIONAL FEES,220456,,191700,FM : Property Management,Amey - TTH Sunday Opening 24.1.21,591000
http://statistics.data.gov.uk/id/statistical-geography/E08000062,Trafford,03/02/2021,5100401494,90815463,"1,818.00",Amey LG Limited,4521,GB813047950,PUBLIC HEALTH,PROFESSIONAL FEES,220456,,191700,FM : Property Management,Amey - Town Hall Staffing weekend,591000
http://statistics.data.gov.uk/id/statistical-geography/E08000063,Trafford,01/02/2021,5100396368,90803497,10.02,Amey LG Limited,4521,GB813047950,NETWORK - SUPP LIVIN,EQUIPMENT - PURCHASE,220048,,181900,ENVIRONMENT : Testing & Insp,Amey mark 90803497,251317
http://statistics.data.gov.uk/id/statistical-geography/E08000064,Trafford,01/02/2021,5100396368,90803497,-1.39,Amey LG Limited,4521,GB813047950,NETWORK - SUPP LIVIN,EQUIPMENT - PURCHASE,220048,,181900,ENVIRONMENT : Testing & Insp,Amey mark 90803497,251317
http://statistics.data.gov.uk/id/statistical-geography/E08000065,Trafford,01/02/2021,5100396368,90803497,7.73,Amey LG Limited,4521,GB813047950,NETWORK - SUPP LIVIN,EQUIPMENT - PURCHASE,220048,,181900,ENVIRONMENT : Testing & Insp,Amey mark up,251317
http://statistics.data.gov.uk/id/statistical-geography/E08000066,Trafford,01/02/2021,5100396368,90803497,18.2,Amey LG Limited,4521,GB813047950,NETWORK - SUPP LIVIN,EQUIPMENT - PURCHASE,220048,,181900,ENVIRONMENT : Testing & Insp,PAT items,251317
http://statistics.data.gov.uk/id/statistical-geography/E08000067,Trafford,01/02/2021,5100396368,90803497,18.2,Amey LG Limited,4521,GB813047950,NETWORK - SUPP LIVIN,EQUIPMENT - PURCHASE,220048,,181900,ENVIRONMENT : Testing & Insp,PAT items,251317
http://statistics.data.gov.uk/id/statistical-geography/E08000068,Trafford,01/02/2021,5100397412,90806935,"11,949.12",Amey LG Limited,4521,GB813047950,GMRAPS,SUPPLIES/SERVICES,220472,,151300,CONSULTANCY : Environmental,GMRAPS 20/21,402033
http://statistics.data.gov.uk/id/statistical-geography/E08000069,Trafford,01/02/2021,5100399371,90811265,216,Amey LG Limited,4521,GB813047950,OLD HALL ROAD,CONSULTANTS,220428,,151100,CONSULTANCY : Construction, Replacement Thermostat Old Hall Rd C/H,130465
http://statistics.data.gov.uk/id/statistical-geography/E08000070,Trafford,01/02/2021,5100399371,90811265,-156.5,Amey LG Limited,4521,GB813047950,OLD HALL ROAD,CONSULTANTS,220428,,151100,CONSULTANCY : Construction, Replacement Thermostat Old Hall Rd C/H,130465
http://statistics.data.gov.uk/id/statistical-geography/E08000071,Trafford,01/02/2021,5100400853,90814983,"2,469.10",Amey LG Limited,4521,GB813047950,Capital Schemes,EXT ENG HIGHWAY,400205,,231800,HWY : Services,Carrington Design Stage 1,990000
http://statistics.data.gov.uk/id/statistical-geography/E08000072,Trafford,01/02/2021,5100400854,90814984,"6,571.50",Amey LG Limited,4521,GB813047950,Capital Schemes,EXT ENG HIGHWAY,400205,,231800,HWY : Services,Tranche 1,990000
http://statistics.data.gov.uk/id/statistical-geography/E08000073,Trafford,01/02/2021,5100400855,90814985,"18,093.59",Amey LG Limited,4521,GB813047950,Capital Schemes,EXT ENG HIGHWAY,400205,,231800,HWY : Services,Tranche 2,990000
http://statistics.data.gov.uk/id/statistical-geography/E08000074,Trafford,01/02/2021,5100400856,90814986,"10,087.63",Amey LG Limited,4521,GB813047950,Capital Schemes,EXT ENG HIGHWAY,400205,,231800,HWY : Services,Design Phase 2a,990000
http://statistics.data.gov.uk/id/statistical-geography/E08000075,Trafford,01/02/2021,5100401273,90815234,"1,974.00",Amey LG Limited,4521,GB813047950,Capital Schemes,LANDSCAPING WORKS,400460,,191700,FM : Property Management,Replace Play Area Gate,990000
http://statistics.data.gov.uk/id/statistical-geography/E08000076,Trafford,01/02/2021,5100401299,90809567,"10,596.02",Amey LG Limited,4521,GB813047950,OTP: COVID-19,SUPP & SERV COVID 19,220495,,191700,FM : Property Management,COVID Additional 2020,233007
http://statistics.data.gov.uk/id/statistical-geography/E08000077,Trafford,01/02/2021,5100401300,90809568,"10,949.22",Amey LG Limited,4521,GB813047950,OTP: COVID-19,SUPP & SERV COVID 19,220495,,191700,FM : Property Management,COVID Additional 2020,233007
http://statistics.data.gov.uk/id/statistical-geography/E08000078,Trafford,01/02/2021,5100401304,90804717,"14,724.33",Amey LG Limited,4521,GB813047950,GMRAPS,SUPPLIES/SERVICES,220472,,151300,CONSULTANCY : Environmental,GMRAPS 20/21,402033
http://statistics.data.gov.uk/id/statistical-geography/E08000079,Trafford,11/02/2021,5100401952,90815703,127.94,Amey LG Limited,4521,GB813047950,Claremont Centre,EXTERNAL DAY-TO-DAY,200100,,191700,FM : Property Management,Claremont Centre 2020/21,621001
http://statistics.data.gov.uk/id/statistical-geography/E08000080,Trafford,11/02/2021,5100402000,90815638,197.42,Amey LG Limited,4521,GB813047950,Sanyu Daycare,EXTERNAL DAY-TO-DAY,200100,,191700,FM : Property Management,Annual Key Holding,130570
http://statistics.data.gov.uk/id/statistical-geography/E08000081,Trafford,11/02/2021,5100402001,90815687,70.66,Amey LG Limited,4521,GB813047950,Sanyu Daycare,REPAIRS TO FIXTURES,201010,,151110,CONSULTANCY : Gen Construction,no heat in baby room,130570
http://statistics.data.gov.uk/id/statistical-geography/E08000082,Trafford,11/02/2021,5100402002,90815642,135.36,Amey LG Limited,4521,GB813047950,Sanyu Daycare,EXTERNAL DAY-TO-DAY,200100,,191700,FM : Property Management,Extractor servicing,130570
http://statistics.data.gov.uk/id/statistical-geography/E08000083,Trafford,11/02/2021,5100402003,90815688,59.5,Amey LG Limited,4521,GB813047950,Sanyu Daycare,REPAIRS TO FIXTURES,201010,,151110,CONSULTANCY : Gen Construction,Gas smell problem,130570
http://statistics.data.gov.uk/id/statistical-geography/E08000084,Trafford,11/02/2021,5100402007,90815663,140.65,Amey LG Limited,4521,GB813047950,Sanyu Daycare,REPAIRS TO FIXTURES,201010,,151110,CONSULTANCY : Gen Construction,Kitchen lock broken,130570
http://statistics.data.gov.uk/id/statistical-geography/E08000085,Trafford,11/02/2021,5100402009,90815667,89.25,Amey LG Limited,4521,GB813047950,Sanyu Daycare,EXT ALARMS/SEC,200015,,151110,CONSULTANCY : Gen Construction,Fire alarm remedial works,130570
http://statistics.data.gov.uk/id/statistical-geography/E08000086,Trafford,11/02/2021,5100402027,90815698,612.3,Amey LG Limited,4521,GB813047950,Claremont Centre,EXTERNAL DAY-TO-DAY,200100,,191700,FM : Property Management,Claremont Centre 2020/21,621001
http://statistics.data.gov.uk/id/statistical-geography/E08000087,Trafford,11/02/2021,5100402031,90815614,38,Amey LG Limited,4521,GB813047950,NEXUS EDUCATION CENT,EXTERNAL DAY-TO-DAY,200100,,151110,CONSULTANCY : Gen Construction,Amey 90815614,120631
http://statistics.data.gov.uk/id/statistical-geography/E08000088,Trafford,10/02/2021,5100401487,90815497,"1,021.47",Amey LG Limited,4521,GB813047950,Capital Schemes,A&M PAY TO CONTRACTO,400400,,391410,Roads : Construction,Disabled Facilities Grant,990000
http://statistics.data.gov.uk/id/statistical-geography/E08000089,Trafford,10/02/2021,5100401503,90802904,"23,966.81",Amey LG Limited,4521,GB813047950,High Street Safety,SUPP & SERV COVID 19,220495,,191700,FM : Property Management,Reopening High Streets Safely - ERDF,232110
http://statistics.data.gov.uk/id/statistical-geography/E08000090,Trafford,10/02/2021,5100401935,90815666,809.2,Amey LG Limited,4521,GB813047950,William Wroe Golf Cl,EXTERNAL DAY-TO-DAY,200100,,191700,FM : Property Management,Security Works - William Wroe,622622
http://statistics.data.gov.uk/id/statistical-geography/E08000091,Trafford,10/02/2021,5100401936,90815671,190.4,Amey LG Limited,4521,GB813047950,ASCOT HOUSE PENNINE,EXTERNAL DAY-TO-DAY,200100,,151300,CONSULTANCY : Environmental,PSI Call out to Ascot re. Fridge [2],154013
http://statistics.data.gov.uk/id/statistical-geography/E08000092,Trafford,10/02/2021,5100401937,90815673,135.66,Amey LG Limited,4521,GB813047950,Claremont Centre,EXTERNAL DAY-TO-DAY,200100,,191700,FM : Property Management,Claremont Centre 2020/21,621001
http://statistics.data.gov.uk/id/statistical-geography/E08000093,Trafford,10/02/2021,5100401938,90815686,"9,421.23",Amey LG Limited,4521,GB813047950,ASCOT HOUSE PENNINE,SUPP & SERV COVID 19,220495,,191700,FM : Property Management,Works for Visitor Pods,154013
http://statistics.data.gov.uk/id/statistical-geography/E08000094,Trafford,10/02/2021,5100401950,90815701,311.79,Amey LG Limited,4521,GB813047950,Sanyu Daycare,EXTERNAL DAY-TO-DAY,200100,,191700,FM : Property Management,Legionella Apr - Nov,130570
http://statistics.data.gov.uk/id/statistical-geography/E08000095,Trafford,10/02/2021,5100401951,90815702,175.54,Amey LG Limited,4521,GB813047950,LP:TRAF. WATER SC -,EXTERNAL DAY-TO-DAY,200100,,391311,Open Spaces : Maintenance,Invoice 90815019,552020
http://statistics.data.gov.uk/id/statistical-geography/E08000096,Trafford,10/02/2021,5100401954,90815704,285.6,Amey LG Limited,4521,GB813047950,LP:ALLOTMENTS,REPAIRS TO FIXTURES,201010,,191700,FM : Property Management,Risk Assesment,550920
http://statistics.data.gov.uk/id/statistical-geography/E08000097,Trafford,10/02/2021,5100401961,1045492,73.04,Amey LG Limited,4521,GB813047950,NEXUS EDUCATION CENT,EXT REM OF RUBBISH,200420,,182013,Waste Mgt : Waste Collection,Amey Waste disposal plus credit,120631
http://statistics.data.gov.uk/id/statistical-geography/E08000098,Trafford,10/02/2021,5100401962,1045492,-36.52,Amey LG Limited,4521,GB813047950,NEXUS EDUCATION CENT,EXT REM OF RUBBISH,200420,,182013,Waste Mgt : Waste Collection,Amey Waste disposal plus credit,120631
http://statistics.data.gov.uk/id/statistical-geography/E08000099,Trafford,10/02/2021,5100401964,90815717,"15,809.61",Amey LG Limited,4521,GB813047950,Capital Schemes,EXT PROJECT MAN,400220,,191700,FM : Property Management,Capital Project Schemes,990000
http://statistics.data.gov.uk/id/statistical-geography/E08000100,Trafford,10/02/2021,5100401965,90815650,600.6,Amey LG Limited,4521,GB813047950,Kindle Lodge,PROFESSIONAL FEES,220456,,191700,FM : Property Management,Toilet leak at Kindle Lodge,130450
http://statistics.data.gov.uk/id/statistical-geography/E08000101,Trafford,10/02/2021,5100401966,90815675,88.06,Amey LG Limited,4521,GB813047950,Kindle Lodge,EQUIPMENT - PURCHASE,220048,,191700,FM : Property Management,Alarm engineer for Kindle Lodge,130450
http://statistics.data.gov.uk/id/statistical-geography/E08000102,Trafford,10/02/2021,5100401967,90815678,291.84,Amey LG Limited,4521,GB813047950,Kindle Lodge,PROFESSIONAL FEES,220456,,191700,FM : Property Management,Repairs needed at Kindle Lodge,130450
http://statistics.data.gov.uk/id/statistical-geography/E08000103,Trafford,10/02/2021,5100401968,90815679,317.08,Amey LG Limited,4521,GB813047950,Kindle Lodge,EXT VANDALISM,200020,,191700,FM : Property Management,Replacement of lock by AT Nolan,130450
http://statistics.data.gov.uk/id/statistical-geography/E08000104,Trafford,10/02/2021,5100401487,90815497,"1,021.47",Amey LG Limited,4521,GB813047950,Capital Schemes,A&M PAY TO CONTRACTO,400400,,391410,Roads : Construction,Disabled Facilities Grant,990000
http://statistics.data.gov.uk/id/statistical-geography/E08000105,Trafford,10/02/2021,5100401503,90802904,"23,966.81",Amey LG Limited,4521,GB813047950,High Street Safety,SUPP & SERV COVID 19,220495,,191700,FM : Property Management,Reopening High Streets Safely - ERDF,232110
http://statistics.data.gov.uk/id/statistical-geography/E08000106,Trafford,10/02/2021,5100401935,90815666,809.2,Amey LG Limited,4521,GB813047950,William Wroe Golf Cl,EXTERNAL DAY-TO-DAY,200100,,191700,FM : Property Management,Security Works - William Wroe,622622
http://statistics.data.gov.uk/id/statistical-geography/E08000107,Trafford,10/02/2021,5100401936,90815671,190.4,Amey LG Limited,4521,GB813047950,ASCOT HOUSE PENNINE,EXTERNAL DAY-TO-DAY,200100,,151300,CONSULTANCY : Environmental,PSI Call out to Ascot re. Fridge [2],154013
http://statistics.data.gov.uk/id/statistical-geography/E08000108,Trafford,10/02/2021,5100401937,90815673,135.66,Amey LG Limited,4521,GB813047950,Claremont Centre,EXTERNAL DAY-TO-DAY,200100,,191700,FM : Property Management,Claremont Centre 2020/21,621001
http://statistics.data.gov.uk/id/statistical-geography/E08000109,Trafford,10/02/2021,5100401938,90815686,"9,421.23",Amey LG Limited,4521,GB813047950,ASCOT HOUSE PENNINE,SUPP & SERV COVID 19,220495,,191700,FM : Property Management,Works for Visitor Pods,154013
http://statistics.data.gov.uk/id/statistical-geography/E08000110,Trafford,10/02/2021,5100401950,90815701,311.79,Amey LG Limited,4521,GB813047950,Sanyu Daycare,EXTERNAL DAY-TO-DAY,200100,,191700,FM : Property Management,Legionella Apr - Nov,130570
http://statistics.data.gov.uk/id/statistical-geography/E08000111,Trafford,10/02/2021,5100401951,90815702,175.54,Amey LG Limited,4521,GB813047950,LP:TRAF. WATER SC -,EXTERNAL DAY-TO-DAY,200100,,391311,Open Spaces : Maintenance,Invoice 90815019,552020
http://statistics.data.gov.uk/id/statistical-geography/E08000112,Trafford,10/02/2021,5100401954,90815704,285.6,Amey LG Limited,4521,GB813047950,LP:ALLOTMENTS,REPAIRS TO FIXTURES,201010,,191700,FM : Property Management,Risk Assesment,550920
http://statistics.data.gov.uk/id/statistical-geography/E08000113,Trafford,10/02/2021,5100401961,1045492,73.04,Amey LG Limited,4521,GB813047950,NEXUS EDUCATION CENT,EXT REM OF RUBBISH,200420,,182013,Waste Mgt : Waste Collection,Amey Waste disposal plus credit,120631
http://statistics.data.gov.uk/id/statistical-geography/E08000114,Trafford,10/02/2021,5100401962,1045492,-36.52,Amey LG Limited,4521,GB813047950,NEXUS EDUCATION CENT,EXT REM OF RUBBISH,200420,,182013,Waste Mgt : Waste Collection,Amey Waste disposal plus credit,120631
http://statistics.data.gov.uk/id/statistical-geography/E08000115,Trafford,10/02/2021,5100401964,90815717,"15,809.61",Amey LG Limited,4521,GB813047950,Capital Schemes,EXT PROJECT MAN,400220,,191700,FM : Property Management,Capital Project Schemes,990000
http://statistics.data.gov.uk/id/statistical-geography/E08000116,Trafford,10/02/2021,5100401965,90815650,600.6,Amey LG Limited,4521,GB813047950,Kindle Lodge,PROFESSIONAL FEES,220456,,191700,FM : Property Management,Toilet leak at Kindle Lodge,130450
http://statistics.data.gov.uk/id/statistical-geography/E08000117,Trafford,10/02/2021,5100401966,90815675,88.06,Amey LG Limited,4521,GB813047950,Kindle Lodge,EQUIPMENT - PURCHASE,220048,,191700,FM : Property Management,Alarm engineer for Kindle Lodge,130450
http://statistics.data.gov.uk/id/statistical-geography/E08000118,Trafford,10/02/2021,5100401967,90815678,291.84,Amey LG Limited,4521,GB813047950,Kindle Lodge,PROFESSIONAL FEES,220456,,191700,FM : Property Management,Repairs needed at Kindle Lodge,130450
http://statistics.data.gov.uk/id/statistical-geography/E08000119,Trafford,10/02/2021,5100401968,90815679,317.08,Amey LG Limited,4521,GB813047950,Kindle Lodge,EXT VANDALISM,200020,,191700,FM : Property Management,Replacement of lock by AT Nolan,130450
http://statistics.data.gov.uk/id/statistical-geography/E08000120,Trafford,15/02/2021,5100402087,21020093,"156,992.37",Seddon Construction Ltd,4355,GB100161491,Capital Schemes,A&M PAY TO CONTRACTO,400400,,391100,CONSTRUCTION : Buildings,Delamere School - Pool,990000
http://statistics.data.gov.uk/id/statistical-geography/E08000121,Trafford,11/02/2021,5100402035,21020092,"101,343.94",Seddon Construction Ltd,4355,GB100161491,Capital Schemes,A&M PAY TO CONTRACTO,400400,,391100,CONSTRUCTION : Buildings,Delamere School - Pool,990000
http://statistics.data.gov.uk/id/statistical-geography/E08000122,Trafford,10/02/2021,5100401905,100250,"16,169.00",Seddon Construction Ltd,4355,GB100161491,Capital Schemes,EXT ARCHITECT,400200,,151110,CONSULTANCY : Gen Construction,Pre-Contract Works-Sale Mag Scheme,990000
http://statistics.data.gov.uk/id/statistical-geography/E08000123,Trafford,10/02/2021,5100401905,100250,50,Seddon Construction Ltd,4355,GB100161491,Capital Schemes,EXT ARCHITECT,400200,,151110,CONSULTANCY : Gen Construction,Pre-Contract Works-Sale Mag Scheme,990000
http://statistics.data.gov.uk/id/statistical-geography/E08000124,Trafford,22/02/2021,1901404086,8121602,201,West Area Family Support Service,1410,,WEST : S17 & CLIENT,SECT 17 PAY ITEM 6,220760,,,,,130670
http://statistics.data.gov.uk/id/statistical-geography/E08000125,Trafford,22/02/2021,1901404086,8121602,4.56,West Area Family Support Service,1410,,FAMILY SUP. WEST,MOBILE COMMUNICATION,220540,,,,,130200
http://statistics.data.gov.uk/id/statistical-geography/E08000126,Trafford,11/02/2021,1901402224,21,"1,003.00",St Ambrose College,435,GB133780025,YP:St Ambrose Colleg,SCHOOL BUDGET SHARE,280040,,201700,FINANCIAL SERVICES : Grants,Redacted,103435
http://statistics.data.gov.uk/id/statistical-geography/E08000127,Trafford,11/02/2021,1901402307,21,"524,419.00",STRETFORD HIGH SCHOOL,431,,YP:Stretford High Sc,SCHOOL BUDGET SHARE,280040,,,,Redacted,101431
http://statistics.data.gov.uk/id/statistical-geography/E08000128,Trafford,08/02/2021,1901400738,21,"2,003.42",STRETFORD HIGH SCHOOL,431,,YP:Stretford High,Schools' Unall Ch Bk,220852,,,,,102431
http://statistics.data.gov.uk/id/statistical-geography/E08000129,Trafford,08/02/2021,1901400738,21,"25,019.66",STRETFORD HIGH SCHOOL,431,,YP:Stretford High,Schools' Unall Ch Bk,220852,,,,,102431
http://statistics.data.gov.uk/id/statistical-geography/E08000130,Trafford,08/02/2021,1901400738,21,"16,117.00",STRETFORD HIGH SCHOOL,431,,YP:Stretford High,Schools' Unall Ch Bk,220852,,,,,102431
http://statistics.data.gov.uk/id/statistical-geography/E08000131,Trafford,08/02/2021,1901400738,21,"34,664.65",STRETFORD HIGH SCHOOL,431,,YP:Stretford High,Schools' Unall Ch Bk,220852,,,,,102431
http://statistics.data.gov.uk/id/statistical-geography/E08000132,Trafford,08/02/2021,1901400738,21,"14,217.19",STRETFORD HIGH SCHOOL,431,,YP:Stretford High,Schools' Unall Ch Bk,220852,,,,,102431
http://statistics.data.gov.uk/id/statistical-geography/E08000133,Trafford,08/02/2021,1901400738,21,"-35,944.05",STRETFORD HIGH SCHOOL,431,,YP:Stretford High,SCH UNALL CHQ BK INC,360107,,,,,102431
http://statistics.data.gov.uk/id/statistical-geography/E08000134,Trafford,08/02/2021,1901400738,21,"-549,609.93",STRETFORD HIGH SCHOOL,431,,YP:Stretford High,SCH UNALL CHQ BK INC,360107,,,,,102431
http://statistics.data.gov.uk/id/statistical-geography/E08000135,Trafford,08/02/2021,1901400738,21,"-92,021.92",STRETFORD HIGH SCHOOL,431,,School Cash Advances,CB Schs Contra Entry,290025,,,,,900110
http://statistics.data.gov.uk/id/statistical-geography/E08000136,Trafford,08/02/2021,1901400738,21,"585,553.98",STRETFORD HIGH SCHOOL,431,,School Cash Advances,SCH UNALL CHQ BK INC,360107,,,,,900110
http://statistics.data.gov.uk/id/statistical-geography/E08000137,Trafford,11/02/2021,1901402225,21,"3,965.00",Urmston Grammar School,429,GB120165661,YP:Urmston Grammar S,SCHOOL BUDGET SHARE,280040,,171011,EDUCATION :  Children,Redacted,103429
http://statistics.data.gov.uk/id/statistical-geography/E08000138,Trafford,17/02/2021,1901403216,21,"-6,588.39",Stretford Grammar School,428,,Stretford Grammar,Schools' Unall Ch Bk,220852,,171011,EDUCATION :  Children,,102428
http://statistics.data.gov.uk/id/statistical-geography/E08000139,Trafford,17/02/2021,1901403216,21,-200,Stretford Grammar School,428,,Stretford Grammar,Schools' Unall Ch Bk,220852,,171011,EDUCATION :  Children,,102428
http://statistics.data.gov.uk/id/statistical-geography/E08000140,Trafford,17/02/2021,1901403216,21,"11,306.40",Stretford Grammar School,428,,Stretford Grammar,Schools' Unall Ch Bk,220852,,171011,EDUCATION :  Children,,102428
http://statistics.data.gov.uk/id/statistical-geography/E08000141,Trafford,17/02/2021,1901403216,21,"211,386.70",Stretford Grammar School,428,,Stretford Grammar,Schools' Unall Ch Bk,220852,,171011,EDUCATION :  Children,,102428
http://statistics.data.gov.uk/id/statistical-geography/E08000142,Trafford,17/02/2021,1901403216,21,"52,447.60",Stretford Grammar School,428,,Stretford Grammar,Schools' Unall Ch Bk,220852,,171011,EDUCATION :  Children,,102428
http://statistics.data.gov.uk/id/statistical-geography/E08000143,Trafford,17/02/2021,1901403216,21,-6.95,Stretford Grammar School,428,,Stretford Grammar,SCH UNALL CHQ BK INC,360107,,171011,EDUCATION :  Children,,102428
http://statistics.data.gov.uk/id/statistical-geography/E08000144,Trafford,17/02/2021,1901403216,21,"-451,930.39",Stretford Grammar School,428,,Stretford Grammar,SCH UNALL CHQ BK INC,360107,,171011,EDUCATION :  Children,,102428
http://statistics.data.gov.uk/id/statistical-geography/E08000145,Trafford,17/02/2021,1901403216,21,"-268,352.31",Stretford Grammar School,428,,Stretford Grammar,Schools' Unall Ch Bk,220852,,171011,EDUCATION :  Children,,102428
http://statistics.data.gov.uk/id/statistical-geography/E08000146,Trafford,17/02/2021,1901403216,21,"451,937.34",Stretford Grammar School,428,,Stretford Grammar,SCH UNALL CHQ BK INC,360107,,171011,EDUCATION :  Children,,102428
http://statistics.data.gov.uk/id/statistical-geography/E08000147,Trafford,11/02/2021,1901402306,21,"387,283.00",Stretford Grammar School,428,,YP:Stretford Grammar,SCHOOL BUDGET SHARE,280040,,171011,EDUCATION :  Children,Redacted,101428
http://statistics.data.gov.uk/id/statistical-geography/E08000148,Trafford,11/02/2021,1901402246,21,"37,439.00",Ashton on Mersey School,426,GB132924425,YP:Ashton on Mersey,SCHOOL BUDGET SHARE,280040,,171011,EDUCATION :  Children,Redacted,103426
http://statistics.data.gov.uk/id/statistical-geography/E08000149,Trafford,15/02/2021,1901402410,21,"9,936.73",Blessed Thomas Halford Sch,424,,B.T.H. School,Schools' Unall Ch Bk,220852,,171000,EDUCATION : Services,,102424
http://statistics.data.gov.uk/id/statistical-geography/E08000150,Trafford,15/02/2021,1901402410,21,"14,316.00",Blessed Thomas Halford Sch,424,,B.T.H. School,Schools' Unall Ch Bk,220852,,171000,EDUCATION : Services,,102424
http://statistics.data.gov.uk/id/statistical-geography/E08000151,Trafford,15/02/2021,1901402410,21,"50,763.20",Blessed Thomas Halford Sch,424,,B.T.H. School,Schools' Unall Ch Bk,220852,,171000,EDUCATION : Services,,102424
http://statistics.data.gov.uk/id/statistical-geography/E08000152,Trafford,15/02/2021,1901402410,21,"38,210.59",Blessed Thomas Halford Sch,424,,B.T.H. School,Schools' Unall Ch Bk,220852,,171000,EDUCATION : Services,,102424
http://statistics.data.gov.uk/id/statistical-geography/E08000153,Trafford,15/02/2021,1901402410,21,"-12,713.73",Blessed Thomas Halford Sch,424,,B.T.H. School,SCH UNALL CHQ BK INC,360107,,171000,EDUCATION : Services,,102424
http://statistics.data.gov.uk/id/statistical-geography/E08000154,Trafford,15/02/2021,1901402410,21,-444.5,Blessed Thomas Halford Sch,424,,B.T.H. School,SCH UNALL CHQ BK INC,360107,,171000,EDUCATION : Services,,102424
http://statistics.data.gov.uk/id/statistical-geography/E08000155,Trafford,15/02/2021,1901402410,21,"-691,637.29",Blessed Thomas Halford Sch,424,,B.T.H. School,SCH UNALL CHQ BK INC,360107,,171000,EDUCATION : Services,,102424
http://statistics.data.gov.uk/id/statistical-geography/E08000156,Trafford,15/02/2021,1901402410,21,"-113,226.52",Blessed Thomas Halford Sch,424,,B.T.H. School,Schools' Unall Ch Bk,220852,,171000,EDUCATION : Services,,102424
http://statistics.data.gov.uk/id/statistical-geography/E08000157,Trafford,15/02/2021,1901402410,21,"704,795.52",Blessed Thomas Halford Sch,424,,B.T.H. School,SCH UNALL CHQ BK INC,360107,,171000,EDUCATION : Services,,102424
http://statistics.data.gov.uk/id/statistical-geography/E08000158,Trafford,11/02/2021,1901402308,21,"686,185.00",Blessed Thomas Halford Sch,424,,YP:Blessed Thomas Ho,SCHOOL BUDGET SHARE,280040,,171000,EDUCATION : Services,Redacted,101424
http://statistics.data.gov.uk/id/statistical-geography/E08000159,Trafford,17/02/2021,1901403214,21,"1,649.75",Lostock College,414,,YP:Lostock College,Schools' Unall Ch Bk,220852,,171011,EDUCATION :  Children,,102414
http://statistics.data.gov.uk/id/statistical-geography/E08000160,Trafford,17/02/2021,1901403214,21,"1,041.78",Lostock College,414,,YP:Lostock College,Schools' Unall Ch Bk,220852,,171011,EDUCATION :  Children,,102414
http://statistics.data.gov.uk/id/statistical-geography/E08000161,Trafford,17/02/2021,1901403214,21,"36,683.60",Lostock College,414,,YP:Lostock College,Schools' Unall Ch Bk,220852,,171011,EDUCATION :  Children,,102414
http://statistics.data.gov.uk/id/statistical-geography/E08000162,Trafford,17/02/2021,1901403214,21,"110,960.77",Lostock College,414,,YP:Lostock College,Schools' Unall Ch Bk,220852,,171011,EDUCATION :  Children,,102414
http://statistics.data.gov.uk/id/statistical-geography/E08000163,Trafford,17/02/2021,1901403214,21,-4.29,Lostock College,414,,YP:Lostock College,SCH UNALL CHQ BK INC,360107,,171011,EDUCATION :  Children,,102414
http://statistics.data.gov.uk/id/statistical-geography/E08000164,Trafford,17/02/2021,1901403214,21,45.7,Lostock College,414,,YP:Lostock College,SCH UNALL CHQ BK INC,360107,,171011,EDUCATION :  Children,,102414
http://statistics.data.gov.uk/id/statistical-geography/E08000165,Trafford,17/02/2021,1901403214,21,"-49,428.32",Lostock College,414,,YP:Lostock College,SCH UNALL CHQ BK INC,360107,,171011,EDUCATION :  Children,,102414
http://statistics.data.gov.uk/id/statistical-geography/E08000166,Trafford,17/02/2021,1901403214,21,"-150,335.90",Lostock College,414,,School Cash Advances,CB Schs Contra Entry,290025,,171011,EDUCATION :  Children,,900110
http://statistics.data.gov.uk/id/statistical-geography/E08000167,Trafford,17/02/2021,1901403214,21,"49,386.91",Lostock College,414,,School Cash Advances,SCH UNALL CHQ BK INC,360107,,171011,EDUCATION :  Children,,900110
http://statistics.data.gov.uk/id/statistical-geography/E08000168,Trafford,11/02/2021,1901402270,21,"129,888.00",Lostock College,414,,School Cash Advances,SCHOOL BUDGET SHARE,280040,,171011,EDUCATION :  Children,LostColAdvFeb21,900110
http://statistics.data.gov.uk/id/statistical-geography/E08000169,Trafford,11/02/2021,1901402231,21,"4,220.00",Flixton Girls School Academy Trust,413,GB124660431,YP:Flixton Girls Hig,SCHOOL BUDGET SHARE,280040,,201700,FINANCIAL SERVICES : Grants,Redacted,103413
http://statistics.data.gov.uk/id/statistical-geography/E08000170,Trafford,11/02/2021,1901402232,21,"6,765.00",BROADOAK  SCHOOL,412,,YP:Broadoak High Sch,SCHOOL BUDGET SHARE,280040,,,,Redacted,103412
http://statistics.data.gov.uk/id/statistical-geography/E08000171,Trafford,11/02/2021,1901402305,21,"463,224.00",Sale High School,406,GB149191256,YP:Sale High School,SCHOOL BUDGET SHARE,280040,,171011,EDUCATION :  Children,Redacted,101406
http://statistics.data.gov.uk/id/statistical-geography/E08000172,Trafford,08/02/2021,1901400733,21,-243,Sale High School,406,GB149191256,YP:Sale High School,Schools' Unall Ch Bk,220852,,171011,EDUCATION :  Children,,102406
http://statistics.data.gov.uk/id/statistical-geography/E08000173,Trafford,08/02/2021,1901400733,21,"8,357.65",Sale High School,406,GB149191256,YP:Sale High School,Schools' Unall Ch Bk,220852,,171011,EDUCATION :  Children,,102406
http://statistics.data.gov.uk/id/statistical-geography/E08000174,Trafford,08/02/2021,1901400733,21,"13,350.60",Sale High School,406,GB149191256,YP:Sale High School,Schools' Unall Ch Bk,220852,,171011,EDUCATION :  Children,,102406
http://statistics.data.gov.uk/id/statistical-geography/E08000175,Trafford,08/02/2021,1901400733,21,"28,066.25",Sale High School,406,GB149191256,YP:Sale High School,Schools' Unall Ch Bk,220852,,171011,EDUCATION :  Children,,102406
http://statistics.data.gov.uk/id/statistical-geography/E08000176,Trafford,08/02/2021,1901400733,21,"-3,447.83",Sale High School,406,GB149191256,YP:Sale High School,Schools' Unall Ch Bk,220852,,171011,EDUCATION :  Children,,102406
http://statistics.data.gov.uk/id/statistical-geography/E08000177,Trafford,08/02/2021,1901400733,21,"-13,236.07",Sale High School,406,GB149191256,YP:Sale High School,SCH UNALL CHQ BK INC,360107,,171011,EDUCATION :  Children,,102406
http://statistics.data.gov.uk/id/statistical-geography/E08000178,Trafford,08/02/2021,1901400733,21,"-456,242.23",Sale High School,406,GB149191256,YP:Sale High School,SCH UNALL CHQ BK INC,360107,,171011,EDUCATION :  Children,,102406
http://statistics.data.gov.uk/id/statistical-geography/E08000179,Trafford,08/02/2021,1901400733,21,"-46,083.67",Sale High School,406,GB149191256,School Cash Advances,CB Schs Contra Entry,290025,,171011,EDUCATION :  Children,,900110
http://statistics.data.gov.uk/id/statistical-geography/E08000180,Trafford,08/02/2021,1901400733,21,"469,478.30",Sale High School,406,GB149191256,School Cash Advances,SCH UNALL CHQ BK INC,360107,,171011,EDUCATION :  Children,,900110
http://statistics.data.gov.uk/id/statistical-geography/E08000181,Trafford,11/02/2021,1901402221,21,"1,206.00",AGGS Academy Trust,404,,YP:Altrincham Gramma,SCHOOL BUDGET SHARE,280040,,,,Redacted,103404
http://statistics.data.gov.uk/id/statistical-geography/E08000182,Trafford,11/02/2021,1901402227,21,"2,345.00",Altrincham Grammar School for Boys,403,GB121527841,YP:Altrincham Gramma,SCHOOL BUDGET SHARE,280040,,,,Redacted,103403
http://statistics.data.gov.uk/id/statistical-geography/E08000183,Trafford,10/02/2021,1901402205,2.0072E+11,195.9,Registrar Office Imprest,1026,,REGISTRATION OF BIRT,SUPP & SERV COVID 19,220495,,,,,603000
http://statistics.data.gov.uk/id/statistical-geography/E08000184,Trafford,10/02/2021,1901402205,2.0072E+11,16.36,Registrar Office Imprest,1026,,REGISTRATION OF BIRT,SUPP & SERV COVID 19,220495,,,,,603000
http://statistics.data.gov.uk/id/statistical-geography/E08000185,Trafford,11/02/2021,1901402260,21,"15,380.00",EGERTON HIGH SCHOOL,514,,School Cash Advances,SCHOOL BUDGET SHARE,280040,,,,Redacted,900110
http://statistics.data.gov.uk/id/statistical-geography/E08000186,Trafford,10/02/2021,1901401124,21,954.73,EGERTON HIGH SCHOOL,514,,YP:Egerton,Schools' Unall Ch Bk,220852,,,,,102514
http://statistics.data.gov.uk/id/statistical-geography/E08000187,Trafford,10/02/2021,1901401124,21,213.55,EGERTON HIGH SCHOOL,514,,YP:Egerton,Schools' Unall Ch Bk,220852,,,,,102514
http://statistics.data.gov.uk/id/statistical-geography/E08000188,Trafford,10/02/2021,1901401124,21,211.6,EGERTON HIGH SCHOOL,514,,YP:Egerton,Schools' Unall Ch Bk,220852,,,,,102514
http://statistics.data.gov.uk/id/statistical-geography/E08000189,Trafford,10/02/2021,1901401124,21,"15,320.35",EGERTON HIGH SCHOOL,514,,YP:Egerton,Schools' Unall Ch Bk,220852,,,,,102514
http://statistics.data.gov.uk/id/statistical-geography/E08000190,Trafford,10/02/2021,1901401124,21,"7,198.13",EGERTON HIGH SCHOOL,514,,YP:Egerton,Schools' Unall Ch Bk,220852,,,,,102514
http://statistics.data.gov.uk/id/statistical-geography/E08000191,Trafford,10/02/2021,1901401124,21,"-34,923.16",EGERTON HIGH SCHOOL,514,,YP:Egerton,SCH UNALL CHQ BK INC,360107,,,,,102514
http://statistics.data.gov.uk/id/statistical-geography/E08000192,Trafford,10/02/2021,1901401124,21,"-5,718.96",EGERTON HIGH SCHOOL,514,,YP:Egerton,SCH UNALL CHQ BK INC,360107,,,,,102514
http://statistics.data.gov.uk/id/statistical-geography/E08000193,Trafford,10/02/2021,1901401124,21,"-23,898.36",EGERTON HIGH SCHOOL,514,,School Cash Advances,CB Schs Contra Entry,290025,,,,,900110
http://statistics.data.gov.uk/id/statistical-geography/E08000194,Trafford,10/02/2021,1901401124,21,"40,642.12",EGERTON HIGH SCHOOL,514,,School Cash Advances,SCH UNALL CHQ BK INC,360107,,,,,900110
http://statistics.data.gov.uk/id/statistical-geography/E08000195,Trafford,03/02/2021,1901400243,486654,"21,041.92",Creative Support Ltd,100160,,CreativeSupp Respite,EXT RES CARE FEES,230842,,321014,SOCIAL CARE : Domiciliary Care,Redacted,251216
http://statistics.data.gov.uk/id/statistical-geography/E08000196,Trafford,08/02/2021,1901400837,487116,959.4,Creative Support Ltd,100160,,LEARN DIS 18-64 LT,EXT DOM CARE SPOT CO,230845,,321014,SOCIAL CARE : Domiciliary Care,Redacted,157003
http://statistics.data.gov.uk/id/statistical-geography/E08000197,Trafford,08/02/2021,1901400837,487116,-959.4,Creative Support Ltd,100160,,LEARN DIS 18-64 LT,EXT DOM CARE SPOT CO,230845,,321014,SOCIAL CARE : Domiciliary Care,Redacted,157003
http://statistics.data.gov.uk/id/statistical-geography/E08000198,Trafford,08/02/2021,1901400837,487116,127.92,Creative Support Ltd,100160,,MENT HLT 18-64 LT,EXT DOM CARE SPOT CO,230845,,321014,SOCIAL CARE : Domiciliary Care,Redacted,157004
http://statistics.data.gov.uk/id/statistical-geography/E08000199,Trafford,08/02/2021,1901400837,487116,-127.92,Creative Support Ltd,100160,,MENT HLT 18-64 LT,EXT DOM CARE SPOT CO,230845,,321014,SOCIAL CARE : Domiciliary Care,Redacted,157004
http://statistics.data.gov.uk/id/statistical-geography/E08000200,Trafford,08/02/2021,1901400837,487116,255.84,Creative Support Ltd,100160,,SOCIAL SUPPORT 18-64,EXT DOM CARE SPOT CO,230845,,321014,SOCIAL CARE : Domiciliary Care,Redacted,157005
http://statistics.data.gov.uk/id/statistical-geography/E08000201,Trafford,08/02/2021,1901400837,487116,-255.84,Creative Support Ltd,100160,,SOCIAL SUPPORT 18-64,EXT DOM CARE SPOT CO,230845,,321014,SOCIAL CARE : Domiciliary Care,Redacted,157005
http://statistics.data.gov.uk/id/statistical-geography/E08000202,Trafford,08/02/2021,1901400837,487116,383.76,Creative Support Ltd,100160,,MENT HLT 18-64 LT,EXT DOM CARE SPOT CO,230845,,321014,SOCIAL CARE : Domiciliary Care,Redacted,157004
http://statistics.data.gov.uk/id/statistical-geography/E08000203,Trafford,08/02/2021,1901400838,487123,191.88,Creative Support Ltd,100160,,MENT HLT 18-64 LT,EXT DOM CARE SPOT CO,230845,,321014,SOCIAL CARE : Domiciliary Care,Redacted,157004
http://statistics.data.gov.uk/id/statistical-geography/E08000204,Trafford,08/02/2021,1901400839,487315,255.84,Creative Support Ltd,100160,,MENT HLT 18-64 LT,EXT DOM CARE SPOT CO,230845,,321014,SOCIAL CARE : Domiciliary Care,Redacted,157004
http://statistics.data.gov.uk/id/statistical-geography/E08000205,Trafford,08/02/2021,1901400839,487315,191.88,Creative Support Ltd,100160,,MENT HLT 18-64 LT,EXT DOM CARE SPOT CO,230845,,321014,SOCIAL CARE : Domiciliary Care,Redacted,157004
http://statistics.data.gov.uk/id/statistical-geography/E08000206,Trafford,08/02/2021,1901400839,487315,671.58,Creative Support Ltd,100160,,MENT HLT 65-74 LT,EXT DOM CARE SPOT CO,230845,,321014,SOCIAL CARE : Domiciliary Care,Redacted,157014
http://statistics.data.gov.uk/id/statistical-geography/E08000207,Trafford,08/02/2021,1901400839,487315,"1,119.30",Creative Support Ltd,100160,,MENT HLT 18-64 LT,EXT DOM CARE SPOT CO,230845,,321014,SOCIAL CARE : Domiciliary Care,Redacted,157004
http://statistics.data.gov.uk/id/statistical-geography/E08000208,Trafford,08/02/2021,1901400839,487315,191.88,Creative Support Ltd,100160,,MENT HLT 18-64 LT,EXT DOM CARE SPOT CO,230845,,321014,SOCIAL CARE : Domiciliary Care,Redacted,157004
http://statistics.data.gov.uk/id/statistical-geography/E08000209,Trafford,08/02/2021,1901400839,487315,735.54,Creative Support Ltd,100160,,MENT HLT 18-64 LT,EXT DOM CARE SPOT CO,230845,,321014,SOCIAL CARE : Domiciliary Care,Redacted,157004
http://statistics.data.gov.uk/id/statistical-geography/E08000210,Trafford,08/02/2021,1901400839,487315,255.84,Creative Support Ltd,100160,,PHYS SUPP 18-64 LT,EXT DOM CARE SPOT CO,230845,,321014,SOCIAL CARE : Domiciliary Care,Redacted,157000
http://statistics.data.gov.uk/id/statistical-geography/E08000211,Trafford,08/02/2021,1901400840,487316,383.76,Creative Support Ltd,100160,,MENT HLT 18-64 LT,EXT DOM CARE SPOT CO,230845,,321014,SOCIAL CARE : Domiciliary Care,Redacted,157004
http://statistics.data.gov.uk/id/statistical-geography/E08000212,Trafford,08/02/2021,1901400840,487316,351.78,Creative Support Ltd,100160,,MENT HLT 18-64 LT,EXT DOM CARE SPOT CO,230845,,321014,SOCIAL CARE : Domiciliary Care,Redacted,157004
http://statistics.data.gov.uk/id/statistical-geography/E08000213,Trafford,08/02/2021,1901400840,487316,639.6,Creative Support Ltd,100160,,MENT HLT 18-64 LT,EXT DOM CARE SPOT CO,230845,,321014,SOCIAL CARE : Domiciliary Care,Redacted,157004
http://statistics.data.gov.uk/id/statistical-geography/E08000214,Trafford,08/02/2021,1901400840,487316,255.84,Creative Support Ltd,100160,,MENT HLT 18-64 LT,EXT DOM CARE SPOT CO,230845,,321014,SOCIAL CARE : Domiciliary Care,Redacted,157004
http://statistics.data.gov.uk/id/statistical-geography/E08000215,Trafford,08/02/2021,1901400840,487316,255.84,Creative Support Ltd,100160,,MENT HLT 18-64 LT,EXT DOM CARE SPOT CO,230845,,321014,SOCIAL CARE : Domiciliary Care,Redacted,157004
http://statistics.data.gov.uk/id/statistical-geography/E08000216,Trafford,08/02/2021,1901400840,487316,255.84,Creative Support Ltd,100160,,MENT HLT 18-64 LT,EXT DOM CARE SPOT CO,230845,,321014,SOCIAL CARE : Domiciliary Care,Redacted,157004
http://statistics.data.gov.uk/id/statistical-geography/E08000217,Trafford,08/02/2021,1901400840,487316,447.72,Creative Support Ltd,100160,,MENT HLT 18-64 LT,EXT DOM CARE SPOT CO,230845,,321014,SOCIAL CARE : Domiciliary Care,Redacted,157004
http://statistics.data.gov.uk/id/statistical-geography/E08000218,Trafford,08/02/2021,1901400840,487316,255.84,Creative Support Ltd,100160,,MENT HLT 18-64 LT,EXT DOM CARE SPOT CO,230845,,321014,SOCIAL CARE : Domiciliary Care,Redacted,157004
http://statistics.data.gov.uk/id/statistical-geography/E08000219,Trafford,08/02/2021,1901400840,487316,255.84,Creative Support Ltd,100160,,MENT HLT 18-64 LT,EXT DOM CARE SPOT CO,230845,,321014,SOCIAL CARE : Domiciliary Care,Redacted,157004
http://statistics.data.gov.uk/id/statistical-geography/E08000220,Trafford,08/02/2021,1901400841,487317,415.74,Creative Support Ltd,100160,,MENT HLT 18-64 LT,EXT DOM CARE SPOT CO,230845,,321014,SOCIAL CARE : Domiciliary Care,Redacted,157004
http://statistics.data.gov.uk/id/statistical-geography/E08000221,Trafford,08/02/2021,1901400887,487550,"10,198.44",Creative Support Ltd,100160,,LEARN DIS 18-64 LT,SUPP LIVING CONT,230530,,321014,SOCIAL CARE : Domiciliary Care,Redacted,157003
http://statistics.data.gov.uk/id/statistical-geography/E08000222,Trafford,08/02/2021,1901401022,Redacted,"1,797.93",Creative Support Ltd,100160,,Council Covid 19 mon,EXT RES CARE FEES,230842,,321014,SOCIAL CARE : Domiciliary Care,Rapid Test Fund,157041
http://statistics.data.gov.uk/id/statistical-geography/E08000223,Trafford,01/02/2021,1901399330,558331,856.72,Creative Support Ltd,100160,,MENT HLT 18-64 LT,SUPP LIVING CONT,230530,,321014,SOCIAL CARE : Domiciliary Care,Redacted,157004
http://statistics.data.gov.uk/id/statistical-geography/E08000224,Trafford,01/02/2021,1901399330,558331,"1,247.34",Creative Support Ltd,100160,,MENT HLT 18-64 LT,SUPP LIVING CONT,230530,,321014,SOCIAL CARE : Domiciliary Care,Redacted,157004
http://statistics.data.gov.uk/id/statistical-geography/E08000225,Trafford,01/02/2021,1901399330,558331,856.72,Creative Support Ltd,100160,,MENT HLT 18-64 LT,SUPP LIVING CONT,230530,,321014,SOCIAL CARE : Domiciliary Care,Redacted,157004
http://statistics.data.gov.uk/id/statistical-geography/E08000226,Trafford,01/02/2021,1901399330,558331,"1,247.34",Creative Support Ltd,100160,,MENT HLT 18-64 LT,SUPP LIVING CONT,230530,,321014,SOCIAL CARE : Domiciliary Care,Redacted,157004
http://statistics.data.gov.uk/id/statistical-geography/E08000227,Trafford,01/02/2021,1901399330,558331,856.72,Creative Support Ltd,100160,,MENT HLT 18-64 LT,SUPP LIVING CONT,230530,,321014,SOCIAL CARE : Domiciliary Care,Redacted,157004
http://statistics.data.gov.uk/id/statistical-geography/E08000228,Trafford,01/02/2021,1901399330,558331,"1,247.34",Creative Support Ltd,100160,,MENT HLT 18-64 LT,SUPP LIVING CONT,230530,,321014,SOCIAL CARE : Domiciliary Care,Redacted,157004
http://statistics.data.gov.uk/id/statistical-geography/E08000229,Trafford,01/02/2021,1901399330,558331,856.72,Creative Support Ltd,100160,,MENT HLT 18-64 LT,SUPP LIVING CONT,230530,,321014,SOCIAL CARE : Domiciliary Care,Redacted,157004
http://statistics.data.gov.uk/id/statistical-geography/E08000230,Trafford,01/02/2021,1901399330,558331,"1,247.34",Creative Support Ltd,100160,,MENT HLT 18-64 LT,SUPP LIVING CONT,230530,,321014,SOCIAL CARE : Domiciliary Care,Redacted,157004
http://statistics.data.gov.uk/id/statistical-geography/E08000231,Trafford,01/02/2021,1901399330,558331,856.72,Creative Support Ltd,100160,,MENT HLT 18-64 LT,SUPP LIVING CONT,230530,,321014,SOCIAL CARE : Domiciliary Care,Redacted,157004
http://statistics.data.gov.uk/id/statistical-geography/E08000232,Trafford,01/02/2021,1901399330,558331,"1,247.34",Creative Support Ltd,100160,,MENT HLT 18-64 LT,SUPP LIVING CONT,230530,,321014,SOCIAL CARE : Domiciliary Care,Redacted,157004
http://statistics.data.gov.uk/id/statistical-geography/E08000233,Trafford,01/02/2021,1901399331,558347,827.32,Creative Support Ltd,100160,,MENT HLT 18-64 LT,SUPP LIVING CONT,230530,,321014,SOCIAL CARE : Domiciliary Care,Redacted,157004
http://statistics.data.gov.uk/id/statistical-geography/E08000234,Trafford,01/02/2021,1901399331,558347,509.12,Creative Support Ltd,100160,,MENT HLT 18-64 LT,SUPP LIVING CONT,230530,,321014,SOCIAL CARE : Domiciliary Care,Redacted,157004
http://statistics.data.gov.uk/id/statistical-geography/E08000235,Trafford,01/02/2021,1901399331,558347,254.56,Creative Support Ltd,100160,,MENT HLT 18-64 LT,SUPP LIVING CONT,230530,,321014,SOCIAL CARE : Domiciliary Care,Redacted,157004
http://statistics.data.gov.uk/id/statistical-geography/E08000236,Trafford,01/02/2021,1901399331,558347,763.68,Creative Support Ltd,100160,,SOCIAL SUPPORT 18-64,SUPP LIVING CONT,230530,,321014,SOCIAL CARE : Domiciliary Care,Redacted,157005
http://statistics.data.gov.uk/id/statistical-geography/E08000237,Trafford,01/02/2021,1901399332,558334,"7,885.92",Creative Support Ltd,100160,,JOULES HOUSE PROJECT,SUPP LIVING CONT,230530,,321014,SOCIAL CARE : Domiciliary Care,Redacted,253075
http://statistics.data.gov.uk/id/statistical-geography/E08000238,Trafford,01/02/2021,1901399333,558335,995.2,Creative Support Ltd,100160,,LEARN DIS 18-64 LT,SUPP LIVING CONT,230530,,321014,SOCIAL CARE : Domiciliary Care,Redacted,157003
http://statistics.data.gov.uk/id/statistical-geography/E08000239,Trafford,01/02/2021,1901399333,558335,"1,990.40",Creative Support Ltd,100160,,LEARN DIS 18-64 LT,SUPP LIVING CONT,230530,,321014,SOCIAL CARE : Domiciliary Care,Redacted,157003
http://statistics.data.gov.uk/id/statistical-geography/E08000240,Trafford,01/02/2021,1901399333,558335,995.2,Creative Support Ltd,100160,,LEARN DIS 18-64 LT,SUPP LIVING CONT,230530,,321014,SOCIAL CARE : Domiciliary Care,Redacted,157003
http://statistics.data.gov.uk/id/statistical-geography/E08000241,Trafford,01/02/2021,1901399333,558335,"5,971.20",Creative Support Ltd,100160,,LEARN DIS 18-64 LT,SUPP LIVING CONT,230530,,321014,SOCIAL CARE : Domiciliary Care,Redacted,157003
http://statistics.data.gov.uk/id/statistical-geography/E08000242,Trafford,01/02/2021,1901399333,558335,"1,368.40",Creative Support Ltd,100160,,LEARN DIS 65-74 LT,SUPP LIVING CONT,230530,,321014,SOCIAL CARE : Domiciliary Care,Redacted,157013
http://statistics.data.gov.uk/id/statistical-geography/E08000243,Trafford,01/02/2021,1901399333,558335,"19,971.60",Creative Support Ltd,100160,,SUPPORTED LVG BLOCKS,SUPP LIVING CONT,230530,,321014,SOCIAL CARE : Domiciliary Care,Redacted,251342
http://statistics.data.gov.uk/id/statistical-geography/E08000244,Trafford,01/02/2021,1901399335,558336,"2,612.40",Creative Support Ltd,100160,,LEARN DIS 18-64 LT,SUPP LIVING CONT,230530,,321014,SOCIAL CARE : Domiciliary Care,Redacted,157003
http://statistics.data.gov.uk/id/statistical-geography/E08000245,Trafford,01/02/2021,1901399335,558336,"1,866.00",Creative Support Ltd,100160,,LEARN DIS 18-64 LT,SUPP LIVING CONT,230530,,321014,SOCIAL CARE : Domiciliary Care,Redacted,157003
http://statistics.data.gov.uk/id/statistical-geography/E08000246,Trafford,01/02/2021,1901399335,558336,"1,555.00",Creative Support Ltd,100160,,LEARN DIS 18-64 LT,SUPP LIVING CONT,230530,,321014,SOCIAL CARE : Domiciliary Care,Redacted,157003
http://statistics.data.gov.uk/id/statistical-geography/E08000247,Trafford,01/02/2021,1901399335,558336,"1,679.40",Creative Support Ltd,100160,,LEARN DIS 18-64 LT,SUPP LIVING CONT,230530,,321014,SOCIAL CARE : Domiciliary Care,Redacted,157003
http://statistics.data.gov.uk/id/statistical-geography/E08000248,Trafford,01/02/2021,1901399335,558336,"13,838.04",Creative Support Ltd,100160,,SUPPORTED LVG BLOCKS,SUPP LIVING CONT,230530,,321014,SOCIAL CARE : Domiciliary Care,Redacted,251342
http://statistics.data.gov.uk/id/statistical-geography/E08000249,Trafford,01/02/2021,1901399337,558337,812,Creative Support Ltd,100160,,LEARN DIS 18-64 LT,SUPP LIVING CONT,230530,,321014,SOCIAL CARE : Domiciliary Care,Redacted,157003
http://statistics.data.gov.uk/id/statistical-geography/E08000250,Trafford,01/02/2021,1901399337,558337,986,Creative Support Ltd,100160,,LEARN DIS 18-64 LT,SUPP LIVING CONT,230530,,321014,SOCIAL CARE : Domiciliary Care,Redacted,157003
http://statistics.data.gov.uk/id/statistical-geography/E08000251,Trafford,01/02/2021,1901399337,558337,"1,914.00",Creative Support Ltd,100160,,LEARN DIS 18-64 LT,SUPP LIVING CONT,230530,,321014,SOCIAL CARE : Domiciliary Care,Redacted,157003
http://statistics.data.gov.uk/id/statistical-geography/E08000252,Trafford,01/02/2021,1901399337,558337,464,Creative Support Ltd,100160,,LEARN DIS 18-64 LT,SUPP LIVING CONT,230530,,321014,SOCIAL CARE : Domiciliary Care,Redacted,157003
http://statistics.data.gov.uk/id/statistical-geography/E08000253,Trafford,01/02/2021,1901399337,558337,928,Creative Support Ltd,100160,,LEARN DIS 18-64 LT,SUPP LIVING CONT,230530,,321014,SOCIAL CARE : Domiciliary Care,Redacted,157003
http://statistics.data.gov.uk/id/statistical-geography/E08000254,Trafford,01/02/2021,1901399337,558337,"16,675.68",Creative Support Ltd,100160,,Creative Support Blo,SUPP LIVING CONT,230530,,321014,SOCIAL CARE : Domiciliary Care,Redacted,251390
http://statistics.data.gov.uk/id/statistical-geography/E08000255,Trafford,01/02/2021,1901399338,558338,761.95,Creative Support Ltd,100160,,LEARN DIS 65-74 LT,SUPP LIVING CONT,230530,,321014,SOCIAL CARE : Domiciliary Care,Redacted,157013
http://statistics.data.gov.uk/id/statistical-geography/E08000256,Trafford,01/02/2021,1901399338,558338,761.95,Creative Support Ltd,100160,,LEARN DIS 18-64 LT,SUPP LIVING CONT,230530,,321014,SOCIAL CARE : Domiciliary Care,Redacted,157003
http://statistics.data.gov.uk/id/statistical-geography/E08000257,Trafford,01/02/2021,1901399338,558338,761.95,Creative Support Ltd,100160,,LEARN DIS 65-74 LT,SUPP LIVING CONT,230530,,321014,SOCIAL CARE : Domiciliary Care,Redacted,157013
http://statistics.data.gov.uk/id/statistical-geography/E08000258,Trafford,01/02/2021,1901399338,558338,"9,523.04",Creative Support Ltd,100160,,SUPPORTED LVG BLOCKS,SUPP LIVING CONT,230530,,321014,SOCIAL CARE : Domiciliary Care,Redacted,251342
http://statistics.data.gov.uk/id/statistical-geography/E08000259,Trafford,01/02/2021,1901399344,558339,638,Creative Support Ltd,100160,,LEARN DIS 18-64 LT,SUPP LIVING CONT,230530,,321014,SOCIAL CARE : Domiciliary Care,Redacted,157003
http://statistics.data.gov.uk/id/statistical-geography/E08000260,Trafford,01/02/2021,1901399344,558339,"1,044.00",Creative Support Ltd,100160,,LEARN DIS 18-64 LT,SUPP LIVING CONT,230530,,321014,SOCIAL CARE : Domiciliary Care,Redacted,157003
http://statistics.data.gov.uk/id/statistical-geography/E08000261,Trafford,01/02/2021,1901399344,558339,"13,768.20",Creative Support Ltd,100160,,UBU-25 SEAMONS ROAD,SUPP LIVING CONT,230530,,321014,SOCIAL CARE : Domiciliary Care,Redacted,251360
http://statistics.data.gov.uk/id/statistical-geography/E08000262,Trafford,01/02/2021,1901399348,558341,"1,461.70",Creative Support Ltd,100160,,LEARN DIS 18-64 LT,SUPP LIVING CONT,230530,,321014,SOCIAL CARE : Domiciliary Care,Redacted,157003
http://statistics.data.gov.uk/id/statistical-geography/E08000263,Trafford,01/02/2021,1901399348,558341,"1,306.20",Creative Support Ltd,100160,,LEARN DIS 65-74 LT,SUPP LIVING CONT,230530,,321014,SOCIAL CARE : Domiciliary Care,Redacted,157013
http://statistics.data.gov.uk/id/statistical-geography/E08000264,Trafford,01/02/2021,1901399348,558341,"12,346.40",Creative Support Ltd,100160,,SUPPORTED LVG BLOCKS,SUPP LIVING CONT,230530,,321014,SOCIAL CARE : Domiciliary Care,Redacted,251342
http://statistics.data.gov.uk/id/statistical-geography/E08000265,Trafford,01/02/2021,1901399349,558342,"1,119.60",Creative Support Ltd,100160,,LEARN DIS 18-64 LT,SUPP LIVING CONT,230530,,321014,SOCIAL CARE : Domiciliary Care,Redacted,157003
http://statistics.data.gov.uk/id/statistical-geography/E08000266,Trafford,01/02/2021,1901399349,558342,933,Creative Support Ltd,100160,,LEARN DIS 75-84 LT,SUPP LIVING CONT,230530,,321014,SOCIAL CARE : Domiciliary Care,Redacted,157023
http://statistics.data.gov.uk/id/statistical-geography/E08000267,Trafford,01/02/2021,1901399349,558342,933,Creative Support Ltd,100160,,LEARN DIS 18-64 LT,SUPP LIVING CONT,230530,,321014,SOCIAL CARE : Domiciliary Care,Redacted,157003
http://statistics.data.gov.uk/id/statistical-geography/E08000268,Trafford,01/02/2021,1901399349,558342,"18,005.00",Creative Support Ltd,100160,,SUPPORTED LVG BLOCKS,SUPP LIVING CONT,230530,,321014,SOCIAL CARE : Domiciliary Care,Redacted,251342
http://statistics.data.gov.uk/id/statistical-geography/E08000269,Trafford,01/02/2021,1901399353,558343,"2,239.20",Creative Support Ltd,100160,,LEARN DIS 18-64 LT,SUPP LIVING CONT,230530,,321014,SOCIAL CARE : Domiciliary Care,Redacted,157003
http://statistics.data.gov.uk/id/statistical-geography/E08000270,Trafford,01/02/2021,1901399353,558343,"2,363.60",Creative Support Ltd,100160,,LEARN DIS 18-64 LT,SUPP LIVING CONT,230530,,321014,SOCIAL CARE : Domiciliary Care,Redacted,157003
http://statistics.data.gov.uk/id/statistical-geography/E08000271,Trafford,01/02/2021,1901399353,558343,"1,866.00",Creative Support Ltd,100160,,LEARN DIS 18-64 LT,SUPP LIVING CONT,230530,,321014,SOCIAL CARE : Domiciliary Care,Redacted,157003
http://statistics.data.gov.uk/id/statistical-geography/E08000272,Trafford,01/02/2021,1901399353,558343,"16,543.56",Creative Support Ltd,100160,,SUPPORTED LVG BLOCKS,SUPP LIVING CONT,230530,,321014,SOCIAL CARE : Domiciliary Care,Redacted,251342
http://statistics.data.gov.uk/id/statistical-geography/E08000273,Trafford,01/02/2021,1901399362,558346,"2,589.60",Creative Support Ltd,100160,,SOCIAL SUPPORT 18-64,SUPP LIVING CONT,230530,,321014,SOCIAL CARE : Domiciliary Care,Redacted,157005
http://statistics.data.gov.uk/id/statistical-geography/E08000274,Trafford,01/02/2021,1901399364,558351,"1,854.72",Creative Support Ltd,100160,,JOULES HOUSE PROJECT,SUPP LIVING CONT,230530,,321014,SOCIAL CARE : Domiciliary Care,Redacted,253075
http://statistics.data.gov.uk/id/statistical-geography/E08000275,Trafford,01/02/2021,1901399414,558354,"1,233.88",Creative Support Ltd,100160,,CRISIS BED,SUPP LIVING CONT,230530,,321014,SOCIAL CARE : Domiciliary Care,Redacted,253246
http://statistics.data.gov.uk/id/statistical-geography/E08000276,Trafford,01/02/2021,1901399414,558354,"4,264.80",Creative Support Ltd,100160,,JOULES HOUSE PROJECT,SUPP LIVING CONT,230530,,321014,SOCIAL CARE : Domiciliary Care,Redacted,253075
http://statistics.data.gov.uk/id/statistical-geography/E08000277,Trafford,01/02/2021,1901399465,558355,763.68,Creative Support Ltd,100160,,MENT HLT 18-64 LT,SUPP LIVING CONT,230530,,321014,SOCIAL CARE : Domiciliary Care,Redacted,157004
http://statistics.data.gov.uk/id/statistical-geography/E08000278,Trafford,01/02/2021,1901399465,558355,763.68,Creative Support Ltd,100160,,MENT HLT 18-64 LT,SUPP LIVING CONT,230530,,321014,SOCIAL CARE : Domiciliary Care,Redacted,157004
http://statistics.data.gov.uk/id/statistical-geography/E08000279,Trafford,01/02/2021,1901399465,558355,827.32,Creative Support Ltd,100160,,MENT HLT 18-64 LT,SUPP LIVING CONT,230530,,321014,SOCIAL CARE : Domiciliary Care,Redacted,157004
http://statistics.data.gov.uk/id/statistical-geography/E08000280,Trafford,01/02/2021,1901399465,558355,350.02,Creative Support Ltd,100160,,MENT HLT 18-64 LT,SUPP LIVING CONT,230530,,321014,SOCIAL CARE : Domiciliary Care,Redacted,157004
http://statistics.data.gov.uk/id/statistical-geography/E08000281,Trafford,01/02/2021,1901399480,558352,"20,626.44",Creative Support Ltd,100160,,JOULES HOUSE PROJECT,SUPP LIVING CONT,230530,,321014,SOCIAL CARE : Domiciliary Care,Redacted,253075
http://statistics.data.gov.uk/id/statistical-geography/E08000282,Trafford,01/02/2021,1901399519,558344,"5,880.00",Creative Support Ltd,100160,,LEARN DIS 18-64 LT,SUPP LIVING CONT,230530,,321014,SOCIAL CARE : Domiciliary Care,Redacted,157003
http://statistics.data.gov.uk/id/statistical-geography/E08000283,Trafford,01/02/2021,1901399519,558344,"7,080.00",Creative Support Ltd,100160,,LEARN DIS 18-64 LT,SUPP LIVING CONT,230530,,321014,SOCIAL CARE : Domiciliary Care,Redacted,157003
http://statistics.data.gov.uk/id/statistical-geography/E08000284,Trafford,01/02/2021,1901399519,558344,"6,797.12",Creative Support Ltd,100160,,Creative Support Blo,SUPP LIVING CONT,230530,,321014,SOCIAL CARE : Domiciliary Care,Redacted,251390
http://statistics.data.gov.uk/id/statistical-geography/E08000285,Trafford,01/02/2021,1901399541,558340,"2,442.72",Creative Support Ltd,100160,,LEARN DIS 65-74 LT,SUPP LIVING CONT,230530,,321014,SOCIAL CARE : Domiciliary Care,Redacted,157013
http://statistics.data.gov.uk/id/statistical-geography/E08000286,Trafford,01/02/2021,1901399541,558340,"5,974.48",Creative Support Ltd,100160,,LEARN DIS 65-74 LT,SUPP LIVING CONT,230530,,321014,SOCIAL CARE : Domiciliary Care,Redacted,157013
http://statistics.data.gov.uk/id/statistical-geography/E08000287,Trafford,01/02/2021,1901399541,558340,174.48,Creative Support Ltd,100160,,LEARN DIS 18-64 LT,SUPP LIVING CONT,230530,,321014,SOCIAL CARE : Domiciliary Care,Redacted,157003
http://statistics.data.gov.uk/id/statistical-geography/E08000288,Trafford,01/02/2021,1901399541,558340,"5,974.48",Creative Support Ltd,100160,,LEARN DIS 18-64 LT,SUPP LIVING CONT,230530,,321014,SOCIAL CARE : Domiciliary Care,Redacted,157003
http://statistics.data.gov.uk/id/statistical-geography/E08000289,Trafford,01/02/2021,1901399550,558330,"1,181.68",Creative Support Ltd,100160,,LEARN DIS 18-64 LT,SUPP LIVING CONT,230530,,321014,SOCIAL CARE : Domiciliary Care,Redacted,157003
http://statistics.data.gov.uk/id/statistical-geography/E08000290,Trafford,01/02/2021,1901399550,558330,"1,810.84",Creative Support Ltd,100160,,LEARN DIS 18-64 LT,SUPP LIVING CONT,230530,,321014,SOCIAL CARE : Domiciliary Care,Redacted,157003
http://statistics.data.gov.uk/id/statistical-geography/E08000291,Trafford,01/02/2021,1901399550,558330,"2,233.32",Creative Support Ltd,100160,,LEARN DIS 18-64 LT,SUPP LIVING CONT,230530,,321014,SOCIAL CARE : Domiciliary Care,Redacted,157003
http://statistics.data.gov.uk/id/statistical-geography/E08000292,Trafford,01/02/2021,1901399550,558330,"1,181.68",Creative Support Ltd,100160,,LEARN DIS 18-64 LT,SUPP LIVING CONT,230530,,321014,SOCIAL CARE : Domiciliary Care,Redacted,157003
http://statistics.data.gov.uk/id/statistical-geography/E08000293,Trafford,01/02/2021,1901399550,558330,"1,810.84",Creative Support Ltd,100160,,LEARN DIS 18-64 LT,SUPP LIVING CONT,230530,,321014,SOCIAL CARE : Domiciliary Care,Redacted,157003
http://statistics.data.gov.uk/id/statistical-geography/E08000294,Trafford,01/02/2021,1901399550,558330,"2,535.12",Creative Support Ltd,100160,,LEARN DIS 18-64 LT,SUPP LIVING CONT,230530,,321014,SOCIAL CARE : Domiciliary Care,Redacted,157003
http://statistics.data.gov.uk/id/statistical-geography/E08000295,Trafford,15/02/2021,1901402411,Redacted,106.54,PAYP/FIP IMPREST,1123,,Youth Justice,CLIENTS PERS NEEDS,220412,,,,,143000
http://statistics.data.gov.uk/id/statistical-geography/E08000296,Trafford,15/02/2021,1901402411,Redacted,109.92,PAYP/FIP IMPREST,1123,,Youth Justice,CLIENTS PERS NEEDS,220412,,,,,143000
http://statistics.data.gov.uk/id/statistical-geography/E08000297,Trafford,10/02/2021,1901401228,Redacted,234.5,ADOLESCENT RESOURCE CENTRE,1008,,MARAT SECTION 17,SECT 17 PAY ITEM 6,220760,,,,imprest,130705
http://statistics.data.gov.uk/id/statistical-geography/E08000298,Trafford,10/02/2021,1901401228,Redacted,738.5,ADOLESCENT RESOURCE CENTRE,1008,,CENTRAL : S17&CLIENT,SECT 17 PAY ITEM 6,220760,,,,imprest,130680
http://statistics.data.gov.uk/id/statistical-geography/E08000299,Trafford,10/02/2021,1901401228,Redacted,572.6,ADOLESCENT RESOURCE CENTRE,1008,,FAMILIES MATTER;S17,SECT 17 PAY ITEM 6,220760,,,,imprest,130696
http://statistics.data.gov.uk/id/statistical-geography/E08000300,Trafford,10/02/2021,1901401228,Redacted,79.99,ADOLESCENT RESOURCE CENTRE,1008,,SOUTH:S17&CLIENT,SECT 17 PAY ITEM 6,220760,,,,imprest,130682
http://statistics.data.gov.uk/id/statistical-geography/E08000301,Trafford,10/02/2021,1901401228,Redacted,61,ADOLESCENT RESOURCE CENTRE,1008,,WEST : S17 & CLIENT,SECT 17 PAY ITEM 6,220760,,,,imprest,130670
http://statistics.data.gov.uk/id/statistical-geography/E08000302,Trafford,10/02/2021,1901401228,Redacted,330,ADOLESCENT RESOURCE CENTRE,1008,,NORTH : S17 & CLIENT,SECT 17 PAY ITEM 6,220760,,,,imprest,130660
http://statistics.data.gov.uk/id/statistical-geography/E08000303,Trafford,10/02/2021,1901401228,Redacted,270,ADOLESCENT RESOURCE CENTRE,1008,,PERM TEAM: CLIENTS,CLIENTS PERS NEEDS,220412,,,,imprest,130712
http://statistics.data.gov.uk/id/statistical-geography/E08000304,Trafford,10/02/2021,1901401228,Redacted,50.9,ADOLESCENT RESOURCE CENTRE,1008,,PERM TEAM: CLIENTS,FAM CONT PERS NEEDS,220828,,,,imprest,130712
http://statistics.data.gov.uk/id/statistical-geography/E08000305,Trafford,08/02/2021,1901400741,Redacted,120,ADOLESCENT RESOURCE CENTRE,1008,,MARAT SECTION 17,SECT 17 PAY ITEM 6,220760,,,,IMPREST,130705
http://statistics.data.gov.uk/id/statistical-geography/E08000306,Trafford,08/02/2021,1901400741,Redacted,"1,010.58",ADOLESCENT RESOURCE CENTRE,1008,,PERM TEAM: CLIENTS,CLIENTS PERS NEEDS,220412,,,,IMPREST,130712
http://statistics.data.gov.uk/id/statistical-geography/E08000307,Trafford,08/02/2021,1901400741,Redacted,120,ADOLESCENT RESOURCE CENTRE,1008,,PERM TEAM: CLIENTS,FAM CONT PERS NEEDS,220828,,,,IMPREST,130712
http://statistics.data.gov.uk/id/statistical-geography/E08000308,Trafford,08/02/2021,1901400741,Redacted,327.92,ADOLESCENT RESOURCE CENTRE,1008,,CENTRAL : S17&CLIENT,SECT 17 PAY ITEM 6,220760,,,,IMPREST,130680
http://statistics.data.gov.uk/id/statistical-geography/E08000309,Trafford,08/02/2021,1901400741,Redacted,264,ADOLESCENT RESOURCE CENTRE,1008,,SOUTH:S17&CLIENT,SECT 17 PAY ITEM 6,220760,,,,IMPREST,130682
http://statistics.data.gov.uk/id/statistical-geography/E08000310,Trafford,08/02/2021,1901400741,Redacted,78.7,ADOLESCENT RESOURCE CENTRE,1008,,NORTH : S17 & CLIENT,SECT 17 PAY ITEM 6,220760,,,,IMPREST,130660
http://statistics.data.gov.uk/id/statistical-geography/E08000311,Trafford,08/02/2021,1901400741,Redacted,283,ADOLESCENT RESOURCE CENTRE,1008,,Leaving Care Placeme,CLIENTS PERS NEEDS,220412,,,,Redacted,130102
http://statistics.data.gov.uk/id/statistical-geography/E08000312,Trafford,03/02/2021,1901399952,Redacted,500,ADOLESCENT RESOURCE CENTRE,1008,,MARAT SECTION 17,SECT 17 PAY ITEM 6,220760,,,,,130705
http://statistics.data.gov.uk/id/statistical-geography/E08000313,Trafford,03/02/2021,1901399952,Redacted,130,ADOLESCENT RESOURCE CENTRE,1008,,PERM TEAM: CLIENTS,CLIENTS PERS NEEDS,220412,,,,,130712
http://statistics.data.gov.uk/id/statistical-geography/E08000314,Trafford,03/02/2021,1901399952,Redacted,145,ADOLESCENT RESOURCE CENTRE,1008,,NORTH : S17 & CLIENT,SECT 17 PAY ITEM 6,220760,,,,,130660
http://statistics.data.gov.uk/id/statistical-geography/E08000315,Trafford,03/02/2021,1901399952,Redacted,725,ADOLESCENT RESOURCE CENTRE,1008,,CENTRAL : S17&CLIENT,SECT 17 PAY ITEM 6,220760,,,,,130680
http://statistics.data.gov.uk/id/statistical-geography/E08000316,Trafford,03/02/2021,1901399952,Redacted,240,ADOLESCENT RESOURCE CENTRE,1008,,SOUTH:S17&CLIENT,SECT 17 PAY ITEM 6,220760,,,,,130682
http://statistics.data.gov.uk/id/statistical-geography/E08000317,Trafford,03/02/2021,1901399952,Redacted,380,ADOLESCENT RESOURCE CENTRE,1008,,Leaving Care Placeme,BOARDED OUT SEC23,230849,,,,Redacted,130102
http://statistics.data.gov.uk/id/statistical-geography/E08000318,Trafford,03/02/2021,1901399952,Redacted,923.7,ADOLESCENT RESOURCE CENTRE,1008,,Leaving Care Placeme,CLIENTS PERS NEEDS,220412,,,,Redacted,130102
http://statistics.data.gov.uk/id/statistical-geography/E08000319,Trafford,03/02/2021,1901399952,Redacted,38,ADOLESCENT RESOURCE CENTRE,1008,,PERM TEAM: CLIENTS,FAM CONT PERS NEEDS,220828,,,,,130712
http://statistics.data.gov.uk/id/statistical-geography/E08000320,Trafford,03/02/2021,1901399952,Redacted,250,ADOLESCENT RESOURCE CENTRE,1008,,FAMILIES MATTER;S17,CLIENTS PERS NEEDS,220412,,,,,130696
http://statistics.data.gov.uk/id/statistical-geography/E08000321,Trafford,03/02/2021,1901399992,Redacted,348.45,ADOLESCENT RESOURCE CENTRE,1008,,PERM TEAM: CLIENTS,CLIENTS PERS NEEDS,220412,,,,,130712
http://statistics.data.gov.uk/id/statistical-geography/E08000322,Trafford,03/02/2021,1901399992,Redacted,100,ADOLESCENT RESOURCE CENTRE,1008,,PERM TEAM: CLIENTS,FAM CONT PERS NEEDS,220828,,,,,130712
http://statistics.data.gov.uk/id/statistical-geography/E08000323,Trafford,03/02/2021,1901399992,Redacted,"1,047.95",ADOLESCENT RESOURCE CENTRE,1008,,Leaving Care Placeme,CLIENTS PERS NEEDS,220412,,,,Redacted,130102
http://statistics.data.gov.uk/id/statistical-geography/E08000324,Trafford,03/02/2021,1901399992,Redacted,160,ADOLESCENT RESOURCE CENTRE,1008,,CENTRAL : S17&CLIENT,SECT 17 PAY ITEM 6,220760,,,,,130680
http://statistics.data.gov.uk/id/statistical-geography/E08000325,Trafford,03/02/2021,1901399992,Redacted,239.99,ADOLESCENT RESOURCE CENTRE,1008,,SOUTH:S17&CLIENT,SECT 17 PAY ITEM 6,220760,,,,,130682
http://statistics.data.gov.uk/id/statistical-geography/E08000326,Trafford,03/02/2021,1901399992,Redacted,106,ADOLESCENT RESOURCE CENTRE,1008,,FAMILIES MATTER;S17,SECT 17 PAY ITEM 6,220760,,,,,130696
http://statistics.data.gov.uk/id/statistical-geography/E08000327,Trafford,03/02/2021,1901399992,Redacted,10,ADOLESCENT RESOURCE CENTRE,1008,,CIC ADMINISTRATION,EQUIPMENT - PURCHASE,220048,,,,,130751
http://statistics.data.gov.uk/id/statistical-geography/E08000328,Trafford,03/02/2021,1901399993,Redacted,568.96,ADOLESCENT RESOURCE CENTRE,1008,,MARAT SECTION 17,SECT 17 PAY ITEM 6,220760,,,,,130705
http://statistics.data.gov.uk/id/statistical-geography/E08000329,Trafford,03/02/2021,1901399993,Redacted,680,ADOLESCENT RESOURCE CENTRE,1008,,PERM TEAM: CLIENTS,CLIENTS PERS NEEDS,220412,,,,,130712
http://statistics.data.gov.uk/id/statistical-geography/E08000330,Trafford,03/02/2021,1901399993,Redacted,80,ADOLESCENT RESOURCE CENTRE,1008,,CENTRAL : S17&CLIENT,SECT 17 PAY ITEM 6,220760,,,,,130680
http://statistics.data.gov.uk/id/statistical-geography/E08000331,Trafford,03/02/2021,1901399993,Redacted,120,ADOLESCENT RESOURCE CENTRE,1008,,SOUTH:S17&CLIENT,SECT 17 PAY ITEM 6,220760,,,,,130682
http://statistics.data.gov.uk/id/statistical-geography/E08000332,Trafford,03/02/2021,1901399993,Redacted,5.89,ADOLESCENT RESOURCE CENTRE,1008,,WEST : S17 & CLIENT,SECT 17 PAY ITEM 6,220760,,,,,130670
http://statistics.data.gov.uk/id/statistical-geography/E08000333,Trafford,03/02/2021,1901399993,Redacted,675.6,ADOLESCENT RESOURCE CENTRE,1008,,Leaving Care Placeme,CLIENTS PERS NEEDS,220412,,,,Redacted,130102
http://statistics.data.gov.uk/id/statistical-geography/E08000334,Trafford,03/02/2021,1901399993,Redacted,25,ADOLESCENT RESOURCE CENTRE,1008,,PERM TEAM: CLIENTS,FAM CONT PERS NEEDS,220828,,,,,130712
http://statistics.data.gov.uk/id/statistical-geography/E08000335,Trafford,03/02/2021,1901399993,Redacted,25,ADOLESCENT RESOURCE CENTRE,1008,,SPECIAL GUARDIANSHIP,FOSTERING IN HOUSE,230806,,,,,130442
http://statistics.data.gov.uk/id/statistical-geography/E08000336,Trafford,03/02/2021,1901399993,Redacted,100,ADOLESCENT RESOURCE CENTRE,1008,,PLACEMENT FOSTERING,GENERAL ADVERTISING,220804,,,,,130435
http://statistics.data.gov.uk/id/statistical-geography/E08000337,Trafford,03/02/2021,1901399993,Redacted,50,ADOLESCENT RESOURCE CENTRE,1008,,Complex needs s17,CLIENTS PERS NEEDS,220412,,,,,130650
http://statistics.data.gov.uk/id/statistical-geography/E08000338,Trafford,03/02/2021,1901400354,Redacted,833,ADOLESCENT RESOURCE CENTRE,1008,,PERM TEAM: CLIENTS,CLIENTS PERS NEEDS,220412,,,,,130712
http://statistics.data.gov.uk/id/statistical-geography/E08000339,Trafford,03/02/2021,1901400354,Redacted,"1,127.98",ADOLESCENT RESOURCE CENTRE,1008,,MARAT SECTION 17,SECT 17 PAY ITEM 6,220760,,,,,130705
http://statistics.data.gov.uk/id/statistical-geography/E08000340,Trafford,03/02/2021,1901400354,Redacted,348,ADOLESCENT RESOURCE CENTRE,1008,,Leaving Care Placeme,CLIENTS PERS NEEDS,220412,,,,Redacted,130102
http://statistics.data.gov.uk/id/statistical-geography/E08000341,Trafford,03/02/2021,1901400354,Redacted,25,ADOLESCENT RESOURCE CENTRE,1008,,CENTRAL : S17&CLIENT,SECT 17 PAY ITEM 6,220760,,,,,130680
http://statistics.data.gov.uk/id/statistical-geography/E08000342,Trafford,15/02/2021,1901402318,21,"2,384.19",Brentwood School,501,GB149191256,Brentwood,Schools' Unall Ch Bk,220852,,201700,FINANCIAL SERVICES : Grants,,102501
http://statistics.data.gov.uk/id/statistical-geography/E08000343,Trafford,15/02/2021,1901402318,21,"4,811.05",Brentwood School,501,GB149191256,Brentwood,Schools' Unall Ch Bk,220852,,201700,FINANCIAL SERVICES : Grants,,102501
http://statistics.data.gov.uk/id/statistical-geography/E08000344,Trafford,15/02/2021,1901402318,21,"23,431.95",Brentwood School,501,GB149191256,Brentwood,Schools' Unall Ch Bk,220852,,201700,FINANCIAL SERVICES : Grants,,102501
http://statistics.data.gov.uk/id/statistical-geography/E08000345,Trafford,15/02/2021,1901402318,21,"19,072.98",Brentwood School,501,GB149191256,Brentwood,Schools' Unall Ch Bk,220852,,201700,FINANCIAL SERVICES : Grants,,102501
http://statistics.data.gov.uk/id/statistical-geography/E08000346,Trafford,15/02/2021,1901402318,21,-7.4,Brentwood School,501,GB149191256,Brentwood,SCH UNALL CHQ BK INC,360107,,201700,FINANCIAL SERVICES : Grants,,102501
http://statistics.data.gov.uk/id/statistical-geography/E08000347,Trafford,15/02/2021,1901402318,21,"-3,861.00",Brentwood School,501,GB149191256,Brentwood,SCH UNALL CHQ BK INC,360107,,201700,FINANCIAL SERVICES : Grants,,102501
http://statistics.data.gov.uk/id/statistical-geography/E08000348,Trafford,15/02/2021,1901402318,21,"-35,482.55",Brentwood School,501,GB149191256,Brentwood,SCH UNALL CHQ BK INC,360107,,201700,FINANCIAL SERVICES : Grants,,102501
http://statistics.data.gov.uk/id/statistical-geography/E08000349,Trafford,15/02/2021,1901402318,21,"-49,700.17",Brentwood School,501,GB149191256,School Cash Advances,CB Schs Contra Entry,290025,,201700,FINANCIAL SERVICES : Grants,,900110
http://statistics.data.gov.uk/id/statistical-geography/E08000350,Trafford,15/02/2021,1901402318,21,"39,350.95",Brentwood School,501,GB149191256,School Cash Advances,SCH UNALL CHQ BK INC,360107,,201700,FINANCIAL SERVICES : Grants,,900110
http://statistics.data.gov.uk/id/statistical-geography/E08000351,Trafford,15/02/2021,1901402385,65035898,"1,800.00",Brentwood School,501,GB149191256,Capital Schemes,A&M PAY TO CONTRACTO,400400,,201700,FINANCIAL SERVICES : Grants,capital,990000
http://statistics.data.gov.uk/id/statistical-geography/E08000352,Trafford,11/02/2021,1901402226,21,"1,019.00",Loreto Grammar School,434,,YP:Loreto Grammar Sc,SCHOOL BUDGET SHARE,280040,,171000,EDUCATION : Services,Redacted,103434
http://statistics.data.gov.uk/id/statistical-geography/E08000353,Trafford,01/02/2021,5100401284,14882,500,J and J Oliver Ltd,4538,GB224433926,GM ARBOR - WORKS MGT,EXT GR MAINT CONT WK,200405,,241200,HORTICULTURAL : Services,21st Nov: Irlam Road,202408
http://statistics.data.gov.uk/id/statistical-geography/E08000354,Trafford,01/02/2021,5100401284,14882,720,J and J Oliver Ltd,4538,GB224433926,GM ARBOR - WORKS MGT,EXT GR MAINT CONT WK,200405,,241200,HORTICULTURAL : Services,11th Dec Mersey Valley,202408
http://statistics.data.gov.uk/id/statistical-geography/E08000355,Trafford,01/02/2021,5100401284,14882,360,J and J Oliver Ltd,4538,GB224433926,GM ARBOR - WORKS MGT,EXT GR MAINT CONT WK,200405,,241200,HORTICULTURAL : Services,14th dec: whalley road,202408
http://statistics.data.gov.uk/id/statistical-geography/E08000356,Trafford,01/02/2021,5100401284,14882,550,J and J Oliver Ltd,4538,GB224433926,GM ARBOR - WORKS MGT,EXT GR MAINT CONT WK,200405,,241200,HORTICULTURAL : Services,17th dec : wardbuton lane,202408
http://statistics.data.gov.uk/id/statistical-geography/E08000357,Trafford,01/02/2021,5100401286,14883,360,J and J Oliver Ltd,4538,GB224433926,GM ARBOR - WORKS MGT,EXT GR MAINT CONT WK,200405,,241200,HORTICULTURAL : Services,8th Jan : John Leigh Park,202408
http://statistics.data.gov.uk/id/statistical-geography/E08000358,Trafford,01/02/2021,5100401286,14883,300,J and J Oliver Ltd,4538,GB224433926,GM ARBOR - WORKS MGT,EXT GR MAINT CONT WK,200405,,241200,HORTICULTURAL : Services,Olivers : 4th Jan Firsway,202408
http://statistics.data.gov.uk/id/statistical-geography/E08000359,Trafford,01/02/2021,5100401286,14883,800,J and J Oliver Ltd,4538,GB224433926,GM ARBOR - WORKS MGT,EXT GR MAINT CONT WK,200405,,241200,HORTICULTURAL : Services,Urgent Jobs:,202408
http://statistics.data.gov.uk/id/statistical-geography/E08000360,Trafford,10/02/2021,5100401949,90043,172.5,Champion Cleaning Services Ltd,4575,GB185011332,ASCOT HOUSE PENNINE,CLEANING MATERIALS,201130,,131310,CLEANING : Services : Building,Window Cleaning January 2021,154013
http://statistics.data.gov.uk/id/statistical-geography/E08000361,Trafford,01/02/2021,5100401257,825,"1,612.78",UPS Building & Maintenance Limited,4600,GB901576633,Capital Schemes,A&M PAY TO CONTRACTO,400400,,391110,CONSTRUCTION: Bld Construction,Disabled Facilities Grant,990000
http://statistics.data.gov.uk/id/statistical-geography/E08000362,Trafford,01/02/2021,5100401326,807,"1,000.06",UPS Building & Maintenance Limited,4600,GB901576633,HS:ADAPTATIONS,PROFESSIONAL FEES,220456,,391110,CONSTRUCTION: Bld Construction,Cancellation Fee,302300
http://statistics.data.gov.uk/id/statistical-geography/E08000363,Trafford,01/02/2021,5100401328,820,"1,052.67",UPS Building & Maintenance Limited,4600,GB901576633,HS:ADAPTATIONS,PROFESSIONAL FEES,220456,,391110,CONSTRUCTION: Bld Construction,Cancellation fee,302300
http://statistics.data.gov.uk/id/statistical-geography/E08000364,Trafford,01/02/2021,5100401329,822,284.14,UPS Building & Maintenance Limited,4600,GB901576633,HS:ADAPTATIONS,PROFESSIONAL FEES,220456,,391110,CONSTRUCTION: Bld Construction,Cancellation,302300
http://statistics.data.gov.uk/id/statistical-geography/E08000365,Trafford,01/02/2021,5100401330,799,"2,595.64",UPS Building & Maintenance Limited,4600,GB901576633,HS:ADAPTATIONS,PROFESSIONAL FEES,220456,,391110,CONSTRUCTION: Bld Construction,Cancelation Fee,302300
http://statistics.data.gov.uk/id/statistical-geography/E08000366,Trafford,01/02/2021,5100401400,840,"6,457.95",UPS Building & Maintenance Limited,4600,GB901576633,Capital Schemes,A&M PAY TO CONTRACTO,400400,,391110,CONSTRUCTION: Bld Construction,Disabled Facilities Grant,990000
http://statistics.data.gov.uk/id/statistical-geography/E08000367,Trafford,01/02/2021,5100401402,850,"5,074.50",UPS Building & Maintenance Limited,4600,GB901576633,Capital Schemes,A&M PAY TO CONTRACTO,400400,,391110,CONSTRUCTION: Bld Construction,Disabled Facilities Grant 17190,990000
http://statistics.data.gov.uk/id/statistical-geography/E08000368,Trafford,01/02/2021,5100401432,808,"2,938.71",UPS Building & Maintenance Limited,4600,GB901576633,Capital Schemes,A&M PAY TO CONTRACTO,400400,,391110,CONSTRUCTION: Bld Construction,DFA internal doors,990000
http://statistics.data.gov.uk/id/statistical-geography/E08000369,Trafford,03/02/2021,5100401537,869,"4,000.00",UPS Building & Maintenance Limited,4600,GB901576633,Capital Schemes,A&M PAY TO CONTRACTO,400400,,391110,CONSTRUCTION: Bld Construction,2nd Interim Payment,990000
http://statistics.data.gov.uk/id/statistical-geography/E08000370,Trafford,15/02/2021,5100401431,846,"5,643.34",UPS Building & Maintenance Limited,4600,GB901576633,Capital Schemes,A&M PAY TO CONTRACTO,400400,,391110,CONSTRUCTION: Bld Construction,Disabled Facilities Grant 17911,990000
http://statistics.data.gov.uk/id/statistical-geography/E08000371,Trafford,15/02/2021,5100402148,905,"1,444.67",UPS Building & Maintenance Limited,4600,GB901576633,Capital Schemes,A&M PAY TO CONTRACTO,400400,,391110,CONSTRUCTION: Bld Construction,DFG Cancellation fees,990000
http://statistics.data.gov.uk/id/statistical-geography/E08000372,Trafford,15/02/2021,5100402184,879,"1,000.99",UPS Building & Maintenance Limited,4600,GB901576633,HS:ADAPTATIONS,PROFESSIONAL FEES,220456,,391110,CONSTRUCTION: Bld Construction,Cancellation Fee,302300
http://statistics.data.gov.uk/id/statistical-geography/E08000373,Trafford,03/02/2021,5100401511,49,"11,192.08",Mosscare St Vincents Housing Group,100167,GB279776624,Leaving Care Placeme,BOARDED OUT SEC23,230849,,251000,HOUSING MANAGEMENT: Outsourced,Redacted,130102
http://statistics.data.gov.uk/id/statistical-geography/E08000374,Trafford,24/02/2021,5100402614,913,525.93,UPS Building & Maintenance Limited,4600,GB901576633,HS:ADAPTATIONS,PROFESSIONAL FEES,220456,,391110,CONSTRUCTION: Bld Construction,Cancellation Fee,302300
http://statistics.data.gov.uk/id/statistical-geography/E08000375,Trafford,24/02/2021,5100402615,925,300.46,UPS Building & Maintenance Limited,4600,GB901576633,HS:ADAPTATIONS,PROFESSIONAL FEES,220456,,391110,CONSTRUCTION: Bld Construction,Cancellation Fee,302300
http://statistics.data.gov.uk/id/statistical-geography/E08000376,Trafford,10/02/2021,5100401980,3392521420,612,Arjo UK Ltd,4635,GB382474630,ASCOT HOUSE PENNINE,CLEANING MATERIALS,201130,,131010,CLEANING MATERIALS : Chemical,504029303 Arjo Liquid Flusher Rinse(5Ltr,154013
http://statistics.data.gov.uk/id/statistical-geography/E08000377,Trafford,10/02/2021,5100401980,3392521420,11,Arjo UK Ltd,4635,GB382474630,ASCOT HOUSE PENNINE,CLEANING MATERIALS,201130,,131010,CLEANING MATERIALS : Chemical,Delivery Charge,154013
http://statistics.data.gov.uk/id/statistical-geography/E08000378,Trafford,22/02/2021,5100402465,3392481153,231,Arjo UK Ltd,4635,GB382474630,ASCOT HOUSE PENNINE,EXTERNAL DAY-TO-DAY,200100,,131010,CLEANING MATERIALS : Chemical,Call Out to Ascot House:Ninjo6001313502,154013
http://statistics.data.gov.uk/id/statistical-geography/E08000379,Trafford,15/02/2021,5100402131,6928,"2,058.81",Kaberry Construction Limited,4645,GB606698020,Capital Schemes,A&M PAY TO CONTRACTO,400400,,391110,CONSTRUCTION: Bld Construction,Kings Rd PS - 2YO,990000
http://statistics.data.gov.uk/id/statistical-geography/E08000380,Trafford,22/02/2021,5100402475,3040002742,"311,385.55",Galliford Try Building Limited,4662,GB223413506,Capital Schemes,A&M PAY TO CONTRACTO,400400,,391110,CONSTRUCTION: Bld Construction,BTH,990000
http://statistics.data.gov.uk/id/statistical-geography/E08000381,Trafford,17/02/2021,5100402311,426,"17,196.44",Novo Property Group Ltd,4680,GB175265688,Capital Schemes,COST NEW CONS/EXTS,400411,,391110,CONSTRUCTION: Bld Construction,Car Park Construction,990000
http://statistics.data.gov.uk/id/statistical-geography/E08000382,Trafford,17/02/2021,5100402311,426,"327,004.13",Novo Property Group Ltd,4680,GB175265688,Capital Schemes,COST NEW CONS/EXTS,400411,,391110,CONSTRUCTION: Bld Construction,Residential Construction,990000
http://statistics.data.gov.uk/id/statistical-geography/E08000383,Trafford,10/02/2021,5100401874,1005034,80,Michael L Shaw (Fabrications) Ltd,4685,GB306954939,FLIXTON HOUSE EVENTS,LAND REGISTRY FEES,220470,,191700,FM : Property Management,IVK gas panel reset Oct 2020,710128
http://statistics.data.gov.uk/id/statistical-geography/E08000384,Trafford,01/02/2021,5100401255,359,"42,638.28",Thomas Kershaw Builders Ltd,4695,GB425712073,Capital Schemes,A&M PAY TO CONTRACTO,400400,,391100,CONSTRUCTION : Buildings,Sale High School - re-roofing.,990000
http://statistics.data.gov.uk/id/statistical-geography/E08000385,Trafford,01/02/2021,1901399346,558353,"1,399.20",UBU,100030,GB687081992,LEARN DIS 18-64 LT,SUPP LIVING CONT,230530,,,,Redacted,157003
http://statistics.data.gov.uk/id/statistical-geography/E08000386,Trafford,01/02/2021,1901399346,558353,"1,717.20",UBU,100030,GB687081992,LEARN DIS 18-64 LT,SUPP LIVING CONT,230530,,,,Redacted,157003
http://statistics.data.gov.uk/id/statistical-geography/E08000387,Trafford,01/02/2021,1901399346,558353,"1,462.80",UBU,100030,GB687081992,LEARN DIS 18-64 LT,SUPP LIVING CONT,230530,,,,Redacted,157003
http://statistics.data.gov.uk/id/statistical-geography/E08000388,Trafford,01/02/2021,1901399346,558353,"1,462.80",UBU,100030,GB687081992,LEARN DIS 18-64 LT,SUPP LIVING CONT,230530,,,,Redacted,157003
http://statistics.data.gov.uk/id/statistical-geography/E08000389,Trafford,01/02/2021,1901399346,558353,"25,378.40",UBU,100030,GB687081992,Redacted,SUPP LIVING CONT,230530,,,,Redacted,251381
http://statistics.data.gov.uk/id/statistical-geography/E08000390,Trafford,01/02/2021,1901399354,558350,"1,088.32",UBU,100030,GB687081992,LEARN DIS 18-64 LT,SUPP LIVING CONT,230530,,,,Redacted,157003
http://statistics.data.gov.uk/id/statistical-geography/E08000391,Trafford,01/02/2021,1901399354,558350,"1,202.88",UBU,100030,GB687081992,LEARN DIS 18-64 LT,SUPP LIVING CONT,230530,,,,Redacted,157003
http://statistics.data.gov.uk/id/statistical-geography/E08000392,Trafford,01/02/2021,1901399354,558350,572.8,UBU,100030,GB687081992,LEARN DIS 65-74 LT,SUPP LIVING CONT,230530,,,,Redacted,157013
http://statistics.data.gov.uk/id/statistical-geography/E08000393,Trafford,01/02/2021,1901399354,558350,"1,145.60",UBU,100030,GB687081992,LEARN DIS 18-64 LT,SUPP LIVING CONT,230530,,,,Redacted,157003
http://statistics.data.gov.uk/id/statistical-geography/E08000394,Trafford,01/02/2021,1901399354,558350,"14,490.80",UBU,100030,GB687081992,Redacted,SUPP LIVING CONT,230530,,,,Redacted,251362
http://statistics.data.gov.uk/id/statistical-geography/E08000395,Trafford,01/02/2021,1901399358,558349,852.02,UBU,100030,GB687081992,LEARN DIS 18-64 LT,SUPP LIVING CONT,230530,,,,Redacted,157003
http://statistics.data.gov.uk/id/statistical-geography/E08000396,Trafford,01/02/2021,1901399358,558349,"1,204.58",UBU,100030,GB687081992,LEARN DIS 18-64 LT,SUPP LIVING CONT,230530,,,,Redacted,157003
http://statistics.data.gov.uk/id/statistical-geography/E08000397,Trafford,01/02/2021,1901399358,558349,"1,498.38",UBU,100030,GB687081992,LEARN DIS 18-64 LT,SUPP LIVING CONT,230530,,,,Redacted,157003
http://statistics.data.gov.uk/id/statistical-geography/E08000398,Trafford,01/02/2021,1901399358,558349,"11,510.52",UBU,100030,GB687081992,Redacted,SUPP LIVING CONT,230530,,,,Redacted,251364
http://statistics.data.gov.uk/id/statistical-geography/E08000399,Trafford,01/02/2021,1901399360,558348,515.52,UBU,100030,GB687081992,LEARN DIS 18-64 LT,SUPP LIVING CONT,230530,,,,Redacted,157003
http://statistics.data.gov.uk/id/statistical-geography/E08000400,Trafford,01/02/2021,1901399360,558348,515.52,UBU,100030,GB687081992,LEARN DIS 75-84 LT,SUPP LIVING CONT,230530,,,,Redacted,157023
http://statistics.data.gov.uk/id/statistical-geography/E08000401,Trafford,01/02/2021,1901399360,558348,"9,376.40",UBU,100030,GB687081992,Redacted,SUPP LIVING CONT,230530,,,,Redacted,251361
http://statistics.data.gov.uk/id/statistical-geography/E08000402,Trafford,22/02/2021,5100401983,3621,446,H2O FlowTech Limited,4462,GB166322514,PP:GENERAL POLLUTION,INVESTIGATIONS,220454,,181800,ENVIRONMENT : Technical Equip,Installation testing & commissioning,544100
http://statistics.data.gov.uk/id/statistical-geography/E08000403,Trafford,22/02/2021,5100401983,3621,"5,171.52",H2O FlowTech Limited,4462,GB166322514,PP:GENERAL POLLUTION,INVESTIGATIONS,220454,,181800,ENVIRONMENT : Technical Equip,Supply 2 No DT4.40 Compressors,544100
http://statistics.data.gov.uk/id/statistical-geography/E08000404,Trafford,08/02/2021,5100401607,209159,"1,218.00",A T Nolan Ltd,3201,GB403301421,NEXUS EDUCATION CENT,EXTERNAL DAY-TO-DAY,200100,,391113,CONSTRUCTION : Repair,AT Nolan 209159,120631
http://statistics.data.gov.uk/id/statistical-geography/E08000405,Trafford,10/02/2021,1901401116,102,0.92,Child Sexual Exploitation (CSE),1460,,Early Help Hub 11-18,ASSISTANCE TO PUPILS,240300,,,,imprest,149005
http://statistics.data.gov.uk/id/statistical-geography/E08000406,Trafford,10/02/2021,1901401116,102,78.85,Child Sexual Exploitation (CSE),1460,,Early Help Hub 11-18,ASSISTANCE TO PUPILS,240300,,,,imprest,149005
http://statistics.data.gov.uk/id/statistical-geography/E08000407,Trafford,01/02/2021,1901399323,71220250121,432.38,Supported Living,1455,,NETWORK - SUPP LIVIN,CHC - Learning Dis,230863,,,,,251317
http://statistics.data.gov.uk/id/statistical-geography/E08000408,Trafford,01/02/2021,1901399323,71220250121,1.16,Supported Living,1455,,NETWORK - SUPP LIVIN,BANK CHARGES,220818,,,,,251317
http://statistics.data.gov.uk/id/statistical-geography/E08000409,Trafford,01/02/2021,1901399323,71220250121,20.84,Supported Living,1455,,NETWORK - SUPP LIVIN,EQUIPMENT - PURCHASE,220048,,,,,251317
http://statistics.data.gov.uk/id/statistical-geography/E08000410,Trafford,01/02/2021,1901399323,71220250121,66.67,Supported Living,1455,,NETWORK - SUPP LIVIN,EQUIPMENT - PURCHASE,220048,,,,,251317
http://statistics.data.gov.uk/id/statistical-geography/E08000411,Trafford,01/02/2021,1901399323,71220250121,39,Supported Living,1455,,NETWORK - SUPP LIVIN,CHC - Learning Dis,230863,,,,,251317
http://statistics.data.gov.uk/id/statistical-geography/E08000412,Trafford,01/02/2021,1901399323,71220250121,-163.38,Supported Living,1455,,NETWORK - SUPP LIVIN,CHC - Learning Dis,230863,,,,,251317
http://statistics.data.gov.uk/id/statistical-geography/E08000413,Trafford,01/02/2021,1901399324,1022021,84.8,Kingsway Park Chlidrens Home (NEW),1425,,Kindle Lodge,CLIENTS POCK MON GIF,240310,,,,,130450
http://statistics.data.gov.uk/id/statistical-geography/E08000414,Trafford,01/02/2021,1901399324,1022021,267.79,Kingsway Park Chlidrens Home (NEW),1425,,Kindle Lodge,CATERING PROVISIONS,220100,,,,,130450
http://statistics.data.gov.uk/id/statistical-geography/E08000415,Trafford,01/02/2021,1901399324,1022021,198.64,Kingsway Park Chlidrens Home (NEW),1425,,Kindle Lodge,EQUIPMENT - PURCHASE,220048,,,,,130450
http://statistics.data.gov.uk/id/statistical-geography/E08000416,Trafford,01/02/2021,1901399324,1022021,76.1,Kingsway Park Chlidrens Home (NEW),1425,,Kindle Lodge,CLIENTS TRAV EXP,220416,,,,,130450
http://statistics.data.gov.uk/id/statistical-geography/E08000417,Trafford,01/02/2021,1901399324,1022021,159.63,Kingsway Park Chlidrens Home (NEW),1425,,Kindle Lodge,CLIENTS PERS NEEDS,220412,,,,,130450
http://statistics.data.gov.uk/id/statistical-geography/E08000418,Trafford,01/02/2021,1901399324,1022021,93.33,Kingsway Park Chlidrens Home (NEW),1425,,Kindle Lodge,CLEANING MATERIALS,201130,,,,,130450
http://statistics.data.gov.uk/id/statistical-geography/E08000419,Trafford,22/02/2021,1901404089,60121,903.39,CYPS SOUTH AREA FAMILY SUPPORT TEAM,1406,,CENTRAL : S17&CLIENT,SECT 17 PAY ITEM 6,220760,,,,imprest,130680
http://statistics.data.gov.uk/id/statistical-geography/E08000420,Trafford,22/02/2021,1901404089,60121,50,CYPS SOUTH AREA FAMILY SUPPORT TEAM,1406,,SOUTH:S17&CLIENT,SECT 17 PAY ITEM 6,220760,,,,imprest,130682
http://statistics.data.gov.uk/id/statistical-geography/E08000421,Trafford,22/02/2021,1901404089,60121,100,CYPS SOUTH AREA FAMILY SUPPORT TEAM,1406,,LEGAL/EXPERT COSTS,PROFESSIONAL FEES,220456,,,,imprest,130693
http://statistics.data.gov.uk/id/statistical-geography/E08000422,Trafford,22/02/2021,1901404089,60121,54,CYPS SOUTH AREA FAMILY SUPPORT TEAM,1406,,Wythenshawe,OTHER MISC EXPENSES,912850,,,,imprest,151040
http://statistics.data.gov.uk/id/statistical-geography/E08000423,Trafford,22/02/2021,1901404089,60121,75.5,CYPS SOUTH AREA FAMILY SUPPORT TEAM,1406,,SOUTH:S17&CLIENT,CLIENTS PERS NEEDS,220412,,,,imprest,130682
http://statistics.data.gov.uk/id/statistical-geography/E08000424,Trafford,24/02/2021,1901404162,Redacted,"1,035.49",CYPS NORTH AREA FAMILY SUPPORT TEAM,1405,,NORTH : S17 & CLIENT,SECT 17 PAY ITEM 6,220760,,,,,130660
http://statistics.data.gov.uk/id/statistical-geography/E08000425,Trafford,24/02/2021,1901404162,Redacted,505.75,CYPS NORTH AREA FAMILY SUPPORT TEAM,1405,,NORTH : S17 & CLIENT,CLIENTS PERS NEEDS,220412,,,,,130660
http://statistics.data.gov.uk/id/statistical-geography/E08000426,Trafford,10/02/2021,1901401227,9031403,137,HAYSWATER CONTACT CENTRE,1395,,NORTH : S17 & CLIENT,FAM CONT PERS NEEDS,220828,,,,,130660
http://statistics.data.gov.uk/id/statistical-geography/E08000427,Trafford,10/02/2021,1901401227,9031403,38,HAYSWATER CONTACT CENTRE,1395,,WEST : S17 & CLIENT,FAM CONT PERS NEEDS,220828,,,,,130670
http://statistics.data.gov.uk/id/statistical-geography/E08000428,Trafford,10/02/2021,1901401227,9031403,175.4,HAYSWATER CONTACT CENTRE,1395,,SOUTH:S17&CLIENT,FAM CONT PERS NEEDS,220828,,,,,130682
http://statistics.data.gov.uk/id/statistical-geography/E08000429,Trafford,10/02/2021,1901401227,9031403,279.64,HAYSWATER CONTACT CENTRE,1395,,PERM TEAM: CLIENTS,FAM CONT PERS NEEDS,220828,,,,,130712
http://statistics.data.gov.uk/id/statistical-geography/E08000430,Trafford,10/02/2021,1901401227,9031403,222.75,HAYSWATER CONTACT CENTRE,1395,,CONTACT CENTRE,EDUCATION MATERIALS,220010,,,,,130212
http://statistics.data.gov.uk/id/statistical-geography/E08000431,Trafford,10/02/2021,1901401227,9031403,4.7,HAYSWATER CONTACT CENTRE,1395,,PLACEMENT ADOPTION,FAM CONT PERS NEEDS,220828,,,,,130440
http://statistics.data.gov.uk/id/statistical-geography/E08000432,Trafford,11/02/2021,1901402315,0,25,CASH,1241,,Early Help Hub 11-18,SUBSCRIPTIONS,220770,,,,,149005
http://statistics.data.gov.uk/id/statistical-geography/E08000433,Trafford,24/02/2021,1901407368,Redacted,99.46,SOCIAL SERVICES CLIENT FINANCE,1210,,SP:Client Pers Fin,CHARGES FOR SERVICES,330100,,,,,255210
http://statistics.data.gov.uk/id/statistical-geography/E08000434,Trafford,17/02/2021,1901402775,Redacted,18.45,SECONDARY ATTEND & BEHAVIOUR SUPPOR,1115,,NEXUS EDUCATION CENT,CATERING PROVISIONS,220100,,,,,120631
http://statistics.data.gov.uk/id/statistical-geography/E08000435,Trafford,17/02/2021,1901402775,Redacted,61.76,SECONDARY ATTEND & BEHAVIOUR SUPPOR,1115,,NEXUS EDUCATION CENT,EDUCATION MATERIALS,220010,,,,,120631
http://statistics.data.gov.uk/id/statistical-geography/E08000436,Trafford,17/02/2021,1901402775,Redacted,4.87,SECONDARY ATTEND & BEHAVIOUR SUPPOR,1115,,NEXUS EDUCATION CENT,EDUCATIONAL VISITS,220812,,,,,120631
http://statistics.data.gov.uk/id/statistical-geography/E08000437,Trafford,17/02/2021,1901402775,Redacted,58.34,SECONDARY ATTEND & BEHAVIOUR SUPPOR,1115,,NEXUS EDUCATION CENT,FUEL (NON-STORES),210034,,,,,120631
http://statistics.data.gov.uk/id/statistical-geography/E08000438,Trafford,17/02/2021,1901402775,Redacted,55.4,SECONDARY ATTEND & BEHAVIOUR SUPPOR,1115,,NEXUS EDUCATION CENT,CATERING PROVISIONS,220100,,,,,120631
http://statistics.data.gov.uk/id/statistical-geography/E08000439,Trafford,17/02/2021,1901402775,Redacted,192.35,SECONDARY ATTEND & BEHAVIOUR SUPPOR,1115,,NEXUS EDUCATION CENT,CATERING PROVISIONS,220100,,,,,120631
http://statistics.data.gov.uk/id/statistical-geography/E08000440,Trafford,17/02/2021,1901402775,Redacted,187.74,SECONDARY ATTEND & BEHAVIOUR SUPPOR,1115,,NEXUS EDUCATION CENT,EDUCATIONAL VISITS,220812,,,,,120631
http://statistics.data.gov.uk/id/statistical-geography/E08000441,Trafford,17/02/2021,1901402775,Redacted,92.31,SECONDARY ATTEND & BEHAVIOUR SUPPOR,1115,,NEXUS EDUCATION CENT,CLEANING MATERIALS,201130,,,,,120631
http://statistics.data.gov.uk/id/statistical-geography/E08000442,Trafford,17/02/2021,1901402775,Redacted,57.25,SECONDARY ATTEND & BEHAVIOUR SUPPOR,1115,,NEXUS EDUCATION CENT,MATERIALS PURCHASE,220058,,,,,120631
http://statistics.data.gov.uk/id/statistical-geography/E08000443,Trafford,17/02/2021,1901402775,Redacted,3.2,SECONDARY ATTEND & BEHAVIOUR SUPPOR,1115,,NEXUS EDUCATION CENT,POSTAGES,220515,,,,,120631
http://statistics.data.gov.uk/id/statistical-geography/E08000444,Trafford,17/02/2021,1901402775,Redacted,221.25,SECONDARY ATTEND & BEHAVIOUR SUPPOR,1115,,NEXUS EDUCATION CENT,EDUCATION MATERIALS,220010,,,,,120631
http://statistics.data.gov.uk/id/statistical-geography/E08000445,Trafford,17/02/2021,1901402775,Redacted,138,SECONDARY ATTEND & BEHAVIOUR SUPPOR,1115,,NEXUS EDUCATION CENT,CLIENTS TRAV EXP,220416,,,,,120631
http://statistics.data.gov.uk/id/statistical-geography/E08000446,Trafford,22/02/2021,1901404090,22022021,375.05,OLD HALL ROAD,1009,,OLD HALL ROAD,CATERING PROVISIONS,220100,,,,,130465
http://statistics.data.gov.uk/id/statistical-geography/E08000447,Trafford,22/02/2021,1901404090,22022021,23.99,OLD HALL ROAD,1009,,OLD HALL ROAD,CLEANING MATERIALS,201130,,,,,130465
http://statistics.data.gov.uk/id/statistical-geography/E08000448,Trafford,22/02/2021,1901404090,22022021,13.39,OLD HALL ROAD,1009,,OLD HALL ROAD,CLIENTS PERS NEEDS,220412,,,,,130465
http://statistics.data.gov.uk/id/statistical-geography/E08000449,Trafford,22/02/2021,1901404090,22022021,523.66,OLD HALL ROAD,1009,,OLD HALL ROAD,EQUIPMENT - PURCHASE,220048,,,,,130465
http://statistics.data.gov.uk/id/statistical-geography/E08000450,Trafford,22/02/2021,1901404090,22022021,70.5,OLD HALL ROAD,1009,,OLD HALL ROAD,CLIENTS POCK MON GIF,240310,,,,,130465
http://statistics.data.gov.uk/id/statistical-geography/E08000451,Trafford,10/02/2021,1901402206,10022021,331.58,OLD HALL ROAD,1009,,OLD HALL ROAD,CATERING PROVISIONS,220100,,,,,130465
http://statistics.data.gov.uk/id/statistical-geography/E08000452,Trafford,10/02/2021,1901402206,10022021,74.09,OLD HALL ROAD,1009,,OLD HALL ROAD,CLIENTS PERS NEEDS,220412,,,,,130465
http://statistics.data.gov.uk/id/statistical-geography/E08000453,Trafford,10/02/2021,1901402206,10022021,62.85,OLD HALL ROAD,1009,,OLD HALL ROAD,EQUIPMENT - PURCHASE,220048,,,,,130465
http://statistics.data.gov.uk/id/statistical-geography/E08000454,Trafford,10/02/2021,1901402206,10022021,65.7,OLD HALL ROAD,1009,,OLD HALL ROAD,CLIENTS POCK MON GIF,240310,,,,,130465
http://statistics.data.gov.uk/id/statistical-geography/E08000455,Trafford,01/02/2021,1901399325,2022021,193.59,OLD HALL ROAD,1009,,OLD HALL ROAD,CLIENTS PERS NEEDS,220412,,,,imprest,130465
http://statistics.data.gov.uk/id/statistical-geography/E08000456,Trafford,01/02/2021,1901399325,2022021,118.59,OLD HALL ROAD,1009,,OLD HALL ROAD,CLEANING MATERIALS,201130,,,,imprest,130465
http://statistics.data.gov.uk/id/statistical-geography/E08000457,Trafford,01/02/2021,1901399325,2022021,581.85,OLD HALL ROAD,1009,,OLD HALL ROAD,CATERING PROVISIONS,220100,,,,imprest,130465
http://statistics.data.gov.uk/id/statistical-geography/E08000458,Trafford,01/02/2021,1901399325,2022021,16.51,OLD HALL ROAD,1009,,OLD HALL ROAD,EQUIPMENT - REPAIRS,220050,,,,imprest,130465
http://statistics.data.gov.uk/id/statistical-geography/E08000459,Trafford,01/02/2021,1901399325,2022021,23.09,OLD HALL ROAD,1009,,OLD HALL ROAD,EQUIPMENT - PURCHASE,220048,,,,imprest,130465
http://statistics.data.gov.uk/id/statistical-geography/E08000460,Trafford,01/02/2021,1901399325,2022021,42.75,OLD HALL ROAD,1009,,OLD HALL ROAD,TOILET REQUISITES,201140,,,,imprest,130465
http://statistics.data.gov.uk/id/statistical-geography/E08000461,Trafford,01/02/2021,1901399325,2022021,141.4,OLD HALL ROAD,1009,,OLD HALL ROAD,CLIENTS POCK MON GIF,240310,,,,imprest,130465
http://statistics.data.gov.uk/id/statistical-geography/E08000462,Trafford,15/02/2021,1901402383,101202110,19.79,ASCOT HOUSE IMPREST,1005,,ASCOT HOUSE PENNINE,EXTERNAL DAY-TO-DAY,200100,,,,,154013
http://statistics.data.gov.uk/id/statistical-geography/E08000463,Trafford,15/02/2021,1901402383,101202110,100.36,ASCOT HOUSE IMPREST,1005,,ASCOT HOUSE PENNINE,EXTERNAL DAY-TO-DAY,200100,,,,,154013
http://statistics.data.gov.uk/id/statistical-geography/E08000464,Trafford,15/02/2021,1901402383,101202110,96.3,ASCOT HOUSE IMPREST,1005,,ASCOT HOUSE PENNINE,TRAVELLING EXPENSES,210400,,,,,154013
http://statistics.data.gov.uk/id/statistical-geography/E08000465,Trafford,15/02/2021,1901402383,101202110,28.8,ASCOT HOUSE IMPREST,1005,,ASCOT D2A,TRAVELLING EXPENSES,210400,,,,,154014
http://statistics.data.gov.uk/id/statistical-geography/E08000466,Trafford,15/02/2021,1901402383,101202110,118.23,ASCOT HOUSE IMPREST,1005,,ASCOT HOUSE PENNINE,CATERING PROVISIONS,220100,,,,,154013
http://statistics.data.gov.uk/id/statistical-geography/E08000467,Trafford,15/02/2021,1901402383,101202110,0.17,ASCOT HOUSE IMPREST,1005,,ASCOT HOUSE PENNINE,CATERING PROVISIONS,220100,,,,,154013
http://statistics.data.gov.uk/id/statistical-geography/E08000468,Trafford,15/02/2021,1901402383,101202110,43.57,ASCOT HOUSE IMPREST,1005,,ASCOT HOUSE PENNINE,EQUIPMENT - PURCHASE,220048,,,,,154013
http://statistics.data.gov.uk/id/statistical-geography/E08000469,Trafford,15/02/2021,1901402383,101202110,124.99,ASCOT HOUSE IMPREST,1005,,ASCOT HOUSE PENNINE,EQUIPMENT - PURCHASE,220048,,,,,154013
http://statistics.data.gov.uk/id/statistical-geography/E08000470,Trafford,15/02/2021,1901402383,101202110,49.94,ASCOT HOUSE IMPREST,1005,,ASCOT HOUSE PENNINE,MEDICAL REQUISITES,220076,,,,,154013
http://statistics.data.gov.uk/id/statistical-geography/E08000471,Trafford,15/02/2021,1901402383,101202110,110.45,ASCOT HOUSE IMPREST,1005,,ASCOT HOUSE PENNINE,MEDICAL REQUISITES,220076,,,,,154013
http://statistics.data.gov.uk/id/statistical-geography/E08000472,Trafford,11/02/2021,1901402245,21,"61,316.00",The Orchards School,505,GB139214030,YP:The Orchards,SCHOOL BUDGET SHARE,280040,,,,Redacted,103515
http://statistics.data.gov.uk/id/statistical-geography/E08000473,Trafford,11/02/2021,1901402259,21,"36,938.00",Delamere School,504,,School Cash Advances,SCHOOL BUDGET SHARE,280040,,321200,SC : Disabled Children,Redacted,900110
http://statistics.data.gov.uk/id/statistical-geography/E08000474,Trafford,03/02/2021,1901400254,21,295.19,Delamere School,504,,YP:Delamere Sch,Schools' Unall Ch Bk,220852,,321200,SC : Disabled Children,,102504
http://statistics.data.gov.uk/id/statistical-geography/E08000475,Trafford,03/02/2021,1901400254,21,"3,447.58",Delamere School,504,,YP:Delamere Sch,Schools' Unall Ch Bk,220852,,321200,SC : Disabled Children,,102504
http://statistics.data.gov.uk/id/statistical-geography/E08000476,Trafford,03/02/2021,1901400254,21,"26,523.15",Delamere School,504,,YP:Delamere Sch,Schools' Unall Ch Bk,220852,,321200,SC : Disabled Children,,102504
http://statistics.data.gov.uk/id/statistical-geography/E08000477,Trafford,03/02/2021,1901400254,21,"2,700.74",Delamere School,504,,YP:Delamere Sch,Schools' Unall Ch Bk,220852,,321200,SC : Disabled Children,,102504
http://statistics.data.gov.uk/id/statistical-geography/E08000478,Trafford,03/02/2021,1901400254,21,-532.8,Delamere School,504,,YP:Delamere Sch,SCH UNALL CHQ BK INC,360107,,321200,SC : Disabled Children,,102504
http://statistics.data.gov.uk/id/statistical-geography/E08000479,Trafford,03/02/2021,1901400254,21,"2,500.00",Delamere School,504,,YP:Delamere Sch,SCH UNALL CHQ BK INC,360107,,321200,SC : Disabled Children,,102504
http://statistics.data.gov.uk/id/statistical-geography/E08000480,Trafford,03/02/2021,1901400254,21,"-24,625.18",Delamere School,504,,YP:Delamere Sch,SCH UNALL CHQ BK INC,360107,,321200,SC : Disabled Children,,102504
http://statistics.data.gov.uk/id/statistical-geography/E08000481,Trafford,03/02/2021,1901400254,21,"-32,966.66",Delamere School,504,,School Cash Advances,CB Schs Contra Entry,290025,,321200,SC : Disabled Children,,900110
http://statistics.data.gov.uk/id/statistical-geography/E08000482,Trafford,03/02/2021,1901400254,21,"22,657.98",Delamere School,504,,School Cash Advances,SCH UNALL CHQ BK INC,360107,,321200,SC : Disabled Children,,900110
http://statistics.data.gov.uk/id/statistical-geography/E08000483,Trafford,11/02/2021,1901402228,21,"3,602.00",Sale Grammar School,432,GB120951441,YP:Sale Grammar Sch,SCHOOL BUDGET SHARE,280040,,291000,LEISURE SERVICES : Events,Redacted,103432
http://statistics.data.gov.uk/id/statistical-geography/E08000484,Trafford,11/02/2021,1901402229,21,"7,867.00",Wellington School,430,,YP:Wellington Sch,SCHOOL BUDGET SHARE,280040,,171000,EDUCATION : Services,Redacted,103430
http://statistics.data.gov.uk/id/statistical-geography/E08000485,Trafford,17/02/2021,1700055407,10365395,-336.41,SOCIAL SERVICES CLIENT FINANCE,1210,,SP:Client Pers Fin,CHARGES FOR SERVICES,330100,,,,,255210
http://statistics.data.gov.uk/id/statistical-geography/E08000486,Trafford,17/02/2021,1901400718,Redacted,151.53,SOCIAL SERVICES CLIENT FINANCE,1210,,SP:Client Pers Fin,BANK CHARGES,220818,,,,MONTHLY CHANGES JANUARY,255210
http://statistics.data.gov.uk/id/statistical-geography/E08000487,Trafford,17/02/2021,1901402721,10273952,318.96,SOCIAL SERVICES CLIENT FINANCE,1210,,PHYS SUPP 85+ LT,MAINT CONT EXT NURS,330234,,,,,157030
http://statistics.data.gov.uk/id/statistical-geography/E08000488,Trafford,08/02/2021,5100401602,220445,108.8,Child Poverty Action Group,100213,GB690808117,BENEFIT ADVICE TEAM,SUBSCRIPTIONS,220770,,202100,FINANCIAL : Subscriptions,Housing Benefit and Council Tax 33rd Edi,254010
http://statistics.data.gov.uk/id/statistical-geography/E08000489,Trafford,08/02/2021,5100401602,220445,7.49,Child Poverty Action Group,100213,GB690808117,BENEFIT ADVICE TEAM,SUBSCRIPTIONS,220770,,202100,FINANCIAL : Subscriptions,Postage and packaging,254010
http://statistics.data.gov.uk/id/statistical-geography/E08000490,Trafford,15/02/2021,5100402116,197860,95,Child Poverty Action Group,100213,GB690808117,FI:BENEFITS ADMINIST,BOOKS PURCHASE,220012,,202100,FINANCIAL : Subscriptions,Guide to Grants for Individuals in Need,610315
http://statistics.data.gov.uk/id/statistical-geography/E08000491,Trafford,15/02/2021,5100402116,197860,3.99,Child Poverty Action Group,100213,GB690808117,FI:BENEFITS ADMINIST,BOOKS PURCHASE,220012,,202100,FINANCIAL : Subscriptions,CPAG order P&P,610315
http://statistics.data.gov.uk/id/statistical-geography/E08000492,Trafford,01/02/2021,1901399442,558207,"7,301.60",Sense,100677,GB524704461,LEARN DIS 18-64 LT,EXT RES CARE FEES,230842,,321000,SOCIAL CARE SERVICES : Adult,Redacted,157003
http://statistics.data.gov.uk/id/statistical-geography/E08000493,Trafford,01/02/2021,1901399443,558208,"7,693.16",Sense,100677,GB524704461,LEARN DIS 18-64 LT,EXT RES CARE FEES,230842,,321000,SOCIAL CARE SERVICES : Adult,Redacted,157003
http://statistics.data.gov.uk/id/statistical-geography/E08000494,Trafford,08/02/2021,5100401566,134014,"8,438.67",ISG Construction Ltd,4450,GB653587309,Capital Schemes,A&M PAY TO CONTRACTO,400400,,391110,CONSTRUCTION: Bld Construction,Urmston LC,990000
http://statistics.data.gov.uk/id/statistical-geography/E08000495,Trafford,24/02/2021,5100402652,1085278373,"3,273.00",Stannah Lift Services Ltd,3008,GB236778328,Capital Schemes,A&M PAY TO CONTRACTO,400400,,321311,SOCIAL CARE : Equipment,Disabled Facilities Grant 17869,990000
http://statistics.data.gov.uk/id/statistical-geography/E08000496,Trafford,15/02/2021,5100402133,1085274779,"2,828.00",Stannah Lift Services Ltd,3008,GB236778328,Capital Schemes,A&M PAY TO CONTRACTO,400400,,321311,SOCIAL CARE : Equipment,Fast Track Stairlift,990000
http://statistics.data.gov.uk/id/statistical-geography/E08000497,Trafford,15/02/2021,5100402134,1085276063,"5,667.00",Stannah Lift Services Ltd,3008,GB236778328,Capital Schemes,A&M PAY TO CONTRACTO,400400,,321311,SOCIAL CARE : Equipment,Disabled Facilities Grant 17828,990000
http://statistics.data.gov.uk/id/statistical-geography/E08000498,Trafford,03/02/2021,1901400330,155624,"4,172.16",Sense,100677,GB524704461,SENS SUPP 18-64 LT,EXT DOM CARE SPOT CO,230845,,321000,SOCIAL CARE SERVICES : Adult,Redacted,157001
http://statistics.data.gov.uk/id/statistical-geography/E08000499,Trafford,08/02/2021,1901400905,202021063,160,Age UK Trafford,100813,GB561012488,PHYS SUPP 85+ LT,EXT DAY CARE,230846,,171113,EDUCATION : Library Books,Redacted,157030
http://statistics.data.gov.uk/id/statistical-geography/E08000500,Trafford,08/02/2021,1901400905,202021063,240,Age UK Trafford,100813,GB561012488,PHYS SUPP 75-84 LT,EXT DAY CARE,230846,,171113,EDUCATION : Library Books,Redacted,157020
http://statistics.data.gov.uk/id/statistical-geography/E08000501,Trafford,08/02/2021,1901400906,202021063,20.8,Age UK Trafford,100813,GB561012488,PHYS SUPP 85+ LT,EXT VEH & PLANT HIR,210210,,171113,EDUCATION : Library Books,Redacted,157030
http://statistics.data.gov.uk/id/statistical-geography/E08000502,Trafford,24/02/2021,5100402699,202021066,"4,999.00",Age UK Trafford,100813,GB561012488,Clinic' Etrm Vul Ind,Social Care-3rd Prty,230805,,321010,SOCIAL CARE : Counselling,Telephone Support to CEV/Shielded People,150007
http://statistics.data.gov.uk/id/statistical-geography/E08000503,Trafford,24/02/2021,5100402700,202021065,"4,999.00",Age UK Trafford,100813,GB561012488,Clinic' Etrm Vul Ind,Social Care-3rd Prty,230805,,321010,SOCIAL CARE : Counselling,Telephone Support to CEV/Shielded People,150007
http://statistics.data.gov.uk/id/statistical-geography/E08000504,Trafford,22/02/2021,5100402483,25353001,319.3,Teaching Personnel Ltd,100513,GB779994039,Tutor Costs,CONT VOL BODIES,230540,,171011,EDUCATION :  Children,Redacted,110403
http://statistics.data.gov.uk/id/statistical-geography/E08000505,Trafford,22/02/2021,5100402484,25372101,319.3,Teaching Personnel Ltd,100513,GB779994039,Tutor Costs,CONT VOL BODIES,230540,,171011,EDUCATION :  Children,Redacted,110403
http://statistics.data.gov.uk/id/statistical-geography/E08000506,Trafford,22/02/2021,5100402485,25387441,255.44,Teaching Personnel Ltd,100513,GB779994039,Tutor Costs,CONT VOL BODIES,230540,,171011,EDUCATION :  Children,Redacted,110403
http://statistics.data.gov.uk/id/statistical-geography/E08000507,Trafford,22/02/2021,5100402486,25410361,447.02,Teaching Personnel Ltd,100513,GB779994039,Tutor Costs,CONT VOL BODIES,230540,,171011,EDUCATION :  Children,Redacted,110403
http://statistics.data.gov.uk/id/statistical-geography/E08000508,Trafford,22/02/2021,5100402487,25519721,558.8,Teaching Personnel Ltd,100513,GB779994039,Tutor Costs,CONT VOL BODIES,230540,,171011,EDUCATION :  Children,Redacted,110403
http://statistics.data.gov.uk/id/statistical-geography/E08000509,Trafford,24/02/2021,5100402690,8029,"9,225.00",Bernard Taylor Partnership Ltd,100649,GB147584047,IS: Partington Devel,SUPPLIES/SERVICES,220472,,391000,CONSTRUCTION : Architect,Extra Care Project-Partington,624418
http://statistics.data.gov.uk/id/statistical-geography/E08000510,Trafford,24/02/2021,5100402691,8117,"9,225.00",Bernard Taylor Partnership Ltd,100649,GB147584047,IS: Partington Devel,SUPPLIES/SERVICES,220472,,391000,CONSTRUCTION : Architect,Extra Care Project-Partington,624418
http://statistics.data.gov.uk/id/statistical-geography/E08000511,Trafford,17/02/2021,5100402392,42658,125,Carrington Business Park Limited,100239,GB177608867,Early Years Service,HIRE OF ROOMS,200735,,261500,HR : Training & Conferences,PFA Room Hire - 07/01/2021,141300
http://statistics.data.gov.uk/id/statistical-geography/E08000512,Trafford,17/02/2021,5100402392,42658,80,Carrington Business Park Limited,100239,GB177608867,Early Years Service,HIRE OF ROOMS,200735,,261500,HR : Training & Conferences,PFA Room Hire - 13/01/2021,141300
http://statistics.data.gov.uk/id/statistical-geography/E08000513,Trafford,17/02/2021,5100402392,42658,80,Carrington Business Park Limited,100239,GB177608867,Early Years Service,HIRE OF ROOMS,200735,,261500,HR : Training & Conferences,PFA Room Hire - 14/01/2021,141300
http://statistics.data.gov.uk/id/statistical-geography/E08000514,Trafford,17/02/2021,5100402392,42658,125,Carrington Business Park Limited,100239,GB177608867,Early Years Service,HIRE OF ROOMS,200735,,261500,HR : Training & Conferences,PFA Room Hire - 23/01/2021,141300
http://statistics.data.gov.uk/id/statistical-geography/E08000515,Trafford,01/02/2021,1901399789,4990,600,The Counselling & Family Centre,100056,,CENTRAL : S17&CLIENT,PROFESSIONAL FEES,220456,,311100,MEDICAL : Counselling,Redacted,130680
http://statistics.data.gov.uk/id/statistical-geography/E08000516,Trafford,24/02/2021,5100402574,59713,150,VLC (Stairlifts) Limited,3536,GB812311285,LIFT REPAIRS & MTCE,CLIENTS LIFT REP & M,220406,,191400,FACILITIES MGT : Lifts,Removal of a stairlift,250210
http://statistics.data.gov.uk/id/statistical-geography/E08000517,Trafford,24/02/2021,5100402616,59712,795,VLC (Stairlifts) Limited,3536,GB812311285,LIFT REPAIRS & MTCE,CLIENTS LIFT REP & M,220406,,191400,FACILITIES MGT : Lifts,Removal of a Through Floor Lift,250210
http://statistics.data.gov.uk/id/statistical-geography/E08000518,Trafford,17/02/2021,5100402388,59685,53.25,VLC (Stairlifts) Limited,3536,GB812311285,LIFT REPAIRS & MTCE,CLIENTS LIFT REP & M,220406,,321311,SOCIAL CARE : Equipment,Call out,250210
http://statistics.data.gov.uk/id/statistical-geography/E08000519,Trafford,17/02/2021,5100402389,59684,66,VLC (Stairlifts) Limited,3536,GB812311285,LIFT REPAIRS & MTCE,CLIENTS LIFT REP & M,220406,,321311,SOCIAL CARE : Equipment,Call out,250210
http://statistics.data.gov.uk/id/statistical-geography/E08000520,Trafford,17/02/2021,5100402390,59683,"1,521.71",VLC (Stairlifts) Limited,3536,GB812311285,LIFT REPAIRS & MTCE,CLIENTS LIFT REP & M,220406,,321311,SOCIAL CARE : Equipment,Call out,250210
http://statistics.data.gov.uk/id/statistical-geography/E08000521,Trafford,17/02/2021,5100402391,59681,250,VLC (Stairlifts) Limited,3536,GB812311285,LIFT REPAIRS & MTCE,CLIENTS LIFT REP & M,220406,,321311,SOCIAL CARE : Equipment,Removal of a ceiling hoist,250210
http://statistics.data.gov.uk/id/statistical-geography/E08000522,Trafford,17/02/2021,5100402393,59682,250,VLC (Stairlifts) Limited,3536,GB812311285,LIFT REPAIRS & MTCE,CLIENTS LIFT REP & M,220406,,321311,SOCIAL CARE : Equipment,Removal of a ceiling hoist-bathroom,250210
http://statistics.data.gov.uk/id/statistical-geography/E08000523,Trafford,08/02/2021,5100401614,59652,531.63,VLC (Stairlifts) Limited,3536,GB812311285,LIFT REPAIRS & MTCE,CLIENTS LIFT REP & M,220406,,321311,SOCIAL CARE : Equipment,Call out,250210
http://statistics.data.gov.uk/id/statistical-geography/E08000524,Trafford,08/02/2021,5100401616,59653,345,VLC (Stairlifts) Limited,3536,GB812311285,LIFT REPAIRS & MTCE,CLIENTS LIFT REP & M,220406,,321311,SOCIAL CARE : Equipment,Call out,250210
http://statistics.data.gov.uk/id/statistical-geography/E08000525,Trafford,08/02/2021,5100401617,59651,244.35,VLC (Stairlifts) Limited,3536,GB812311285,LIFT REPAIRS & MTCE,CLIENTS LIFT REP & M,220406,,321311,SOCIAL CARE : Equipment,Call out,250210
http://statistics.data.gov.uk/id/statistical-geography/E08000526,Trafford,08/02/2021,5100401619,59650,106.25,VLC (Stairlifts) Limited,3536,GB812311285,LIFT REPAIRS & MTCE,CLIENTS LIFT REP & M,220406,,191400,FACILITIES MGT : Lifts,Call out,250210
http://statistics.data.gov.uk/id/statistical-geography/E08000527,Trafford,08/02/2021,5100401621,59649,393.04,VLC (Stairlifts) Limited,3536,GB812311285,LIFT REPAIRS & MTCE,CLIENTS LIFT REP & M,220406,,191400,FACILITIES MGT : Lifts,Call out,250210
http://statistics.data.gov.uk/id/statistical-geography/E08000528,Trafford,03/02/2021,5100401508,59615,"3,540.00",VLC (Stairlifts) Limited,3536,GB812311285,LIFT REPAIRS & MTCE,CLIENTS LIFT REP & M,220406,,191400,FACILITIES MGT : Lifts,Comprehensive Element February 2021,250210
http://statistics.data.gov.uk/id/statistical-geography/E08000529,Trafford,03/02/2021,5100401560,59648,855.22,VLC (Stairlifts) Limited,3536,GB812311285,LIFT REPAIRS & MTCE,CLIENTS LIFT REP & M,220406,,191400,FACILITIES MGT : Lifts,Call out,250210
http://statistics.data.gov.uk/id/statistical-geography/E08000530,Trafford,03/02/2021,5100401561,59630,"1,412.50",VLC (Stairlifts) Limited,3536,GB812311285,LIFT REPAIRS & MTCE,CLIENTS LIFT REP & M,220406,,191400,FACILITIES MGT : Lifts,Service Charges 31st January 2021,250210
http://statistics.data.gov.uk/id/statistical-geography/E08000531,Trafford,01/02/2021,5100401331,59527,280.9,VLC (Stairlifts) Limited,3536,GB812311285,LIFT REPAIRS & MTCE,CLIENTS LIFT REP & M,220406,,191400,FACILITIES MGT : Lifts,Call out,250210
http://statistics.data.gov.uk/id/statistical-geography/E08000532,Trafford,01/02/2021,5100401332,95974,150,VLC (Stairlifts) Limited,3536,GB812311285,LIFT REPAIRS & MTCE,CLIENTS LIFT REP & M,220406,,191400,FACILITIES MGT : Lifts,Removal of a stairlift,250210
http://statistics.data.gov.uk/id/statistical-geography/E08000533,Trafford,01/02/2021,5100401333,59573,180.96,VLC (Stairlifts) Limited,3536,GB812311285,LIFT REPAIRS & MTCE,CLIENTS LIFT REP & M,220406,,191400,FACILITIES MGT : Lifts,Call out,250210
http://statistics.data.gov.uk/id/statistical-geography/E08000534,Trafford,01/02/2021,5100401334,59578,137.77,VLC (Stairlifts) Limited,3536,GB812311285,LIFT REPAIRS & MTCE,CLIENTS LIFT REP & M,220406,,191400,FACILITIES MGT : Lifts,Call out,250210
http://statistics.data.gov.uk/id/statistical-geography/E08000535,Trafford,01/02/2021,5100401335,59580,55.5,VLC (Stairlifts) Limited,3536,GB812311285,LIFT REPAIRS & MTCE,CLIENTS LIFT REP & M,220406,,321311,SOCIAL CARE : Equipment,Call out,250210
http://statistics.data.gov.uk/id/statistical-geography/E08000536,Trafford,01/02/2021,5100401336,59579,654.19,VLC (Stairlifts) Limited,3536,GB812311285,LIFT REPAIRS & MTCE,CLIENTS LIFT REP & M,220406,,321311,SOCIAL CARE : Equipment,Call out,250210
http://statistics.data.gov.uk/id/statistical-geography/E08000537,Trafford,01/02/2021,5100401337,59577,150,VLC (Stairlifts) Limited,3536,GB812311285,LIFT REPAIRS & MTCE,CLIENTS LIFT REP & M,220406,,321311,SOCIAL CARE : Equipment,Removal of a stairlift,250210
http://statistics.data.gov.uk/id/statistical-geography/E08000538,Trafford,01/02/2021,5100401372,59594,83.75,VLC (Stairlifts) Limited,3536,GB812311285,LIFT REPAIRS & MTCE,CLIENTS LIFT REP & M,220406,,191400,FACILITIES MGT : Lifts,Call out,250210
http://statistics.data.gov.uk/id/statistical-geography/E08000539,Trafford,01/02/2021,5100401373,59592,226.56,VLC (Stairlifts) Limited,3536,GB812311285,LIFT REPAIRS & MTCE,CLIENTS LIFT REP & M,220406,,321311,SOCIAL CARE : Equipment,Call out,250210
http://statistics.data.gov.uk/id/statistical-geography/E08000540,Trafford,01/02/2021,5100401374,59593,150,VLC (Stairlifts) Limited,3536,GB812311285,LIFT REPAIRS & MTCE,CLIENTS LIFT REP & M,220406,,191400,FACILITIES MGT : Lifts,Removal of a stairlift,250210
http://statistics.data.gov.uk/id/statistical-geography/E08000541,Trafford,01/02/2021,5100401464,59590,175,VLC (Stairlifts) Limited,3536,GB812311285,LIFT REPAIRS & MTCE,CLIENTS LIFT REP & M,220406,,191400,FACILITIES MGT : Lifts,Load test,250210
http://statistics.data.gov.uk/id/statistical-geography/E08000542,Trafford,01/02/2021,5100401465,59589,385.41,VLC (Stairlifts) Limited,3536,GB812311285,LIFT REPAIRS & MTCE,CLIENTS LIFT REP & M,220406,,321311,SOCIAL CARE : Equipment,Call out,250210
http://statistics.data.gov.uk/id/statistical-geography/E08000543,Trafford,01/02/2021,5100401466,59591,350.66,VLC (Stairlifts) Limited,3536,GB812311285,LIFT REPAIRS & MTCE,CLIENTS LIFT REP & M,220406,,191400,FACILITIES MGT : Lifts,Call out,250210
http://statistics.data.gov.uk/id/statistical-geography/E08000544,Trafford,15/02/2021,5100402180,819789,747,Paul Grainge Grounds Maintenance Lt,3332,GB794433206,NEXUS EDUCATION CENT,EXT GR MAINT CONT WK,200405,,241200,HORTICULTURAL : Services,Redacted,120631
http://statistics.data.gov.uk/id/statistical-geography/E08000545,Trafford,15/02/2021,5100402182,819790,600,Paul Grainge Grounds Maintenance Lt,3332,GB794433206,LP:BACK OF ST. MARYS,EXT GR MAINT CONT WK,200405,,241200,HORTICULTURAL : Services,Hedges,550955
http://statistics.data.gov.uk/id/statistical-geography/E08000546,Trafford,01/02/2021,5100401270,819766,"4,150.00",Paul Grainge Grounds Maintenance Lt,3332,GB794433206,William Wroe Golf Cl,PROFESSIONAL FEES,220456,,241200,HORTICULTURAL : Services,William Wroe - Paths Field Hedge Cut,622622
http://statistics.data.gov.uk/id/statistical-geography/E08000547,Trafford,01/02/2021,5100401271,819764,400,Paul Grainge Grounds Maintenance Lt,3332,GB794433206,LP:TRAFFORD DRIVE (H,EXT GR MAINT CONT WK,200405,,241200,HORTICULTURAL : Services,Gates,550942
http://statistics.data.gov.uk/id/statistical-geography/E08000548,Trafford,01/02/2021,1901399415,558186,669.08,Sisters Of St Joseph CIO,100785,,MEM SUPP 75-84 LT,Social Care-3rd Prty,230805,,321000,SOCIAL CARE SERVICES : Adult,Redacted,157022
http://statistics.data.gov.uk/id/statistical-geography/E08000549,Trafford,01/02/2021,1901399415,558186,"2,142.44",Sisters Of St Joseph CIO,100785,,MEM SUPP 75-84 LT,EXT NURS CARE FEES,230844,,321000,SOCIAL CARE SERVICES : Adult,Redacted,157022
http://statistics.data.gov.uk/id/statistical-geography/E08000550,Trafford,01/02/2021,1901399415,558186,"1,089.32",Sisters Of St Joseph CIO,100785,,PHYS SUPP 75-84 LT,EXT NURS CARE FEES,230844,,321000,SOCIAL CARE SERVICES : Adult,Redacted,157020
http://statistics.data.gov.uk/id/statistical-geography/E08000551,Trafford,01/02/2021,1901399415,558186,"2,142.44",Sisters Of St Joseph CIO,100785,,PHYS SUPP 75-84 LT,EXT NURS CARE FEES,230844,,321000,SOCIAL CARE SERVICES : Adult,Redacted,157020
http://statistics.data.gov.uk/id/statistical-geography/E08000552,Trafford,01/02/2021,1901399415,558186,853.56,Sisters Of St Joseph CIO,100785,,MENT HLT 65-74 LT,EXT NURS CARE FEES,230844,,321000,SOCIAL CARE SERVICES : Adult,Redacted,157014
http://statistics.data.gov.uk/id/statistical-geography/E08000553,Trafford,01/02/2021,1901399415,558186,"2,142.44",Sisters Of St Joseph CIO,100785,,MENT HLT 65-74 LT,EXT NURS CARE FEES,230844,,321000,SOCIAL CARE SERVICES : Adult,Redacted,157014
http://statistics.data.gov.uk/id/statistical-geography/E08000554,Trafford,01/02/2021,1901399415,558186,"1,336.60",Sisters Of St Joseph CIO,100785,,MENT HLT 18-64 LT,EXT NURS CARE FEES,230844,,321000,SOCIAL CARE SERVICES : Adult,Redacted,157004
http://statistics.data.gov.uk/id/statistical-geography/E08000555,Trafford,01/02/2021,1901399415,558186,"2,142.44",Sisters Of St Joseph CIO,100785,,MENT HLT 18-64 LT,EXT NURS CARE FEES,230844,,321000,SOCIAL CARE SERVICES : Adult,Redacted,157004
http://statistics.data.gov.uk/id/statistical-geography/E08000556,Trafford,01/02/2021,1901399415,558186,200,Sisters Of St Joseph CIO,100785,,PHYS SUPP 65-74 LT,Social Care-3rd Prty,230805,,321000,SOCIAL CARE SERVICES : Adult,Redacted,157010
http://statistics.data.gov.uk/id/statistical-geography/E08000557,Trafford,01/02/2021,1901399415,558186,"1,286.00",Sisters Of St Joseph CIO,100785,,PHYS SUPP 65-74 LT,EXT NURS CARE FEES,230844,,321000,SOCIAL CARE SERVICES : Adult,Redacted,157010
http://statistics.data.gov.uk/id/statistical-geography/E08000558,Trafford,01/02/2021,1901399415,558186,"2,504.00",Sisters Of St Joseph CIO,100785,,PHYS SUPP 65-74 LT,EXT NURS CARE FEES,230844,,321000,SOCIAL CARE SERVICES : Adult,Redacted,157010
http://statistics.data.gov.uk/id/statistical-geography/E08000559,Trafford,01/02/2021,1901399415,558186,"1,953.20",Sisters Of St Joseph CIO,100785,,PHYS SUPP 65-74 LT,Social Care-3rd Prty,230805,,321000,SOCIAL CARE SERVICES : Adult,Redacted,157010
http://statistics.data.gov.uk/id/statistical-geography/E08000560,Trafford,01/02/2021,1901399415,558186,"2,142.44",Sisters Of St Joseph CIO,100785,,PHYS SUPP 65-74 LT,EXT NURS CARE FEES,230844,,321000,SOCIAL CARE SERVICES : Adult,Redacted,157010
http://statistics.data.gov.uk/id/statistical-geography/E08000561,Trafford,01/02/2021,1901399415,558186,"1,215.20",Sisters Of St Joseph CIO,100785,,PHYS SUPP 85+ LT,EXT NURS CARE FEES,230844,,321000,SOCIAL CARE SERVICES : Adult,Redacted,157030
http://statistics.data.gov.uk/id/statistical-geography/E08000562,Trafford,01/02/2021,1901399415,558186,"2,142.44",Sisters Of St Joseph CIO,100785,,PHYS SUPP 85+ LT,EXT NURS CARE FEES,230844,,321000,SOCIAL CARE SERVICES : Adult,Redacted,157030
http://statistics.data.gov.uk/id/statistical-geography/E08000563,Trafford,01/02/2021,1901399415,558186,"2,936.48",Sisters Of St Joseph CIO,100785,,PHYS SUPP 75-84 LT,Social Care-3rd Prty,230805,,321000,SOCIAL CARE SERVICES : Adult,Redacted,157020
http://statistics.data.gov.uk/id/statistical-geography/E08000564,Trafford,01/02/2021,1901399415,558186,"1,863.52",Sisters Of St Joseph CIO,100785,,PHYS SUPP 75-84 LT,EXT NURS CARE FEES,230844,,321000,SOCIAL CARE SERVICES : Adult,Redacted,157020
http://statistics.data.gov.uk/id/statistical-geography/E08000565,Trafford,15/02/2021,5100402063,2574666,798.25,Teaching Personnel Ltd,100513,GB779994039,Tutor Costs,CONT VOL BODIES,230540,,171011,EDUCATION :  Children,Redacted,110403
http://statistics.data.gov.uk/id/statistical-geography/E08000566,Trafford,15/02/2021,5100402066,2568220,957.9,Teaching Personnel Ltd,100513,GB779994039,Tutor Costs,CONT VOL BODIES,230540,,171011,EDUCATION :  Children,Redacted,110403
http://statistics.data.gov.uk/id/statistical-geography/E08000567,Trafford,15/02/2021,5100402067,2566278,957.9,Teaching Personnel Ltd,100513,GB779994039,Tutor Costs,CONT VOL BODIES,230540,,171011,EDUCATION :  Children,Redacted,110403
http://statistics.data.gov.uk/id/statistical-geography/E08000568,Trafford,15/02/2021,5100402197,25682192,450,Teaching Personnel Ltd,100513,GB779994039,PUPIL PREMIUM PLUS,CLIENTS PERS NEEDS,220412,,321100,SOCIAL CARE : Children,Teaching Personnel 2568219/2,130713
http://statistics.data.gov.uk/id/statistical-geography/E08000569,Trafford,15/02/2021,5100402198,25746651,625,Teaching Personnel Ltd,100513,GB779994039,NTAS VIRTUAL SCHOOL,CLIENTS PERS NEEDS,220412,,321100,SOCIAL CARE : Children,Redacted,110405
http://statistics.data.gov.uk/id/statistical-geography/E08000570,Trafford,15/02/2021,5100402199,25746652,750,Teaching Personnel Ltd,100513,GB779994039,PUPIL PREMIUM PLUS,CLIENTS PERS NEEDS,220412,,321100,SOCIAL CARE : Children,Teaching Personnel 2574665/2,130713
http://statistics.data.gov.uk/id/statistical-geography/E08000571,Trafford,15/02/2021,5100402200,2576548,750,Teaching Personnel Ltd,100513,GB779994039,PUPIL PREMIUM PLUS,CLIENTS PERS NEEDS,220412,,321100,SOCIAL CARE : Children,Teaching Personnel 2576548,130713
http://statistics.data.gov.uk/id/statistical-geography/E08000572,Trafford,24/02/2021,5100402701,44863,"17,225.15",The Together Trust,101330,GB611400506,Post 16 - Element 3,NON MAINT SCH FEES,230800,,171011,EDUCATION :  Children,Redacted,110328
http://statistics.data.gov.uk/id/statistical-geography/E08000573,Trafford,24/02/2021,5100402702,44864,"14,527.04",The Together Trust,101330,GB611400506,Post 16 - Element 3,NON MAINT SCH FEES,230800,,171011,EDUCATION :  Children,Redacted,110328
http://statistics.data.gov.uk/id/statistical-geography/E08000574,Trafford,24/02/2021,5100402703,44865,"14,544.54",The Together Trust,101330,GB611400506,Post 16 - Element 3,NON MAINT SCH FEES,230800,,171011,EDUCATION :  Children,Redacted,110328
http://statistics.data.gov.uk/id/statistical-geography/E08000575,Trafford,24/02/2021,5100402728,44886,"14,261.89",The Together Trust,101330,GB611400506,Non-Trafford CompAge,NON MAINT SCH FEES,230800,,171011,EDUCATION :  Children,Redacted,110400
http://statistics.data.gov.uk/id/statistical-geography/E08000576,Trafford,24/02/2021,5100402729,44887,"12,774.64",The Together Trust,101330,GB611400506,Non-Trafford CompAge,NON MAINT SCH FEES,230800,,171011,EDUCATION :  Children,Redacted,110400
http://statistics.data.gov.uk/id/statistical-geography/E08000577,Trafford,08/02/2021,1901401047,Redacted,"9,503.35",Sisters Of St Joseph CIO,100785,,Council Covid 19 mon,EXT RES CARE FEES,230842,,321000,SOCIAL CARE SERVICES : Adult,Rapid Test Fund,157041
http://statistics.data.gov.uk/id/statistical-geography/E08000578,Trafford,01/02/2021,1901399399,558175,474.36,Hind Care Ltd,100806,,PHYS SUPP 85+ LT,EXT NURS CARE FEES,230844,,321016,SOCIAL CARE  : Nursing Homes,Redacted,157030
http://statistics.data.gov.uk/id/statistical-geography/E08000579,Trafford,01/02/2021,1901399399,558175,"2,142.44",Hind Care Ltd,100806,,PHYS SUPP 85+ LT,EXT NURS CARE FEES,230844,,321016,SOCIAL CARE  : Nursing Homes,Redacted,157030
http://statistics.data.gov.uk/id/statistical-geography/E08000580,Trafford,01/02/2021,1901399399,558175,"1,195.20",Hind Care Ltd,100806,,PHYS SUPP 75-84 LT,EXT NURS CARE FEES,230844,,321016,SOCIAL CARE  : Nursing Homes,Redacted,157020
http://statistics.data.gov.uk/id/statistical-geography/E08000581,Trafford,01/02/2021,1901399399,558175,"2,142.44",Hind Care Ltd,100806,,PHYS SUPP 75-84 LT,EXT NURS CARE FEES,230844,,321016,SOCIAL CARE  : Nursing Homes,Redacted,157020
http://statistics.data.gov.uk/id/statistical-geography/E08000582,Trafford,01/02/2021,1901399399,558175,"1,249.32",Hind Care Ltd,100806,,MEM SUPP 18-64 LT,EXT NURS CARE FEES,230844,,321016,SOCIAL CARE  : Nursing Homes,Redacted,157002
http://statistics.data.gov.uk/id/statistical-geography/E08000583,Trafford,01/02/2021,1901399399,558175,"2,142.44",Hind Care Ltd,100806,,MEM SUPP 18-64 LT,EXT NURS CARE FEES,230844,,321016,SOCIAL CARE  : Nursing Homes,Redacted,157002
http://statistics.data.gov.uk/id/statistical-geography/E08000584,Trafford,01/02/2021,1901399399,558175,"1,182.56",Hind Care Ltd,100806,,PHYS SUPP 65-74 LT,Social Care-3rd Prty,230805,,321016,SOCIAL CARE  : Nursing Homes,Redacted,157010
http://statistics.data.gov.uk/id/statistical-geography/E08000585,Trafford,01/02/2021,1901399399,558175,"2,142.44",Hind Care Ltd,100806,,PHYS SUPP 65-74 LT,EXT NURS CARE FEES,230844,,321016,SOCIAL CARE  : Nursing Homes,Redacted,157010
http://statistics.data.gov.uk/id/statistical-geography/E08000586,Trafford,11/02/2021,1901402222,21,"9,551.00",Altrincham College of Arts Academy,436,GB149191256,YP:AltrinchamCollege,SCHOOL BUDGET SHARE,280040,,171011,EDUCATION :  Children,Redacted,103427
http://statistics.data.gov.uk/id/statistical-geography/E08000587,Trafford,08/02/2021,1901401026,Redacted,"4,623.25",Hind Care Ltd,100806,,Council Covid 19 mon,EXT RES CARE FEES,230842,,321016,SOCIAL CARE  : Nursing Homes,Rapid Test Fund,157041
http://statistics.data.gov.uk/id/statistical-geography/E08000588,Trafford,08/02/2021,1901400863,104567,"1,152.00",Stockport Cerebral Palsy Society,100399,,LEARN DIS 18-64 LT,EXT DAY CARE,230846,,321013,SOCIAL CARE : Day Care,Redacted,157003
http://statistics.data.gov.uk/id/statistical-geography/E08000589,Trafford,08/02/2021,1901400864,104568,"1,558.56",Stockport Cerebral Palsy Society,100399,,LEARN DIS 18-64 LT,EXT DAY CARE,230846,,321013,SOCIAL CARE : Day Care,Redacted,157003
http://statistics.data.gov.uk/id/statistical-geography/E08000590,Trafford,08/02/2021,1901400865,104569,"1,440.00",Stockport Cerebral Palsy Society,100399,,LEARN DIS 18-64 LT,EXT DAY CARE,230846,,321013,SOCIAL CARE : Day Care,Redacted,157003
http://statistics.data.gov.uk/id/statistical-geography/E08000591,Trafford,08/02/2021,1901400866,104570,"1,152.00",Stockport Cerebral Palsy Society,100399,,LEARN DIS 18-64 LT,EXT DAY CARE,230846,,321013,SOCIAL CARE : Day Care,Redacted,157003
http://statistics.data.gov.uk/id/statistical-geography/E08000592,Trafford,08/02/2021,1901400867,104571,"1,558.56",Stockport Cerebral Palsy Society,100399,,LEARN DIS 18-64 LT,EXT DAY CARE,230846,,321013,SOCIAL CARE : Day Care,Redacted,157003
http://statistics.data.gov.uk/id/statistical-geography/E08000593,Trafford,08/02/2021,1901400868,104572,"1,440.00",Stockport Cerebral Palsy Society,100399,,LEARN DIS 18-64 LT,EXT DAY CARE,230846,,321013,SOCIAL CARE : Day Care,Redacted,157003
http://statistics.data.gov.uk/id/statistical-geography/E08000594,Trafford,01/02/2021,1901399379,558162,720.48,Bradley House Limited,100420,,MENT HLT 75-84 LT,EXT NURS CARE FEES,230844,,321016,SOCIAL CARE  : Nursing Homes,Redacted,157024
http://statistics.data.gov.uk/id/statistical-geography/E08000595,Trafford,01/02/2021,1901399379,558162,"2,408.36",Bradley House Limited,100420,,MENT HLT 75-84 LT,EXT NURS CARE FEES,230844,,321016,SOCIAL CARE  : Nursing Homes,Redacted,157024
http://statistics.data.gov.uk/id/statistical-geography/E08000596,Trafford,01/02/2021,1901399379,558162,720.48,Bradley House Limited,100420,,MENT HLT 65-74 LT,EXT NURS CARE FEES,230844,,321016,SOCIAL CARE  : Nursing Homes,Redacted,157014
http://statistics.data.gov.uk/id/statistical-geography/E08000597,Trafford,01/02/2021,1901399379,558162,"2,408.36",Bradley House Limited,100420,,MENT HLT 65-74 LT,EXT NURS CARE FEES,230844,,321016,SOCIAL CARE  : Nursing Homes,Redacted,157014
http://statistics.data.gov.uk/id/statistical-geography/E08000598,Trafford,01/02/2021,1901399379,558162,536,Bradley House Limited,100420,,PHYS SUPP 85+ LT,EXT NURS CARE FEES,230844,,321016,SOCIAL CARE  : Nursing Homes,Redacted,157030
http://statistics.data.gov.uk/id/statistical-geography/E08000599,Trafford,01/02/2021,1901399379,558162,"2,504.00",Bradley House Limited,100420,,PHYS SUPP 85+ LT,EXT NURS CARE FEES,230844,,321016,SOCIAL CARE  : Nursing Homes,Redacted,157030
http://statistics.data.gov.uk/id/statistical-geography/E08000600,Trafford,01/02/2021,1901399379,558162,896,Bradley House Limited,100420,,PHYS SUPP 85+ LT,EXT NURS CARE FEES,230844,,321016,SOCIAL CARE  : Nursing Homes,Redacted,157030
http://statistics.data.gov.uk/id/statistical-geography/E08000601,Trafford,01/02/2021,1901399379,558162,"2,504.00",Bradley House Limited,100420,,PHYS SUPP 85+ LT,EXT NURS CARE FEES,230844,,321016,SOCIAL CARE  : Nursing Homes,Redacted,157030
http://statistics.data.gov.uk/id/statistical-geography/E08000602,Trafford,01/02/2021,1901399379,558162,267.16,Bradley House Limited,100420,,MENT HLT 18-64 LT,EXT NURS CARE FEES,230844,,321016,SOCIAL CARE  : Nursing Homes,Redacted,157004
http://statistics.data.gov.uk/id/statistical-geography/E08000603,Trafford,01/02/2021,1901399379,558162,"2,408.36",Bradley House Limited,100420,,MENT HLT 18-64 LT,EXT NURS CARE FEES,230844,,321016,SOCIAL CARE  : Nursing Homes,Redacted,157004
http://statistics.data.gov.uk/id/statistical-geography/E08000604,Trafford,01/02/2021,1901399379,558162,"1,160.00",Bradley House Limited,100420,,SENS SUPP 85+ LT,EXT RES CARE FEES,230842,,321016,SOCIAL CARE  : Nursing Homes,Redacted,157031
http://statistics.data.gov.uk/id/statistical-geography/E08000605,Trafford,01/02/2021,1901399379,558162,"2,240.00",Bradley House Limited,100420,,SENS SUPP 85+ LT,EXT RES CARE FEES,230842,,321016,SOCIAL CARE  : Nursing Homes,Redacted,157031
http://statistics.data.gov.uk/id/statistical-geography/E08000606,Trafford,01/02/2021,1901399379,558162,896,Bradley House Limited,100420,,PHYS SUPP 85+ LT,EXT NURS CARE FEES,230844,,321016,SOCIAL CARE  : Nursing Homes,Redacted,157030
http://statistics.data.gov.uk/id/statistical-geography/E08000607,Trafford,01/02/2021,1901399379,558162,"2,504.00",Bradley House Limited,100420,,PHYS SUPP 85+ LT,EXT NURS CARE FEES,230844,,321016,SOCIAL CARE  : Nursing Homes,Redacted,157030
http://statistics.data.gov.uk/id/statistical-geography/E08000608,Trafford,01/02/2021,1901399379,558162,-480,Bradley House Limited,100420,,PHYS SUPP 85+ LT,EXT NURS CARE FEES,230844,,321016,SOCIAL CARE  : Nursing Homes,Redacted,157030
http://statistics.data.gov.uk/id/statistical-geography/E08000609,Trafford,01/02/2021,1901399379,558162,"-1,341.43",Bradley House Limited,100420,,PHYS SUPP 85+ LT,EXT NURS CARE FEES,230844,,321016,SOCIAL CARE  : Nursing Homes,Redacted,157030
http://statistics.data.gov.uk/id/statistical-geography/E08000610,Trafford,01/02/2021,1901399379,558162,"2,307.14",Bradley House Limited,100420,,Recharge Enhanced Ca,EXT NURS CARE FEES,230844,,321016,SOCIAL CARE  : Nursing Homes,Redacted,157040
http://statistics.data.gov.uk/id/statistical-geography/E08000611,Trafford,01/02/2021,1901399379,558162,"3,400.00",Bradley House Limited,100420,,Recharge Enhanced Ca,EXT NURS CARE FEES,230844,,321016,SOCIAL CARE  : Nursing Homes,Redacted,157040
http://statistics.data.gov.uk/id/statistical-geography/E08000612,Trafford,01/02/2021,1901399379,558162,"3,400.00",Bradley House Limited,100420,,Recharge Enhanced Ca,EXT NURS CARE FEES,230844,,321016,SOCIAL CARE  : Nursing Homes,Redacted,157040
http://statistics.data.gov.uk/id/statistical-geography/E08000613,Trafford,01/02/2021,1901399379,558162,896,Bradley House Limited,100420,,PHYS SUPP 75-84 LT,EXT NURS CARE FEES,230844,,321016,SOCIAL CARE  : Nursing Homes,Redacted,157020
http://statistics.data.gov.uk/id/statistical-geography/E08000614,Trafford,01/02/2021,1901399379,558162,"2,504.00",Bradley House Limited,100420,,PHYS SUPP 75-84 LT,EXT NURS CARE FEES,230844,,321016,SOCIAL CARE  : Nursing Homes,Redacted,157020
http://statistics.data.gov.uk/id/statistical-geography/E08000615,Trafford,01/02/2021,1901399379,558162,808.84,Bradley House Limited,100420,,MEM SUPP 75-84 LT,EXT NURS CARE FEES,230844,,321016,SOCIAL CARE  : Nursing Homes,Redacted,157022
http://statistics.data.gov.uk/id/statistical-geography/E08000616,Trafford,01/02/2021,1901399379,558162,"2,408.36",Bradley House Limited,100420,,MEM SUPP 75-84 LT,EXT NURS CARE FEES,230844,,321016,SOCIAL CARE  : Nursing Homes,Redacted,157022
http://statistics.data.gov.uk/id/statistical-geography/E08000617,Trafford,01/02/2021,1901399379,558162,271.96,Bradley House Limited,100420,,MENT HLT 65-74 LT,Social Care-3rd Prty,230805,,321016,SOCIAL CARE  : Nursing Homes,Redacted,157014
http://statistics.data.gov.uk/id/statistical-geography/E08000618,Trafford,01/02/2021,1901399379,558162,"2,408.36",Bradley House Limited,100420,,MENT HLT 65-74 LT,EXT NURS CARE FEES,230844,,321016,SOCIAL CARE  : Nursing Homes,Redacted,157014
http://statistics.data.gov.uk/id/statistical-geography/E08000619,Trafford,01/02/2021,1901399379,558162,720.48,Bradley House Limited,100420,,PHYS SUPP 75-84 LT,EXT NURS CARE FEES,230844,,321016,SOCIAL CARE  : Nursing Homes,Redacted,157020
http://statistics.data.gov.uk/id/statistical-geography/E08000620,Trafford,01/02/2021,1901399379,558162,"2,408.36",Bradley House Limited,100420,,PHYS SUPP 75-84 LT,EXT NURS CARE FEES,230844,,321016,SOCIAL CARE  : Nursing Homes,Redacted,157020
http://statistics.data.gov.uk/id/statistical-geography/E08000621,Trafford,01/02/2021,1901399379,558162,"2,504.00",Bradley House Limited,100420,,Recharge Enhanced Ca,EXT NURS CARE FEES,230844,,321016,SOCIAL CARE  : Nursing Homes,Redacted,157040
http://statistics.data.gov.uk/id/statistical-geography/E08000622,Trafford,01/02/2021,1901399379,558162,"3,400.00",Bradley House Limited,100420,,Recharge Enhanced Ca,EXT NURS CARE FEES,230844,,321016,SOCIAL CARE  : Nursing Homes,Redacted,157040
http://statistics.data.gov.uk/id/statistical-geography/E08000623,Trafford,01/02/2021,1901399379,558162,"3,400.00",Bradley House Limited,100420,,Recharge Enhanced Ca,EXT NURS CARE FEES,230844,,321016,SOCIAL CARE  : Nursing Homes,Redacted,157040
http://statistics.data.gov.uk/id/statistical-geography/E08000624,Trafford,01/02/2021,1901399379,558162,"2,504.00",Bradley House Limited,100420,,Recharge Enhanced Ca,EXT NURS CARE FEES,230844,,321016,SOCIAL CARE  : Nursing Homes,Redacted,157040
http://statistics.data.gov.uk/id/statistical-geography/E08000625,Trafford,01/02/2021,1901399379,558162,896,Bradley House Limited,100420,,MEM SUPP 75-84 LT,EXT NURS CARE FEES,230844,,321016,SOCIAL CARE  : Nursing Homes,Redacted,157022
http://statistics.data.gov.uk/id/statistical-geography/E08000626,Trafford,01/02/2021,1901399379,558162,"2,504.00",Bradley House Limited,100420,,MEM SUPP 75-84 LT,EXT NURS CARE FEES,230844,,321016,SOCIAL CARE  : Nursing Homes,Redacted,157022
http://statistics.data.gov.uk/id/statistical-geography/E08000627,Trafford,01/02/2021,1901399379,558162,896,Bradley House Limited,100420,,PHYS SUPP 75-84 LT,EXT NURS CARE FEES,230844,,321016,SOCIAL CARE  : Nursing Homes,Redacted,157020
http://statistics.data.gov.uk/id/statistical-geography/E08000628,Trafford,01/02/2021,1901399379,558162,"2,504.00",Bradley House Limited,100420,,PHYS SUPP 75-84 LT,EXT NURS CARE FEES,230844,,321016,SOCIAL CARE  : Nursing Homes,Redacted,157020
http://statistics.data.gov.uk/id/statistical-geography/E08000629,Trafford,01/02/2021,1901399379,558162,"1,252.00",Bradley House Limited,100420,,Recharge Enhanced Ca,EXT NURS CARE FEES,230844,,321016,SOCIAL CARE  : Nursing Homes,Redacted,157040
http://statistics.data.gov.uk/id/statistical-geography/E08000630,Trafford,01/02/2021,1901399379,558162,"2,504.00",Bradley House Limited,100420,,Recharge Enhanced Ca,EXT NURS CARE FEES,230844,,321016,SOCIAL CARE  : Nursing Homes,Redacted,157040
http://statistics.data.gov.uk/id/statistical-geography/E08000631,Trafford,01/02/2021,1901399379,558162,896,Bradley House Limited,100420,,PHYS SUPP 75-84 LT,EXT NURS CARE FEES,230844,,321016,SOCIAL CARE  : Nursing Homes,Redacted,157020
http://statistics.data.gov.uk/id/statistical-geography/E08000632,Trafford,01/02/2021,1901399379,558162,"2,504.00",Bradley House Limited,100420,,PHYS SUPP 75-84 LT,EXT NURS CARE FEES,230844,,321016,SOCIAL CARE  : Nursing Homes,Redacted,157020
http://statistics.data.gov.uk/id/statistical-geography/E08000633,Trafford,01/02/2021,1901399379,558162,896,Bradley House Limited,100420,,PHYS SUPP 75-84 LT,Social Care-3rd Prty,230805,,321016,SOCIAL CARE  : Nursing Homes,Redacted,157020
http://statistics.data.gov.uk/id/statistical-geography/E08000634,Trafford,01/02/2021,1901399379,558162,"2,504.00",Bradley House Limited,100420,,PHYS SUPP 75-84 LT,EXT NURS CARE FEES,230844,,321016,SOCIAL CARE  : Nursing Homes,Redacted,157020
http://statistics.data.gov.uk/id/statistical-geography/E08000635,Trafford,01/02/2021,1901399379,558162,"2,428.57",Bradley House Limited,100420,,Recharge Enhanced Ca,EXT NURS CARE FEES,230844,,321016,SOCIAL CARE  : Nursing Homes,Redacted,157040
http://statistics.data.gov.uk/id/statistical-geography/E08000636,Trafford,01/02/2021,1901399379,558162,"3,400.00",Bradley House Limited,100420,,Recharge Enhanced Ca,EXT NURS CARE FEES,230844,,321016,SOCIAL CARE  : Nursing Homes,Redacted,157040
http://statistics.data.gov.uk/id/statistical-geography/E08000637,Trafford,01/02/2021,1901399379,558162,896,Bradley House Limited,100420,,PHYS SUPP 75-84 LT,EXT NURS CARE FEES,230844,,321016,SOCIAL CARE  : Nursing Homes,Redacted,157020
http://statistics.data.gov.uk/id/statistical-geography/E08000638,Trafford,01/02/2021,1901399379,558162,"2,504.00",Bradley House Limited,100420,,PHYS SUPP 75-84 LT,EXT NURS CARE FEES,230844,,321016,SOCIAL CARE  : Nursing Homes,Redacted,157020
http://statistics.data.gov.uk/id/statistical-geography/E08000639,Trafford,01/02/2021,1901399379,558162,"1,335.71",Bradley House Limited,100420,,Recharge Enhanced Ca,EXT NURS CARE FEES,230844,,321016,SOCIAL CARE  : Nursing Homes,Redacted,157040
http://statistics.data.gov.uk/id/statistical-geography/E08000640,Trafford,01/02/2021,1901399379,558162,"23,800.00",Bradley House Limited,100420,,Recharge Enhanced Ca,EXT NURS CARE FEES,230844,,321016,SOCIAL CARE  : Nursing Homes,Redacted,157040
http://statistics.data.gov.uk/id/statistical-geography/E08000641,Trafford,01/02/2021,1901399379,558162,"23,800.00",Bradley House Limited,100420,,Recharge Enhanced Ca,EXT NURS CARE FEES,230844,,321016,SOCIAL CARE  : Nursing Homes,Redacted,157040
http://statistics.data.gov.uk/id/statistical-geography/E08000642,Trafford,01/02/2021,1901399379,558162,"-6,800.00",Bradley House Limited,100420,,Recharge Enhanced Ca,EXT NURS CARE FEES,230844,,321016,SOCIAL CARE  : Nursing Homes,Redacted,157040
http://statistics.data.gov.uk/id/statistical-geography/E08000643,Trafford,08/02/2021,1901401015,Redacted,"8,732.80",Bradley House Limited,100420,,Council Covid 19 mon,EXT RES CARE FEES,230842,,321016,SOCIAL CARE  : Nursing Homes,Rapid Test Fund,157041
http://statistics.data.gov.uk/id/statistical-geography/E08000644,Trafford,01/02/2021,1901399485,558237,"1,937.84",Broughton Hs Home For Ex-Servicemen,100447,,PHYS SUPP 85+ LT,EXT RES CARE FEES,230842,,321016,SOCIAL CARE  : Nursing Homes,Redacted,157030
http://statistics.data.gov.uk/id/statistical-geography/E08000645,Trafford,01/02/2021,1901399485,558237,"1,937.84",Broughton Hs Home For Ex-Servicemen,100447,,MEM SUPP 75-84 LT,EXT RES CARE FEES,230842,,321016,SOCIAL CARE  : Nursing Homes,Redacted,157022
http://statistics.data.gov.uk/id/statistical-geography/E08000646,Trafford,01/02/2021,1901399385,558166,938.64,Springcare (Knutsford) Ltd,100471,GB211785910,PHYS SUPP 75-84 LT,EXT RES CARE FEES,230842,,321000,SOCIAL CARE SERVICES : Adult,Redacted,157020
http://statistics.data.gov.uk/id/statistical-geography/E08000647,Trafford,01/02/2021,1901399385,558166,"2,061.36",Springcare (Knutsford) Ltd,100471,GB211785910,PHYS SUPP 75-84 LT,EXT RES CARE FEES,230842,,321000,SOCIAL CARE SERVICES : Adult,Redacted,157020
http://statistics.data.gov.uk/id/statistical-geography/E08000648,Trafford,01/02/2021,5100401427,2564799,478.95,Teaching Personnel Ltd,100513,GB779994039,Tutor Costs,CONT VOL BODIES,230540,,171011,EDUCATION :  Children,Redacted,110403
http://statistics.data.gov.uk/id/statistical-geography/E08000649,Trafford,01/02/2021,5100401429,600,798.25,Teaching Personnel Ltd,100513,GB779994039,Tutor Costs,CONT VOL BODIES,230540,,171011,EDUCATION :  Children,Redacted,110403
http://statistics.data.gov.uk/id/statistical-geography/E08000650,Trafford,01/02/2021,5100401430,60067,798.25,Teaching Personnel Ltd,100513,GB779994039,Tutor Costs,CONT VOL BODIES,230540,,171011,EDUCATION :  Children,Redacted,110403
http://statistics.data.gov.uk/id/statistical-geography/E08000651,Trafford,01/02/2021,5100401219,6188048,80.97,TTS Group Ltd,101060,GB789963047,Sanyu Daycare,EDUCATION MATERIALS,220010,,171100,EDUCATION : Supplies,EY11110 - easi car V2,130570
http://statistics.data.gov.uk/id/statistical-geography/E08000652,Trafford,01/02/2021,5100401219,6188048,-8.1,TTS Group Ltd,101060,GB789963047,Sanyu Daycare,EDUCATION MATERIALS,220010,,171100,EDUCATION : Supplies,EY11110 - easi car V2,130570
http://statistics.data.gov.uk/id/statistical-geography/E08000653,Trafford,01/02/2021,5100401219,6188048,119.9,TTS Group Ltd,101060,GB789963047,Sanyu Daycare,EDUCATION MATERIALS,220010,,171100,EDUCATION : Supplies,EY07941 - illuminated mark making boards,130570
http://statistics.data.gov.uk/id/statistical-geography/E08000654,Trafford,01/02/2021,5100401219,6188048,-11.99,TTS Group Ltd,101060,GB789963047,Sanyu Daycare,EDUCATION MATERIALS,220010,,171100,EDUCATION : Supplies,EY07941 - illuminated mark making boards,130570
http://statistics.data.gov.uk/id/statistical-geography/E08000655,Trafford,01/02/2021,5100401219,6188048,16.48,TTS Group Ltd,101060,GB789963047,Sanyu Daycare,EDUCATION MATERIALS,220010,,171100,EDUCATION : Supplies,EY10451 - sequin motor skills frames,130570
http://statistics.data.gov.uk/id/statistical-geography/E08000656,Trafford,01/02/2021,5100401219,6188048,-1.65,TTS Group Ltd,101060,GB789963047,Sanyu Daycare,EDUCATION MATERIALS,220010,,171100,EDUCATION : Supplies,EY10451 - sequin motor skills frames,130570
http://statistics.data.gov.uk/id/statistical-geography/E08000657,Trafford,01/02/2021,5100401219,6188048,11.99,TTS Group Ltd,101060,GB789963047,Sanyu Daycare,EDUCATION MATERIALS,220010,,171100,EDUCATION : Supplies,EY10282 - gravy boat - 3,130570
http://statistics.data.gov.uk/id/statistical-geography/E08000658,Trafford,01/02/2021,5100401219,6188048,-1.2,TTS Group Ltd,101060,GB789963047,Sanyu Daycare,EDUCATION MATERIALS,220010,,171100,EDUCATION : Supplies,EY10282 - gravy boat - 3,130570
http://statistics.data.gov.uk/id/statistical-geography/E08000659,Trafford,01/02/2021,5100401222,6189052,84.95,TTS Group Ltd,101060,GB789963047,Sanyu Daycare,EDUCATION MATERIALS,220010,,171100,EDUCATION : Supplies,FSCOOT - twin wheeled scooter,130570
http://statistics.data.gov.uk/id/statistical-geography/E08000660,Trafford,01/02/2021,5100401222,6189052,-8.49,TTS Group Ltd,101060,GB789963047,Sanyu Daycare,EDUCATION MATERIALS,220010,,171100,EDUCATION : Supplies,FSCOOT - twin wheeled scooter,130570
http://statistics.data.gov.uk/id/statistical-geography/E08000661,Trafford,01/02/2021,5100401222,6189052,125.97,TTS Group Ltd,101060,GB789963047,Sanyu Daycare,EDUCATION MATERIALS,220010,,171100,EDUCATION : Supplies,EY06800 - wooden kitchen,130570
http://statistics.data.gov.uk/id/statistical-geography/E08000662,Trafford,01/02/2021,5100401222,6189052,-12.6,TTS Group Ltd,101060,GB789963047,Sanyu Daycare,EDUCATION MATERIALS,220010,,171100,EDUCATION : Supplies,EY06800 - wooden kitchen,130570
http://statistics.data.gov.uk/id/statistical-geography/E08000663,Trafford,08/02/2021,5100401717,6204795,18.99,TTS Group Ltd,101060,GB789963047,Sanyu Daycare,EDUCATION MATERIALS,220010,,171100,EDUCATION : Supplies,FARCAN Polar Region animals 13pcs,130570
http://statistics.data.gov.uk/id/statistical-geography/E08000664,Trafford,08/02/2021,5100401717,6204795,-1.9,TTS Group Ltd,101060,GB789963047,Sanyu Daycare,EDUCATION MATERIALS,220010,,171100,EDUCATION : Supplies,FARCAN Polar Region animals 13pcs,130570
http://statistics.data.gov.uk/id/statistical-geography/E08000665,Trafford,08/02/2021,5100401717,6204795,32.95,TTS Group Ltd,101060,GB789963047,Sanyu Daycare,EDUCATION MATERIALS,220010,,171100,EDUCATION : Supplies,EY04884 Arctic aniamls 7pcs,130570
http://statistics.data.gov.uk/id/statistical-geography/E08000666,Trafford,08/02/2021,5100401717,6204795,-3.29,TTS Group Ltd,101060,GB789963047,Sanyu Daycare,EDUCATION MATERIALS,220010,,171100,EDUCATION : Supplies,EY04884 Arctic aniamls 7pcs,130570
http://statistics.data.gov.uk/id/statistical-geography/E08000667,Trafford,08/02/2021,5100401717,6204795,59.9,TTS Group Ltd,101060,GB789963047,Sanyu Daycare,EDUCATION MATERIALS,220010,,171100,EDUCATION : Supplies,EY11728 15kg sand - multi buy,130570
http://statistics.data.gov.uk/id/statistical-geography/E08000668,Trafford,08/02/2021,5100401717,6204795,-5.98,TTS Group Ltd,101060,GB789963047,Sanyu Daycare,EDUCATION MATERIALS,220010,,171100,EDUCATION : Supplies,EY11728 15kg sand - multi buy,130570
http://statistics.data.gov.uk/id/statistical-geography/E08000669,Trafford,08/02/2021,5100401717,6204795,54.95,TTS Group Ltd,101060,GB789963047,Sanyu Daycare,EDUCATION MATERIALS,220010,,171100,EDUCATION : Supplies,EY06945 Small world vehicles,130570
http://statistics.data.gov.uk/id/statistical-geography/E08000670,Trafford,08/02/2021,5100401717,6204795,-5.49,TTS Group Ltd,101060,GB789963047,Sanyu Daycare,EDUCATION MATERIALS,220010,,171100,EDUCATION : Supplies,EY06945 Small world vehicles,130570
http://statistics.data.gov.uk/id/statistical-geography/E08000671,Trafford,08/02/2021,1901401053,Redacted,"1,797.93",Elizabeth Fitzroy Support,101365,,Council Covid 19 mon,EXT RES CARE FEES,230842,,321000,SOCIAL CARE SERVICES : Adult,Rapid Test Fund,157041
http://statistics.data.gov.uk/id/statistical-geography/E08000672,Trafford,01/02/2021,1901399457,558220,"2,980.04",Elizabeth Fitzroy Support,101365,,LEARN DIS 65-74 LT,EXT RES CARE FEES,230842,,321000,SOCIAL CARE SERVICES : Adult,Redacted,157013
http://statistics.data.gov.uk/id/statistical-geography/E08000673,Trafford,01/02/2021,1901399457,558220,"3,958.12",Elizabeth Fitzroy Support,101365,,LEARN DIS 65-74 LT,EXT RES CARE FEES,230842,,321000,SOCIAL CARE SERVICES : Adult,Redacted,157013
http://statistics.data.gov.uk/id/statistical-geography/E08000674,Trafford,01/02/2021,1901399495,558366,173.88,Elizabeth Fitzroy Support,101365,,LEARN DIS 18-64 LT,SUPP LIVING CONT,230530,,321000,SOCIAL CARE SERVICES : Adult,Redacted,157003
http://statistics.data.gov.uk/id/statistical-geography/E08000675,Trafford,01/02/2021,1901399495,558366,347.76,Elizabeth Fitzroy Support,101365,,LEARN DIS 18-64 LT,SUPP LIVING CONT,230530,,321000,SOCIAL CARE SERVICES : Adult,Redacted,157003
http://statistics.data.gov.uk/id/statistical-geography/E08000676,Trafford,01/02/2021,1901399495,558366,231.84,Elizabeth Fitzroy Support,101365,,LEARN DIS 18-64 LT,SUPP LIVING CONT,230530,,321000,SOCIAL CARE SERVICES : Adult,Redacted,157003
http://statistics.data.gov.uk/id/statistical-geography/E08000677,Trafford,01/02/2021,1901399495,558366,231.84,Elizabeth Fitzroy Support,101365,,LEARN DIS 65-74 LT,SUPP LIVING CONT,230530,,321000,SOCIAL CARE SERVICES : Adult,Redacted,157013
http://statistics.data.gov.uk/id/statistical-geography/E08000678,Trafford,01/02/2021,1901399495,558366,231.84,Elizabeth Fitzroy Support,101365,,LEARN DIS 18-64 LT,SUPP LIVING CONT,230530,,321000,SOCIAL CARE SERVICES : Adult,Redacted,157003
http://statistics.data.gov.uk/id/statistical-geography/E08000679,Trafford,01/02/2021,1901399495,558366,811.44,Elizabeth Fitzroy Support,101365,,LEARN DIS 18-64 LT,SUPP LIVING CONT,230530,,321000,SOCIAL CARE SERVICES : Adult,Redacted,157003
http://statistics.data.gov.uk/id/statistical-geography/E08000680,Trafford,01/02/2021,1901399495,558366,"11,383.60",Elizabeth Fitzroy Support,101365,,SUPPORTED LVG BLOCKS,SUPP LIVING CONT,230530,,321000,SOCIAL CARE SERVICES : Adult,Redacted,251342
http://statistics.data.gov.uk/id/statistical-geography/E08000681,Trafford,03/02/2021,1901400260,2020003190,"1,370.28",Elizabeth Fitzroy Support,101365,,LEARN DIS 18-64 LT,EXT DAY CARE,230846,,321000,SOCIAL CARE SERVICES : Adult,Redacted,157003
http://statistics.data.gov.uk/id/statistical-geography/E08000682,Trafford,03/02/2021,1901400261,2020003202,130.48,Elizabeth Fitzroy Support,101365,,LEARN DIS 18-64 LT,EXT DAY CARE,230846,,321000,SOCIAL CARE SERVICES : Adult,Redacted,157003
http://statistics.data.gov.uk/id/statistical-geography/E08000683,Trafford,03/02/2021,1901400262,2020003213,277.32,Elizabeth Fitzroy Support,101365,,LEARN DIS 18-64 LT,EXT DAY CARE,230846,,321000,SOCIAL CARE SERVICES : Adult,Redacted,157003
http://statistics.data.gov.uk/id/statistical-geography/E08000684,Trafford,03/02/2021,1901400263,2020003216,13.98,Elizabeth Fitzroy Support,101365,,LEARN DIS 18-64 LT,EXT DAY CARE,230846,,321000,SOCIAL CARE SERVICES : Adult,Redacted,157003
http://statistics.data.gov.uk/id/statistical-geography/E08000685,Trafford,03/02/2021,1901400263,2020003216,146.82,Elizabeth Fitzroy Support,101365,,LEARN DIS 18-64 LT,EXT DAY CARE,230846,,321000,SOCIAL CARE SERVICES : Adult,Redacted,157003
http://statistics.data.gov.uk/id/statistical-geography/E08000686,Trafford,03/02/2021,1901400263,2020003216,181.78,Elizabeth Fitzroy Support,101365,,LEARN DIS 18-64 LT,EXT DAY CARE,230846,,321000,SOCIAL CARE SERVICES : Adult,Redacted,157003
http://statistics.data.gov.uk/id/statistical-geography/E08000687,Trafford,03/02/2021,1901400263,2020003216,195.76,Elizabeth Fitzroy Support,101365,,LEARN DIS 18-64 LT,EXT DAY CARE,230846,,321000,SOCIAL CARE SERVICES : Adult,Redacted,157003
http://statistics.data.gov.uk/id/statistical-geography/E08000688,Trafford,03/02/2021,1901400263,2020003216,195.76,Elizabeth Fitzroy Support,101365,,LEARN DIS 18-64 LT,EXT DAY CARE,230846,,321000,SOCIAL CARE SERVICES : Adult,Redacted,157003
http://statistics.data.gov.uk/id/statistical-geography/E08000689,Trafford,03/02/2021,1901400263,2020003216,195.76,Elizabeth Fitzroy Support,101365,,LEARN DIS 18-64 LT,EXT DAY CARE,230846,,321000,SOCIAL CARE SERVICES : Adult,Redacted,157003
http://statistics.data.gov.uk/id/statistical-geography/E08000690,Trafford,03/02/2021,1901400263,2020003216,195.76,Elizabeth Fitzroy Support,101365,,LEARN DIS 18-64 LT,EXT DAY CARE,230846,,321000,SOCIAL CARE SERVICES : Adult,Redacted,157003
http://statistics.data.gov.uk/id/statistical-geography/E08000691,Trafford,03/02/2021,1901400263,2020003216,195.76,Elizabeth Fitzroy Support,101365,,LEARN DIS 18-64 LT,EXT DAY CARE,230846,,321000,SOCIAL CARE SERVICES : Adult,Redacted,157003
http://statistics.data.gov.uk/id/statistical-geography/E08000692,Trafford,03/02/2021,1901400263,2020003216,195.76,Elizabeth Fitzroy Support,101365,,LEARN DIS 18-64 LT,EXT DAY CARE,230846,,321000,SOCIAL CARE SERVICES : Adult,Redacted,157003
http://statistics.data.gov.uk/id/statistical-geography/E08000693,Trafford,03/02/2021,1901400263,2020003216,195.76,Elizabeth Fitzroy Support,101365,,LEARN DIS 18-64 LT,EXT DAY CARE,230846,,321000,SOCIAL CARE SERVICES : Adult,Redacted,157003
http://statistics.data.gov.uk/id/statistical-geography/E08000694,Trafford,03/02/2021,1901400263,2020003216,195.76,Elizabeth Fitzroy Support,101365,,LEARN DIS 18-64 LT,EXT DAY CARE,230846,,321000,SOCIAL CARE SERVICES : Adult,Redacted,157003
http://statistics.data.gov.uk/id/statistical-geography/E08000695,Trafford,03/02/2021,1901400263,2020003216,195.76,Elizabeth Fitzroy Support,101365,,LEARN DIS 18-64 LT,EXT DAY CARE,230846,,321000,SOCIAL CARE SERVICES : Adult,Redacted,157003
http://statistics.data.gov.uk/id/statistical-geography/E08000696,Trafford,03/02/2021,1901400263,2020003216,-13.46,Elizabeth Fitzroy Support,101365,,LEARN DIS 18-64 LT,EXT DAY CARE,230846,,321000,SOCIAL CARE SERVICES : Adult,Redacted,157003
http://statistics.data.gov.uk/id/statistical-geography/E08000697,Trafford,03/02/2021,1901400263,2020003216,-141.3,Elizabeth Fitzroy Support,101365,,LEARN DIS 18-64 LT,EXT DAY CARE,230846,,321000,SOCIAL CARE SERVICES : Adult,Redacted,157003
http://statistics.data.gov.uk/id/statistical-geography/E08000698,Trafford,03/02/2021,1901400263,2020003216,-174.94,Elizabeth Fitzroy Support,101365,,LEARN DIS 18-64 LT,EXT DAY CARE,230846,,321000,SOCIAL CARE SERVICES : Adult,Redacted,157003
http://statistics.data.gov.uk/id/statistical-geography/E08000699,Trafford,03/02/2021,1901400263,2020003216,-188.4,Elizabeth Fitzroy Support,101365,,LEARN DIS 18-64 LT,EXT DAY CARE,230846,,321000,SOCIAL CARE SERVICES : Adult,Redacted,157003
http://statistics.data.gov.uk/id/statistical-geography/E08000700,Trafford,03/02/2021,1901400263,2020003216,-188.4,Elizabeth Fitzroy Support,101365,,LEARN DIS 18-64 LT,EXT DAY CARE,230846,,321000,SOCIAL CARE SERVICES : Adult,Redacted,157003
http://statistics.data.gov.uk/id/statistical-geography/E08000701,Trafford,03/02/2021,1901400263,2020003216,-188.4,Elizabeth Fitzroy Support,101365,,LEARN DIS 18-64 LT,EXT DAY CARE,230846,,321000,SOCIAL CARE SERVICES : Adult,Redacted,157003
http://statistics.data.gov.uk/id/statistical-geography/E08000702,Trafford,03/02/2021,1901400263,2020003216,-188.4,Elizabeth Fitzroy Support,101365,,LEARN DIS 18-64 LT,EXT DAY CARE,230846,,321000,SOCIAL CARE SERVICES : Adult,Redacted,157003
http://statistics.data.gov.uk/id/statistical-geography/E08000703,Trafford,03/02/2021,1901400263,2020003216,-188.4,Elizabeth Fitzroy Support,101365,,LEARN DIS 18-64 LT,EXT DAY CARE,230846,,321000,SOCIAL CARE SERVICES : Adult,Redacted,157003
http://statistics.data.gov.uk/id/statistical-geography/E08000704,Trafford,03/02/2021,1901400263,2020003216,-188.4,Elizabeth Fitzroy Support,101365,,LEARN DIS 18-64 LT,EXT DAY CARE,230846,,321000,SOCIAL CARE SERVICES : Adult,Redacted,157003
http://statistics.data.gov.uk/id/statistical-geography/E08000705,Trafford,03/02/2021,1901400263,2020003216,-188.4,Elizabeth Fitzroy Support,101365,,LEARN DIS 18-64 LT,EXT DAY CARE,230846,,321000,SOCIAL CARE SERVICES : Adult,Redacted,157003
http://statistics.data.gov.uk/id/statistical-geography/E08000706,Trafford,03/02/2021,1901400263,2020003216,-188.4,Elizabeth Fitzroy Support,101365,,LEARN DIS 18-64 LT,EXT DAY CARE,230846,,321000,SOCIAL CARE SERVICES : Adult,Redacted,157003
http://statistics.data.gov.uk/id/statistical-geography/E08000707,Trafford,03/02/2021,1901400264,2020003224,783.04,Elizabeth Fitzroy Support,101365,,SOCIAL SUPPORT 18-64,EXT DAY CARE,230846,,321000,SOCIAL CARE SERVICES : Adult,Redacted,157005
http://statistics.data.gov.uk/id/statistical-geography/E08000708,Trafford,03/02/2021,1901400265,2020003225,391.52,Elizabeth Fitzroy Support,101365,,LEARN DIS 18-64 LT,EXT DAY CARE,230846,,321000,SOCIAL CARE SERVICES : Adult,Redacted,157003
http://statistics.data.gov.uk/id/statistical-geography/E08000709,Trafford,03/02/2021,1901400266,2020003235,587.28,Elizabeth Fitzroy Support,101365,,LEARN DIS 18-64 LT,EXT DAY CARE,230846,,321000,SOCIAL CARE SERVICES : Adult,Redacted,157003
http://statistics.data.gov.uk/id/statistical-geography/E08000710,Trafford,03/02/2021,1901400267,2020003236,391.52,Elizabeth Fitzroy Support,101365,,LEARN DIS 18-64 LT,EXT DAY CARE,230846,,321000,SOCIAL CARE SERVICES : Adult,Redacted,157003
http://statistics.data.gov.uk/id/statistical-geography/E08000711,Trafford,03/02/2021,1901400268,2020003239,391.52,Elizabeth Fitzroy Support,101365,,LEARN DIS 65-74 LT,EXT DAY CARE,230846,,321000,SOCIAL CARE SERVICES : Adult,Redacted,157013
http://statistics.data.gov.uk/id/statistical-geography/E08000712,Trafford,03/02/2021,1901400279,98,57.96,Elizabeth Fitzroy Support,101365,,LEARN DIS 18-64 LT,SUPP LIVING CONT,230530,,321000,SOCIAL CARE SERVICES : Adult,Redacted,157003
http://statistics.data.gov.uk/id/statistical-geography/E08000713,Trafford,03/02/2021,1901400279,98,753.48,Elizabeth Fitzroy Support,101365,,LEARN DIS 18-64 LT,SUPP LIVING CONT,230530,,321000,SOCIAL CARE SERVICES : Adult,Redacted,157003
http://statistics.data.gov.uk/id/statistical-geography/E08000714,Trafford,03/02/2021,1901400279,98,777.28,Elizabeth Fitzroy Support,101365,,LEARN DIS 18-64 LT,SUPP LIVING CONT,230530,,321000,SOCIAL CARE SERVICES : Adult,Redacted,157003
http://statistics.data.gov.uk/id/statistical-geography/E08000715,Trafford,03/02/2021,1901400279,98,777.28,Elizabeth Fitzroy Support,101365,,LEARN DIS 18-64 LT,SUPP LIVING CONT,230530,,321000,SOCIAL CARE SERVICES : Adult,Redacted,157003
http://statistics.data.gov.uk/id/statistical-geography/E08000716,Trafford,10/02/2021,1901400924,297855,0.04,Alpha Plus Fostering Ltd,100372,,IFA FOSTERING,IFA - PERMANENTS,230545,,321111,SC : Adoption & Fostering,Redacted,130434
http://statistics.data.gov.uk/id/statistical-geography/E08000717,Trafford,10/02/2021,1901400924,297855,"3,609.29",Alpha Plus Fostering Ltd,100372,,IFA FOSTERING,IFA - PERMANENTS,230545,,321111,SC : Adoption & Fostering,Redacted,130434
http://statistics.data.gov.uk/id/statistical-geography/E08000718,Trafford,10/02/2021,1901400925,303438,180.97,Alpha Plus Fostering Ltd,100372,,NORTH : S17 & CLIENT,CLIENTS PERS NEEDS,220412,,321111,SC : Adoption & Fostering,Redacted,130660
http://statistics.data.gov.uk/id/statistical-geography/E08000719,Trafford,10/02/2021,1901400925,303438,"3,609.29",Alpha Plus Fostering Ltd,100372,,IFA FOSTERING,IFA - PERMANENTS,230545,,321111,SC : Adoption & Fostering,Redacted,130434
http://statistics.data.gov.uk/id/statistical-geography/E08000720,Trafford,10/02/2021,1901400925,303438,-180.93,Alpha Plus Fostering Ltd,100372,,IFA FOSTERING,IFA - PERMANENTS,230545,,321111,SC : Adoption & Fostering,Redacted,130434
http://statistics.data.gov.uk/id/statistical-geography/E08000721,Trafford,03/02/2021,1901400308,43209,447.72,Leonard Cheshire Disability,101471,GB899322375,PHYS SUPP 18-64 LT,EXT DOM CARE SPOT CO,230845,,,,Redacted,157000
http://statistics.data.gov.uk/id/statistical-geography/E08000722,Trafford,03/02/2021,1901400308,43209,"1,720.32",Leonard Cheshire Disability,101471,GB899322375,PHYS SUPP 18-64 LT,EXT DOM CARE SPOT CO,230845,,,,Redacted,157000
http://statistics.data.gov.uk/id/statistical-geography/E08000723,Trafford,03/02/2021,1901400309,43212,511.68,Leonard Cheshire Disability,101471,GB899322375,PHYS SUPP 18-64 LT,EXT DOM CARE SPOT CO,230845,,,,Redacted,157000
http://statistics.data.gov.uk/id/statistical-geography/E08000724,Trafford,03/02/2021,1901400310,43285,447.72,Leonard Cheshire Disability,101471,GB899322375,PHYS SUPP 18-64 LT,EXT DOM CARE SPOT CO,230845,,,,Redacted,157000
http://statistics.data.gov.uk/id/statistical-geography/E08000725,Trafford,03/02/2021,1901400310,43285,"2,580.48",Leonard Cheshire Disability,101471,GB899322375,PHYS SUPP 18-64 LT,EXT DOM CARE SPOT CO,230845,,,,Redacted,157000
http://statistics.data.gov.uk/id/statistical-geography/E08000726,Trafford,03/02/2021,1901400311,43319,447.72,Leonard Cheshire Disability,101471,GB899322375,LEARN DIS 18-64 LT,EXT DOM CARE SPOT CO,230845,,,,Redacted,157003
http://statistics.data.gov.uk/id/statistical-geography/E08000727,Trafford,03/02/2021,1901400311,43319,"3,010.56",Leonard Cheshire Disability,101471,GB899322375,LEARN DIS 65-74 LT,EXT DOM CARE SPOT CO,230845,,,,Redacted,157013
http://statistics.data.gov.uk/id/statistical-geography/E08000728,Trafford,03/02/2021,1901400312,43346,447.72,Leonard Cheshire Disability,101471,GB899322375,LEARN DIS 18-64 LT,EXT DOM CARE SPOT CO,230845,,,,Redacted,157003
http://statistics.data.gov.uk/id/statistical-geography/E08000729,Trafford,03/02/2021,1901400312,43346,"1,628.16",Leonard Cheshire Disability,101471,GB899322375,LEARN DIS 18-64 LT,EXT DOM CARE SPOT CO,230845,,,,Redacted,157003
http://statistics.data.gov.uk/id/statistical-geography/E08000730,Trafford,03/02/2021,1901400313,43349,447.72,Leonard Cheshire Disability,101471,GB899322375,LEARN DIS 18-64 LT,EXT DOM CARE SPOT CO,230845,,,,Redacted,157003
http://statistics.data.gov.uk/id/statistical-geography/E08000731,Trafford,03/02/2021,1901400313,43349,"1,382.40",Leonard Cheshire Disability,101471,GB899322375,LEARN DIS 18-64 LT,EXT DOM CARE SPOT CO,230845,,,,Redacted,157003
http://statistics.data.gov.uk/id/statistical-geography/E08000732,Trafford,03/02/2021,1901400314,43356,447.72,Leonard Cheshire Disability,101471,GB899322375,PHYS SUPP 65-74 LT,EXT DOM CARE SPOT CO,230845,,,,Redacted,157010
http://statistics.data.gov.uk/id/statistical-geography/E08000733,Trafford,03/02/2021,1901400314,43356,"3,747.84",Leonard Cheshire Disability,101471,GB899322375,PHYS SUPP 65-74 LT,EXT DOM CARE SPOT CO,230845,,,,Redacted,157010
http://statistics.data.gov.uk/id/statistical-geography/E08000734,Trafford,03/02/2021,1901400315,43358,447.72,Leonard Cheshire Disability,101471,GB899322375,PHYS SUPP 18-64 LT,EXT DOM CARE SPOT CO,230845,,,,Redacted,157000
http://statistics.data.gov.uk/id/statistical-geography/E08000735,Trafford,03/02/2021,1901400315,43358,"3,256.32",Leonard Cheshire Disability,101471,GB899322375,PHYS SUPP 18-64 LT,EXT DOM CARE SPOT CO,230845,,,,Redacted,157000
http://statistics.data.gov.uk/id/statistical-geography/E08000736,Trafford,03/02/2021,1901400316,43389,447.72,Leonard Cheshire Disability,101471,GB899322375,LEARN DIS 18-64 LT,EXT DOM CARE SPOT CO,230845,,,,Redacted,157003
http://statistics.data.gov.uk/id/statistical-geography/E08000737,Trafford,03/02/2021,1901400316,43389,"1,059.84",Leonard Cheshire Disability,101471,GB899322375,LEARN DIS 18-64 LT,EXT DOM CARE SPOT CO,230845,,,,Redacted,157003
http://statistics.data.gov.uk/id/statistical-geography/E08000738,Trafford,03/02/2021,1901400317,43407,447.72,Leonard Cheshire Disability,101471,GB899322375,LEARN DIS 18-64 LT,EXT DOM CARE SPOT CO,230845,,,,Redacted,157003
http://statistics.data.gov.uk/id/statistical-geography/E08000739,Trafford,03/02/2021,1901400317,43407,"1,720.32",Leonard Cheshire Disability,101471,GB899322375,LEARN DIS 18-64 LT,EXT DOM CARE SPOT CO,230845,,,,Redacted,157003
http://statistics.data.gov.uk/id/statistical-geography/E08000740,Trafford,03/02/2021,1901400318,43408,447.72,Leonard Cheshire Disability,101471,GB899322375,LEARN DIS 65-74 LT,EXT DOM CARE SPOT CO,230845,,,,Redacted,157013
http://statistics.data.gov.uk/id/statistical-geography/E08000741,Trafford,03/02/2021,1901400318,43408,"1,843.20",Leonard Cheshire Disability,101471,GB899322375,LEARN DIS 65-74 LT,EXT DOM CARE SPOT CO,230845,,,,Redacted,157013
http://statistics.data.gov.uk/id/statistical-geography/E08000742,Trafford,10/02/2021,5100401846,1987,833.33,GADCCTI Ltd T/A A&SCC,100824,GB561273255,EX:CHIEF EXECUTIVE &,SUBSCRIPTIONS,220770,,202100,FINANCIAL : Subscriptions,Sponsorship for Chamber Business Awards,800000
http://statistics.data.gov.uk/id/statistical-geography/E08000743,Trafford,19/02/2021,1901403682,7109,"7,114.00",Veolia ES (UK) Ltd,100907,GB530008893,Capital Schemes,EXT ARCHITECT,400200,,182013,Waste Mgt : Waste Collection,,990000
http://statistics.data.gov.uk/id/statistical-geography/E08000744,Trafford,01/02/2021,1901399404,558180,"2,086.44",Jemcare Ltd,100601,,PHYS SUPP 65-74 LT,EXT RES CARE FEES,230842,,321000,SOCIAL CARE SERVICES : Adult,Redacted,157010
http://statistics.data.gov.uk/id/statistical-geography/E08000745,Trafford,01/02/2021,1901399404,558180,"2,086.44",Jemcare Ltd,100601,,PHYS SUPP 65-74 LT,EXT RES CARE FEES,230842,,321000,SOCIAL CARE SERVICES : Adult,Redacted,157010
http://statistics.data.gov.uk/id/statistical-geography/E08000746,Trafford,01/02/2021,1901399404,558180,"1,934.88",Jemcare Ltd,100601,,PHYS SUPP 65-74 LT,EXT RES CARE FEES,230842,,321000,SOCIAL CARE SERVICES : Adult,Redacted,157010
http://statistics.data.gov.uk/id/statistical-geography/E08000747,Trafford,01/02/2021,1901399404,558180,287.48,Jemcare Ltd,100601,,MENT HLT 65-74 LT,EXT RES CARE FEES,230842,,321000,SOCIAL CARE SERVICES : Adult,Redacted,157014
http://statistics.data.gov.uk/id/statistical-geography/E08000748,Trafford,01/02/2021,1901399404,558180,"1,934.88",Jemcare Ltd,100601,,MENT HLT 65-74 LT,EXT RES CARE FEES,230842,,321000,SOCIAL CARE SERVICES : Adult,Redacted,157014
http://statistics.data.gov.uk/id/statistical-geography/E08000749,Trafford,01/02/2021,1901399404,558180,120,Jemcare Ltd,100601,,PHYS SUPP 85+ LT,EXT RES CARE FEES,230842,,321000,SOCIAL CARE SERVICES : Adult,Redacted,157030
http://statistics.data.gov.uk/id/statistical-geography/E08000750,Trafford,01/02/2021,1901399404,558180,"1,934.88",Jemcare Ltd,100601,,PHYS SUPP 85+ LT,EXT RES CARE FEES,230842,,321000,SOCIAL CARE SERVICES : Adult,Redacted,157030
http://statistics.data.gov.uk/id/statistical-geography/E08000751,Trafford,01/02/2021,1901399404,558180,"1,934.88",Jemcare Ltd,100601,,MENT HLT 65-74 LT,EXT RES CARE FEES,230842,,321000,SOCIAL CARE SERVICES : Adult,Redacted,157014
http://statistics.data.gov.uk/id/statistical-geography/E08000752,Trafford,01/02/2021,1901399404,558180,396.48,Jemcare Ltd,100601,,PHYS SUPP 75-84 LT,EXT RES CARE FEES,230842,,321000,SOCIAL CARE SERVICES : Adult,Redacted,157020
http://statistics.data.gov.uk/id/statistical-geography/E08000753,Trafford,01/02/2021,1901399404,558180,"1,934.88",Jemcare Ltd,100601,,PHYS SUPP 75-84 LT,EXT RES CARE FEES,230842,,321000,SOCIAL CARE SERVICES : Adult,Redacted,157020
http://statistics.data.gov.uk/id/statistical-geography/E08000754,Trafford,01/02/2021,1901399404,558180,396.48,Jemcare Ltd,100601,,PHYS SUPP 75-84 LT,EXT RES CARE FEES,230842,,321000,SOCIAL CARE SERVICES : Adult,Redacted,157020
http://statistics.data.gov.uk/id/statistical-geography/E08000755,Trafford,01/02/2021,1901399404,558180,"1,934.88",Jemcare Ltd,100601,,PHYS SUPP 75-84 LT,EXT RES CARE FEES,230842,,321000,SOCIAL CARE SERVICES : Adult,Redacted,157020
http://statistics.data.gov.uk/id/statistical-geography/E08000756,Trafford,01/02/2021,1901399404,558180,560,Jemcare Ltd,100601,,PHYS SUPP 85+ LT,EXT RES CARE FEES,230842,,321000,SOCIAL CARE SERVICES : Adult,Redacted,157030
http://statistics.data.gov.uk/id/statistical-geography/E08000757,Trafford,01/02/2021,1901399404,558180,"2,240.00",Jemcare Ltd,100601,,PHYS SUPP 85+ LT,EXT RES CARE FEES,230842,,321000,SOCIAL CARE SERVICES : Adult,Redacted,157030
http://statistics.data.gov.uk/id/statistical-geography/E08000758,Trafford,08/02/2021,1901401032,Redacted,"6,164.33",Jemcare Ltd,100601,,Council Covid 19 mon,EXT RES CARE FEES,230842,,321000,SOCIAL CARE SERVICES : Adult,Rapid Test Fund,157041
http://statistics.data.gov.uk/id/statistical-geography/E08000759,Trafford,15/02/2021,1901402424,43165,427,Leonard Cheshire Disability,101471,GB899322375,LEARN DIS 18-64 LT,EXT DOM CARE SPOT CO,230845,,,,Redacted,157003
http://statistics.data.gov.uk/id/statistical-geography/E08000760,Trafford,15/02/2021,1901402424,43165,"1,790.88",Leonard Cheshire Disability,101471,GB899322375,LEARN DIS 18-64 LT,EXT DOM CARE SPOT CO,230845,,,,Redacted,157003
http://statistics.data.gov.uk/id/statistical-geography/E08000761,Trafford,15/02/2021,1901402485,21,250,Altrincham Prepartarory School,100663,,Early Yrs Add Factor,OTHER MISC EXPENSES,220850,,171011,EDUCATION :  Children,EY SEND CC SPR.21,141001
http://statistics.data.gov.uk/id/statistical-geography/E08000762,Trafford,10/02/2021,1901401559,3421,"3,883.31",Elmscot Day Nursery Ltd,101090,,3 & 4 Yr Old Funding,PRIVATE CONTRACTORS,230600,,321116,SC : Nurseries & Creches,Redacted,141200
http://statistics.data.gov.uk/id/statistical-geography/E08000763,Trafford,10/02/2021,1901401647,221,724.32,Elmscot Day Nursery Ltd,101090,,2 Year Old Funding,PRIVATE CONTRACTORS,230600,,321116,SC : Nurseries & Creches,Redacted,141004
http://statistics.data.gov.uk/id/statistical-geography/E08000764,Trafford,10/02/2021,1901401728,21,117.31,Elmscot Day Nursery Ltd,101090,,Early Yrs Add Factor,PRIVATE CONTRACTORS,230600,,321116,SC : Nurseries & Creches,DEP SPR21,141001
http://statistics.data.gov.uk/id/statistical-geography/E08000765,Trafford,10/02/2021,1901401800,21,833.34,Elmscot Day Nursery Ltd,101090,,Early Yrs Add Factor,EARMARKED GRANTS,220710,,321116,SC : Nurseries & Creches,QUAL SPR21,141001
http://statistics.data.gov.uk/id/statistical-geography/E08000766,Trafford,10/02/2021,5100401955,206,"6,666.66",St John Vianney School,101152,,Non-Trafford CompAge,NON MAINT SCH FEES,230800,,171000,EDUCATION : Services,Redacted,110400
http://statistics.data.gov.uk/id/statistical-geography/E08000767,Trafford,10/02/2021,5100401956,203,"6,666.67",St John Vianney School,101152,,Non-Trafford CompAge,NON MAINT SCH FEES,230800,,171000,EDUCATION : Services,Redacted,110400
http://statistics.data.gov.uk/id/statistical-geography/E08000768,Trafford,10/02/2021,5100401957,204,"6,666.67",St John Vianney School,101152,,Non-Trafford CompAge,NON MAINT SCH FEES,230800,,171000,EDUCATION : Services,Redacted,110400
http://statistics.data.gov.uk/id/statistical-geography/E08000769,Trafford,10/02/2021,5100401958,205,"13,768.34",St John Vianney School,101152,,Non-Trafford CompAge,NON MAINT SCH FEES,230800,,171000,EDUCATION : Services,Redacted,110400
http://statistics.data.gov.uk/id/statistical-geography/E08000770,Trafford,10/02/2021,5100401958,205,-0.01,St John Vianney School,101152,,Non-Trafford CompAge,NON MAINT SCH FEES,230800,,171000,EDUCATION : Services,Redacted,110400
http://statistics.data.gov.uk/id/statistical-geography/E08000771,Trafford,10/02/2021,5100401959,265,"6,666.67",St John Vianney School,101152,,Post 16 - Element 3,NON MAINT SCH FEES,230800,,171000,EDUCATION : Services,Redacted,110328
http://statistics.data.gov.uk/id/statistical-geography/E08000772,Trafford,10/02/2021,5100401969,209,"6,282.66",St John Vianney School,101152,,Non-Trafford CompAge,NON MAINT SCH FEES,230800,,171000,EDUCATION : Services,Redacted,110400
http://statistics.data.gov.uk/id/statistical-geography/E08000773,Trafford,11/02/2021,5100402036,210,"9,978.00",St John Vianney School,101152,,Non-Trafford CompAge,NON MAINT SCH FEES,230800,,171000,EDUCATION : Services,Redacted,110400
http://statistics.data.gov.uk/id/statistical-geography/E08000774,Trafford,11/02/2021,5100402037,211,"6,282.67",St John Vianney School,101152,,Non-Trafford CompAge,NON MAINT SCH FEES,230800,,171000,EDUCATION : Services,Redacted,110400
http://statistics.data.gov.uk/id/statistical-geography/E08000775,Trafford,11/02/2021,5100402038,212,"6,666.67",St John Vianney School,101152,,Non-Trafford CompAge,NON MAINT SCH FEES,230800,,171000,EDUCATION : Services,Redacted,110400
http://statistics.data.gov.uk/id/statistical-geography/E08000776,Trafford,11/02/2021,5100402039,213,"2,445.34",St John Vianney School,101152,,Non-Trafford CompAge,NON MAINT SCH FEES,230800,,171000,EDUCATION : Services,Redacted,110400
http://statistics.data.gov.uk/id/statistical-geography/E08000777,Trafford,11/02/2021,5100402040,214,"6,666.67",St John Vianney School,101152,,Non-Trafford CompAge,NON MAINT SCH FEES,230800,,171000,EDUCATION : Services,Redacted,110400
http://statistics.data.gov.uk/id/statistical-geography/E08000778,Trafford,11/02/2021,5100402041,215,"6,666.66",St John Vianney School,101152,,Non-Trafford CompAge,NON MAINT SCH FEES,230800,,171000,EDUCATION : Services,Redacted,110400
http://statistics.data.gov.uk/id/statistical-geography/E08000779,Trafford,11/02/2021,5100402042,216,"11,666.66",St John Vianney School,101152,,Non-Trafford CompAge,NON MAINT SCH FEES,230800,,171000,EDUCATION : Services,Redacted,110400
http://statistics.data.gov.uk/id/statistical-geography/E08000780,Trafford,11/02/2021,5100402043,217,"6,282.66",St John Vianney School,101152,,Non-Trafford CompAge,NON MAINT SCH FEES,230800,,171000,EDUCATION : Services,Redacted,110400
http://statistics.data.gov.uk/id/statistical-geography/E08000781,Trafford,08/02/2021,1901401043,Redacted,"6,421.18",Deepdene Care Ltd,100282,GB945776864,Council Covid 19 mon,EXT RES CARE FEES,230842,,321000,SOCIAL CARE SERVICES : Adult,Rapid Test NS,157041
http://statistics.data.gov.uk/id/statistical-geography/E08000782,Trafford,08/02/2021,1901401048,Redacted,"11,301.28",Deepdene Care Ltd,100282,GB945776864,Council Covid 19 mon,EXT RES CARE FEES,230842,,321000,SOCIAL CARE SERVICES : Adult,Rapid Test PC,157041
http://statistics.data.gov.uk/id/statistical-geography/E08000783,Trafford,15/02/2021,5100398458,452112020,36,Institute Of Revenues Rating & Valu,101533,GB626604544,Training & Develope,VOCATIONAL TRAINING,190002,,261500,HR : Training & Conferences,Entry Fee,740011
http://statistics.data.gov.uk/id/statistical-geography/E08000784,Trafford,15/02/2021,5100398458,452112020,57.5,Institute Of Revenues Rating & Valu,101533,GB626604544,Training & Develope,CONFERENCE EXP OFF,220605,,261500,HR : Training & Conferences,July to December,740011
http://statistics.data.gov.uk/id/statistical-geography/E08000785,Trafford,15/02/2021,5100399631,453362020,9.58,Institute Of Revenues Rating & Valu,101533,GB626604544,Training & Develope,VOCATIONAL TRAINING,190002,,261500,HR : Training & Conferences,2020 December Subscription,740011
http://statistics.data.gov.uk/id/statistical-geography/E08000786,Trafford,15/02/2021,5100399631,453362020,36,Institute Of Revenues Rating & Valu,101533,GB626604544,Training & Develope,VOCATIONAL TRAINING,190002,,261500,HR : Training & Conferences,Entry Fee,740011
http://statistics.data.gov.uk/id/statistical-geography/E08000787,Trafford,01/02/2021,1901399369,558153,"4,390.88",Arden College Priory,101429,,LEARN DIS 18-64 LT,EXT RES CARE FEES,230842,,321000,SOCIAL CARE SERVICES : Adult,Redacted,157003
http://statistics.data.gov.uk/id/statistical-geography/E08000788,Trafford,01/02/2021,1901399603,34031,511.68,Leonard Cheshire Disability,101471,GB899322375,PHYS SUPP 18-64 LT,EXT DOM CARE SPOT CO,230845,,,,Redacted,157000
http://statistics.data.gov.uk/id/statistical-geography/E08000789,Trafford,01/02/2021,1901399604,34032,511.68,Leonard Cheshire Disability,101471,GB899322375,PHYS SUPP 18-64 LT,EXT DOM CARE SPOT CO,230845,,,,Redacted,157000
http://statistics.data.gov.uk/id/statistical-geography/E08000790,Trafford,01/02/2021,1901399605,34033,511.68,Leonard Cheshire Disability,101471,GB899322375,PHYS SUPP 18-64 LT,EXT DOM CARE SPOT CO,230845,,,,Redacted,157000
http://statistics.data.gov.uk/id/statistical-geography/E08000791,Trafford,01/02/2021,1901399606,34034,511.68,Leonard Cheshire Disability,101471,GB899322375,PHYS SUPP 18-64 LT,EXT DOM CARE SPOT CO,230845,,,,Redacted,157000
http://statistics.data.gov.uk/id/statistical-geography/E08000792,Trafford,01/02/2021,1901399607,34035,511.68,Leonard Cheshire Disability,101471,GB899322375,PHYS SUPP 18-64 LT,EXT DOM CARE SPOT CO,230845,,,,Redacted,157000
http://statistics.data.gov.uk/id/statistical-geography/E08000793,Trafford,01/02/2021,1901399608,39691,511.68,Leonard Cheshire Disability,101471,GB899322375,PHYS SUPP 18-64 LT,EXT DOM CARE SPOT CO,230845,,,,Redacted,157000
http://statistics.data.gov.uk/id/statistical-geography/E08000794,Trafford,01/02/2021,1901399609,41613,427,Leonard Cheshire Disability,101471,GB899322375,LEARN DIS 18-64 LT,EXT DOM CARE SPOT CO,230845,,,,Redacted,157003
http://statistics.data.gov.uk/id/statistical-geography/E08000795,Trafford,01/02/2021,1901399609,41613,"1,790.88",Leonard Cheshire Disability,101471,GB899322375,LEARN DIS 18-64 LT,EXT DOM CARE SPOT CO,230845,,,,Redacted,157003
http://statistics.data.gov.uk/id/statistical-geography/E08000796,Trafford,15/02/2021,5100402044,207,"6,666.66",St John Vianney School,101152,,Non-Trafford CompAge,NON MAINT SCH FEES,230800,,171000,EDUCATION : Services,Redacted,110400
http://statistics.data.gov.uk/id/statistical-geography/E08000797,Trafford,15/02/2021,5100402065,218,"6,282.67",St John Vianney School,101152,,Non-Trafford CompAge,NON MAINT SCH FEES,230800,,171000,EDUCATION : Services,Redacted,110400
http://statistics.data.gov.uk/id/statistical-geography/E08000798,Trafford,01/02/2021,1901399863,Redacted,"16,450.21",Trinity Merchants Ltd,100294,,Council Covid 19 mon,EXT RES CARE FEES,230842,,321017,SOCIAL CARE : Residential Care,,157041
http://statistics.data.gov.uk/id/statistical-geography/E08000799,Trafford,08/02/2021,5100401676,45124,"7,416.17",The Together Trust,101330,GB611400506,CAN Comm Fund,EXT RES CARE FEES,230842,,321214,SC: Disabled Children Res Care,Sleep Clinic Jan 21,130037
http://statistics.data.gov.uk/id/statistical-geography/E08000800,Trafford,15/02/2021,5100402061,44846,"21,084.53",The Together Trust,101330,GB611400506,Non-Trafford CompAge,NON MAINT SCH FEES,230800,,171011,EDUCATION :  Children,Redacted,110400
http://statistics.data.gov.uk/id/statistical-geography/E08000801,Trafford,17/02/2021,1901403185,45033,"8,279.97",The Together Trust,101330,GB611400506,LongTermCareDisabili,EXT RES CARE FEES,230842,,321117,SC : Children Residential Care,Redacted,130411
http://statistics.data.gov.uk/id/statistical-geography/E08000802,Trafford,17/02/2021,1901403185,45033,"-8,279.97",The Together Trust,101330,GB611400506,LongTermCareDisabili,EXT RES CARE FEES,230842,,321117,SC : Children Residential Care,Redacted,130411
http://statistics.data.gov.uk/id/statistical-geography/E08000803,Trafford,17/02/2021,1901403185,45033,"1,040.63",The Together Trust,101330,GB611400506,LongTermCareDisabili,EXT RES CARE FEES,230842,,321117,SC : Children Residential Care,Redacted,130411
http://statistics.data.gov.uk/id/statistical-geography/E08000804,Trafford,17/02/2021,1901403185,45033,"12,200.71",The Together Trust,101330,GB611400506,LongTermCareDisabili,EXT RES CARE FEES,230842,,321117,SC : Children Residential Care,Redacted,130411
http://statistics.data.gov.uk/id/statistical-geography/E08000805,Trafford,17/02/2021,1901403186,45034,"7,478.68",The Together Trust,101330,GB611400506,LongTermCareDisabili,EXT RES CARE FEES,230842,,321117,SC : Children Residential Care,Redacted,130411
http://statistics.data.gov.uk/id/statistical-geography/E08000806,Trafford,17/02/2021,1901403186,45034,"11,020.00",The Together Trust,101330,GB611400506,LongTermCareDisabili,EXT RES CARE FEES,230842,,321117,SC : Children Residential Care,Redacted,130411
http://statistics.data.gov.uk/id/statistical-geography/E08000807,Trafford,17/02/2021,1901403186,45034,"-9,022.68",The Together Trust,101330,GB611400506,LongTermCareDisabili,EXT RES CARE FEES,230842,,321117,SC : Children Residential Care,Redacted,130411
http://statistics.data.gov.uk/id/statistical-geography/E08000808,Trafford,17/02/2021,1901403187,45062,"1,594.40",The Together Trust,101330,GB611400506,ShortTermChildrenDis,EXT RES CARE FEES,230842,,321117,SC : Children Residential Care,Redacted,130400
http://statistics.data.gov.uk/id/statistical-geography/E08000809,Trafford,17/02/2021,1901403187,45062,"3,988.74",The Together Trust,101330,GB611400506,ShortTermChildrenDis,EXT RES CARE FEES,230842,,321117,SC : Children Residential Care,Redacted,130400
http://statistics.data.gov.uk/id/statistical-geography/E08000810,Trafford,17/02/2021,1901403188,45103,896.66,The Together Trust,101330,GB611400506,ShortTermChildrenDis,EXT RES CARE FEES,230842,,321117,SC : Children Residential Care,Redacted,130400
http://statistics.data.gov.uk/id/statistical-geography/E08000811,Trafford,17/02/2021,1901403188,45103,"1,223.74",The Together Trust,101330,GB611400506,ShortTermChildrenDis,EXT RES CARE FEES,230842,,321117,SC : Children Residential Care,Redacted,130400
http://statistics.data.gov.uk/id/statistical-geography/E08000812,Trafford,17/02/2021,5100402048,44833,"16,895.20",The Together Trust,101330,GB611400506,Non-Trafford CompAge,NON MAINT SCH FEES,230800,,171011,EDUCATION :  Children,Redacted,110400
http://statistics.data.gov.uk/id/statistical-geography/E08000813,Trafford,17/02/2021,5100402049,44834,"23,780.64",The Together Trust,101330,GB611400506,Non-Trafford CompAge,NON MAINT SCH FEES,230800,,171011,EDUCATION :  Children,Redacted,110400
http://statistics.data.gov.uk/id/statistical-geography/E08000814,Trafford,17/02/2021,5100402050,44835,"23,780.64",The Together Trust,101330,GB611400506,Non-Trafford CompAge,NON MAINT SCH FEES,230800,,171011,EDUCATION :  Children,Redacted,110400
http://statistics.data.gov.uk/id/statistical-geography/E08000815,Trafford,17/02/2021,5100402051,44836,"20,811.88",The Together Trust,101330,GB611400506,Post 16 - Element 3,NON MAINT SCH FEES,230800,,171011,EDUCATION :  Children,Redacted,110328
http://statistics.data.gov.uk/id/statistical-geography/E08000816,Trafford,17/02/2021,5100402052,44837,"21,084.53",The Together Trust,101330,GB611400506,Post 16 - Element 3,NON MAINT SCH FEES,230800,,171011,EDUCATION :  Children,Redacted,110328
http://statistics.data.gov.uk/id/statistical-geography/E08000817,Trafford,17/02/2021,5100402053,44838,"18,878.62",The Together Trust,101330,GB611400506,Non-Trafford CompAge,NON MAINT SCH FEES,230800,,171011,EDUCATION :  Children,Redacted,110400
http://statistics.data.gov.uk/id/statistical-geography/E08000818,Trafford,17/02/2021,5100402054,44839,"17,234.99",The Together Trust,101330,GB611400506,Non-Trafford CompAge,NON MAINT SCH FEES,230800,,171011,EDUCATION :  Children,Redacted,110400
http://statistics.data.gov.uk/id/statistical-geography/E08000819,Trafford,17/02/2021,5100402055,44840,"20,784.68",The Together Trust,101330,GB611400506,Non-Trafford CompAge,NON MAINT SCH FEES,230800,,321214,SC: Disabled Children Res Care,Redacted,110400
http://statistics.data.gov.uk/id/statistical-geography/E08000820,Trafford,17/02/2021,5100402056,44841,"20,984.53",The Together Trust,101330,GB611400506,Non-Trafford CompAge,NON MAINT SCH FEES,230800,,171011,EDUCATION :  Children,Redacted,110400
http://statistics.data.gov.uk/id/statistical-geography/E08000821,Trafford,17/02/2021,5100402057,44842,"20,984.53",The Together Trust,101330,GB611400506,Non-Trafford CompAge,NON MAINT SCH FEES,230800,,171011,EDUCATION :  Children,Redacted,110400
http://statistics.data.gov.uk/id/statistical-geography/E08000822,Trafford,17/02/2021,5100402058,44843,"20,984.53",The Together Trust,101330,GB611400506,Non-Trafford CompAge,NON MAINT SCH FEES,230800,,171011,EDUCATION :  Children,Redacted,110400
http://statistics.data.gov.uk/id/statistical-geography/E08000823,Trafford,17/02/2021,5100402059,44844,"21,084.53",The Together Trust,101330,GB611400506,Non-Trafford CompAge,NON MAINT SCH FEES,230800,,171011,EDUCATION :  Children,Redacted,110400
http://statistics.data.gov.uk/id/statistical-geography/E08000824,Trafford,17/02/2021,5100402060,44845,"21,084.53",The Together Trust,101330,GB611400506,Non-Trafford CompAge,NON MAINT SCH FEES,230800,,171011,EDUCATION :  Children,Redacted,110400
http://statistics.data.gov.uk/id/statistical-geography/E08000825,Trafford,17/02/2021,5100402062,44847,"19,160.15",The Together Trust,101330,GB611400506,Non-Trafford CompAge,NON MAINT SCH FEES,230800,,171011,EDUCATION :  Children,Redacted,110400
http://statistics.data.gov.uk/id/statistical-geography/E08000826,Trafford,10/02/2021,1901401667,221,"1,032.16",Melrose Day Nursery,100699,,2 Year Old Funding,PRIVATE CONTRACTORS,230600,,321100,SOCIAL CARE : Children,Redacted,141004
http://statistics.data.gov.uk/id/statistical-geography/E08000827,Trafford,10/02/2021,1901401751,21,586.53,Melrose Day Nursery,100699,,Early Yrs Add Factor,PRIVATE CONTRACTORS,230600,,321100,SOCIAL CARE : Children,DEP SPR21,141001
http://statistics.data.gov.uk/id/statistical-geography/E08000828,Trafford,10/02/2021,1901401863,21,419.76,Melrose Day Nursery,100699,,Early Years PPG,PRIVATE CONTRACTORS,230600,,321100,SOCIAL CARE : Children,EYPP SPR 21,100011
http://statistics.data.gov.uk/id/statistical-geography/E08000829,Trafford,22/02/2021,1901403019,562881,66.89,Trinity Merchants Ltd,100294,,PHYS SUPP 85+ LT,EXT RES CARE FEES,230842,,321017,SOCIAL CARE : Residential Care,Redacted,157030
http://statistics.data.gov.uk/id/statistical-geography/E08000830,Trafford,22/02/2021,1901403019,562881,367.9,Trinity Merchants Ltd,100294,,PHYS SUPP 85+ LT,EXT RES CARE FEES,230842,,321017,SOCIAL CARE : Residential Care,Redacted,157030
http://statistics.data.gov.uk/id/statistical-geography/E08000831,Trafford,22/02/2021,1901403019,562881,434.79,Trinity Merchants Ltd,100294,,PHYS SUPP 85+ LT,EXT RES CARE FEES,230842,,321017,SOCIAL CARE : Residential Care,Redacted,157030
http://statistics.data.gov.uk/id/statistical-geography/E08000832,Trafford,22/02/2021,1901403019,562881,869.59,Trinity Merchants Ltd,100294,,PHYS SUPP 85+ LT,EXT RES CARE FEES,230842,,321017,SOCIAL CARE : Residential Care,Redacted,157030
http://statistics.data.gov.uk/id/statistical-geography/E08000833,Trafford,22/02/2021,1901403019,562881,936.48,Trinity Merchants Ltd,100294,,PHYS SUPP 85+ LT,EXT RES CARE FEES,230842,,321017,SOCIAL CARE : Residential Care,Redacted,157030
http://statistics.data.gov.uk/id/statistical-geography/E08000834,Trafford,22/02/2021,1901403019,562881,936.48,Trinity Merchants Ltd,100294,,PHYS SUPP 85+ LT,EXT RES CARE FEES,230842,,321017,SOCIAL CARE : Residential Care,Redacted,157030
http://statistics.data.gov.uk/id/statistical-geography/E08000835,Trafford,22/02/2021,1901403019,562881,936.48,Trinity Merchants Ltd,100294,,PHYS SUPP 85+ LT,EXT RES CARE FEES,230842,,321017,SOCIAL CARE : Residential Care,Redacted,157030
http://statistics.data.gov.uk/id/statistical-geography/E08000836,Trafford,22/02/2021,1901403019,562881,936.48,Trinity Merchants Ltd,100294,,PHYS SUPP 85+ LT,EXT RES CARE FEES,230842,,321017,SOCIAL CARE : Residential Care,Redacted,157030
http://statistics.data.gov.uk/id/statistical-geography/E08000837,Trafford,22/02/2021,1901403019,562881,936.48,Trinity Merchants Ltd,100294,,PHYS SUPP 85+ LT,EXT RES CARE FEES,230842,,321017,SOCIAL CARE : Residential Care,Redacted,157030
http://statistics.data.gov.uk/id/statistical-geography/E08000838,Trafford,22/02/2021,1901403019,562881,936.48,Trinity Merchants Ltd,100294,,PHYS SUPP 85+ LT,EXT RES CARE FEES,230842,,321017,SOCIAL CARE : Residential Care,Redacted,157030
http://statistics.data.gov.uk/id/statistical-geography/E08000839,Trafford,22/02/2021,1901403019,562881,936.48,Trinity Merchants Ltd,100294,,PHYS SUPP 85+ LT,EXT RES CARE FEES,230842,,321017,SOCIAL CARE : Residential Care,Redacted,157030
http://statistics.data.gov.uk/id/statistical-geography/E08000840,Trafford,22/02/2021,1901403019,562881,936.48,Trinity Merchants Ltd,100294,,PHYS SUPP 85+ LT,EXT RES CARE FEES,230842,,321017,SOCIAL CARE : Residential Care,Redacted,157030
http://statistics.data.gov.uk/id/statistical-geography/E08000841,Trafford,22/02/2021,1901403019,562881,936.48,Trinity Merchants Ltd,100294,,PHYS SUPP 85+ LT,EXT RES CARE FEES,230842,,321017,SOCIAL CARE : Residential Care,Redacted,157030
http://statistics.data.gov.uk/id/statistical-geography/E08000842,Trafford,22/02/2021,1901403019,562881,-66.89,Trinity Merchants Ltd,100294,,PHYS SUPP 85+ LT,Social Care-3rd Prty,230805,,321017,SOCIAL CARE : Residential Care,Redacted,157030
http://statistics.data.gov.uk/id/statistical-geography/E08000843,Trafford,22/02/2021,1901403019,562881,-367.9,Trinity Merchants Ltd,100294,,PHYS SUPP 85+ LT,Social Care-3rd Prty,230805,,321017,SOCIAL CARE : Residential Care,Redacted,157030
http://statistics.data.gov.uk/id/statistical-geography/E08000844,Trafford,22/02/2021,1901403019,562881,-434.79,Trinity Merchants Ltd,100294,,PHYS SUPP 85+ LT,Social Care-3rd Prty,230805,,321017,SOCIAL CARE : Residential Care,Redacted,157030
http://statistics.data.gov.uk/id/statistical-geography/E08000845,Trafford,22/02/2021,1901403019,562881,-869.59,Trinity Merchants Ltd,100294,,PHYS SUPP 85+ LT,Social Care-3rd Prty,230805,,321017,SOCIAL CARE : Residential Care,Redacted,157030
http://statistics.data.gov.uk/id/statistical-geography/E08000846,Trafford,22/02/2021,1901403019,562881,-936.48,Trinity Merchants Ltd,100294,,PHYS SUPP 85+ LT,Social Care-3rd Prty,230805,,321017,SOCIAL CARE : Residential Care,Redacted,157030
http://statistics.data.gov.uk/id/statistical-geography/E08000847,Trafford,22/02/2021,1901403019,562881,-936.48,Trinity Merchants Ltd,100294,,PHYS SUPP 85+ LT,Social Care-3rd Prty,230805,,321017,SOCIAL CARE : Residential Care,Redacted,157030
http://statistics.data.gov.uk/id/statistical-geography/E08000848,Trafford,22/02/2021,1901403019,562881,-936.48,Trinity Merchants Ltd,100294,,PHYS SUPP 85+ LT,Social Care-3rd Prty,230805,,321017,SOCIAL CARE : Residential Care,Redacted,157030
http://statistics.data.gov.uk/id/statistical-geography/E08000849,Trafford,22/02/2021,1901403019,562881,-936.48,Trinity Merchants Ltd,100294,,PHYS SUPP 85+ LT,Social Care-3rd Prty,230805,,321017,SOCIAL CARE : Residential Care,Redacted,157030
http://statistics.data.gov.uk/id/statistical-geography/E08000850,Trafford,22/02/2021,1901403019,562881,-936.48,Trinity Merchants Ltd,100294,,PHYS SUPP 85+ LT,Social Care-3rd Prty,230805,,321017,SOCIAL CARE : Residential Care,Redacted,157030
http://statistics.data.gov.uk/id/statistical-geography/E08000851,Trafford,22/02/2021,1901403019,562881,-936.48,Trinity Merchants Ltd,100294,,PHYS SUPP 85+ LT,Social Care-3rd Prty,230805,,321017,SOCIAL CARE : Residential Care,Redacted,157030
http://statistics.data.gov.uk/id/statistical-geography/E08000852,Trafford,22/02/2021,1901403019,562881,-936.48,Trinity Merchants Ltd,100294,,PHYS SUPP 85+ LT,Social Care-3rd Prty,230805,,321017,SOCIAL CARE : Residential Care,Redacted,157030
http://statistics.data.gov.uk/id/statistical-geography/E08000853,Trafford,22/02/2021,1901403019,562881,-936.48,Trinity Merchants Ltd,100294,,PHYS SUPP 85+ LT,Social Care-3rd Prty,230805,,321017,SOCIAL CARE : Residential Care,Redacted,157030
http://statistics.data.gov.uk/id/statistical-geography/E08000854,Trafford,22/02/2021,1901403019,562881,-936.48,Trinity Merchants Ltd,100294,,PHYS SUPP 85+ LT,Social Care-3rd Prty,230805,,321017,SOCIAL CARE : Residential Care,Redacted,157030
